{"text_format":"1","workbook":"xlsx","n_sheets":10,"sheets":["Config","Hoe gebruiken","0.basisgegevens","1.Overzicht vorderingsstaat","2.Vorderingsstaat","3.VS-A","4.VS-B","LOA","Toelichting Lijst OA","Sjabloon revisies"],"not_rendered":{"charts":0,"images":9,"macros":1,"external_links":0,"defined_names":11,"comments":0,"pivot_tables":0},"unopened":[],"bounds":{"document_bytes":16777216,"sheet_cells":100000,"rows_first":2000,"rows_last":500,"rows_between":2000,"halvings":0,"cell_chars":16384,"cell_head_chars":4096},"cells_cut":0,"cells_raw":0,"read":"whole","date_system":"1900"}

{"sheet":"Config","index":0,"n_rows":51,"n_cols":3,"rows_kept":51,"cut":false,"hidden":true,"merged":[]}
["Graad","Iov","OA"]
[1,{"$f":"IF(LOA!B15=0,\"\",LOA!B15)","v":""},"Ja"]
[2,{"$f":"IF(LOA!B16=0,\"\",LOA!B16)","v":""},"Nee"]
[3,{"$f":"IF(LOA!B17=0,\"\",LOA!B17)","v":""}]
[4,{"$f":"IF(LOA!B18=0,\"\",LOA!B18)","v":""}]
[5,{"$f":"IF(LOA!B19=0,\"\",LOA!B19)","v":""}]
[null,{"$f":"IF(LOA!B20=0,\"\",LOA!B20)","v":""}]
[null,{"$f":"IF(LOA!B21=0,\"\",LOA!B21)","v":""}]
[null,{"$f":"IF(LOA!B22=0,\"\",LOA!B22)","v":""}]
[null,{"$f":"IF(LOA!B23=0,\"\",LOA!B23)","v":""}]
[null,{"$f":"IF(LOA!B24=0,\"\",LOA!B24)","v":""}]
[null,{"$f":"IF(LOA!B25=0,\"\",LOA!B25)","v":""}]
[null,{"$f":"IF(LOA!B26=0,\"\",LOA!B26)","v":""}]
[null,{"$f":"IF(LOA!B27=0,\"\",LOA!B27)","v":""}]
[null,{"$f":"IF(LOA!B28=0,\"\",LOA!B28)","v":""}]
[null,{"$f":"IF(LOA!B29=0,\"\",LOA!B29)","v":""}]
[null,{"$f":"IF(LOA!B30=0,\"\",LOA!B30)","v":""}]
[null,{"$f":"IF(LOA!B31=0,\"\",LOA!B31)","v":""}]
[null,{"$f":"IF(LOA!B32=0,\"\",LOA!B32)","v":""}]
[null,{"$f":"IF(LOA!B33=0,\"\",LOA!B33)","v":""}]
[null,{"$f":"IF(LOA!B34=0,\"\",LOA!B34)","v":""}]
[null,{"$f":"IF(LOA!B35=0,\"\",LOA!B35)","v":""}]
[null,{"$f":"IF(LOA!B36=0,\"\",LOA!B36)","v":""}]
[null,{"$f":"IF(LOA!B37=0,\"\",LOA!B37)","v":""}]
[null,{"$f":"IF(LOA!B38=0,\"\",LOA!B38)","v":""}]
[null,{"$f":"IF(LOA!B39=0,\"\",LOA!B39)","v":""}]
[null,{"$f":"IF(LOA!B40=0,\"\",LOA!B40)","v":""}]
[null,{"$f":"IF(LOA!B41=0,\"\",LOA!B41)","v":""}]
[null,{"$f":"IF(LOA!B42=0,\"\",LOA!B42)","v":""}]
[null,{"$f":"IF(LOA!B43=0,\"\",LOA!B43)","v":""}]
[null,{"$f":"IF(LOA!B44=0,\"\",LOA!B44)","v":""}]
[null,{"$f":"IF(LOA!B45=0,\"\",LOA!B45)","v":""}]
[null,{"$f":"IF(LOA!B46=0,\"\",LOA!B46)","v":""}]
[null,{"$f":"IF(LOA!B47=0,\"\",LOA!B47)","v":""}]
[null,{"$f":"IF(LOA!B48=0,\"\",LOA!B48)","v":""}]
[null,{"$f":"IF(LOA!B49=0,\"\",LOA!B49)","v":""}]
[null,{"$f":"IF(LOA!B50=0,\"\",LOA!B50)","v":""}]
[null,{"$f":"IF(LOA!B51=0,\"\",LOA!B51)","v":""}]
[null,{"$f":"IF(LOA!B52=0,\"\",LOA!B52)","v":""}]
[null,{"$f":"IF(LOA!B53=0,\"\",LOA!B53)","v":""}]
[null,{"$f":"IF(LOA!B54=0,\"\",LOA!B54)","v":""}]
[null,{"$f":"IF(LOA!B55=0,\"\",LOA!B55)","v":""}]
[null,{"$f":"IF(LOA!#REF!=0,\"\",LOA!#REF!)","v":{"$error":"#REF!"}}]
[null,{"$f":"IF(LOA!#REF!=0,\"\",LOA!#REF!)","v":{"$error":"#REF!"}}]
[null,{"$f":"IF(LOA!#REF!=0,\"\",LOA!#REF!)","v":{"$error":"#REF!"}}]
[null,{"$f":"IF(LOA!#REF!=0,\"\",LOA!#REF!)","v":{"$error":"#REF!"}}]
[null,{"$f":"IF(LOA!#REF!=0,\"\",LOA!#REF!)","v":{"$error":"#REF!"}}]
[null,{"$f":"IF(LOA!#REF!=0,\"\",LOA!#REF!)","v":{"$error":"#REF!"}}]
[null,{"$f":"IF(LOA!#REF!=0,\"\",LOA!#REF!)","v":{"$error":"#REF!"}}]
[null,{"$f":"IF(LOA!#REF!=0,\"\",LOA!#REF!)","v":{"$error":"#REF!"}}]
[null,{"$f":"IF(LOA!#REF!=0,\"\",LOA!#REF!)","v":{"$error":"#REF!"}}]

{"sheet":"Hoe gebruiken","index":1,"n_rows":12,"n_cols":4,"rows_kept":12,"cut":false,"hidden":false,"merged":[[1,1,1,2]]}
[]
[null,"Hoe gaat u te werk:",null,"Herzieningen :"]
[null,1,"Vervolledig éénmalig de algemene info in werkblad '0.basisgegevens'\nDe gele cellen kunnen/moeten ingevuld worden indien van toepassing"]
[null,2,"Vervolledig  werkblad '1.Overzicht vorderingsstaat'"]
[null,3,"Werkblad '2.Vorderingsstaat' voorziet een automatische samenvatting, in dit werkblad moet u zelfs niets invullen"]
[null,4,"Werkblad '3.VS1-A' en '4.VS1-B' zijn vrijblijvend te gebruiken. Echter moet wel één geheel van voorbladen en detailstaat aangeboden worden aan UZ Leuven."]
[null,5,"Voeg '1.Overzicht vorderingsstaat' en '2.Vorderingsstaat' toe als voorbladen bij detailstaat"]
[null,6,"Vervolledig details in werkblad LOA voor oplijsting Onder aannemer(s) indien van toepassing"]
[null,7,"OPTIONEEL :\nIndien u automatisch een pdf wil maken van dit document kan u dit doen aan de hand van de knop 'maak pdf' die zich bevindt op werkblad '0.basisgegevens'\n•  er wordt automatisch een afdrukbereik ingesteld op het moment van aanmaak van de pdf. In de werkbladen '3.VS-A' en 4.VS-B' wordt het bereik ingesteld op de laatste rij van kolom 'omschrijving' die nog gegevens bevat."]
[]
[null,null,"Voorkeuren UZ Leuven :"]
[null,null,"• Dien uw VS in als excel bestand, dit vergemakkelijkt het nazicht\n• BTW tarief steeds opgeven (ok indien BTW verlegd) "]

{"sheet":"0.basisgegevens","index":2,"n_rows":26,"n_cols":4,"rows_kept":26,"cut":false,"hidden":false,"merged":[[15,0,15,1],[17,2,17,3]]}
[]
["Projectnummer :"]
["Naam project :"]
["Perceelnummer :"]
["Naam perceel :"]
["Naam projectingenieur UZL :"]
["Naam Project coördinator UZL :"]
["Naam uitvoeringscoördinator :"]
["Naam ontwerper :"]
["Naam aannemer :"]
["Naam derden :"]
["Bestelbon nummer (deel UZL) : "]
["Bestelbon nummer (deel Derden) : "]
["Datum :"]
[]
["In dit sjabloon kan u werken met een deel UZL, een deel gemeenschappelijk en een deel derden, geef de verdeelseutel aan in werkblad '1.Overzicht vorderingsstaat'.\nDruk op de knop om wat u wenst achtereenvolgens zichtbaar te maken of te verbergen:"]
[]
[null,"UZL zichtbaar","Verdeelsleutel"]
[null,null,"Deel UZL","Deel Derden"]
[null,"Gemeenschappelijk verborgen",{"$f":"'1.Overzicht vorderingsstaat'!Z24","v":1},{"$f":"'1.Overzicht vorderingsstaat'!Z25","v":0}]
[]
[null,"Derden verborgen"]
[]
[]
[]
[null,"Indien u wenst om deze vorderingsstaat niet als excel bestand in te dienen kan u aan de hand van deze knop een samengestelde PDF aanmaken van de nodige werkbladen. Mogelijks werk dit niet voor alle gebruikers, in dat geval moet u dit manueel doen met een toepassing om pdf te bewerken. Indien u de knop enkele keren na elkaar wil gebruiken moet u steeds de openstaande PDF afsluiten om te voorkomen dat dit correct zou werken."]

{"sheet":"1.Overzicht vorderingsstaat","index":3,"n_rows":116,"n_cols":74,"rows_kept":116,"cut":false,"hidden":false,"merged":[[93,10,95,10],[93,15,95,15],[41,11,43,11],[41,12,43,12],[41,13,43,13],[41,14,43,14],[67,11,69,11],[67,12,69,12],[67,13,69,13],[67,14,69,14],[22,8,22,27],[91,1,91,73],[92,1,92,39],[92,41,92,72],[92,73,94,73],[93,1,93,2],[93,3,93,8],[93,16,93,21],[93,22,93,27],[93,28,93,33],[93,34,93,39],[93,41,93,42],[93,43,93,48],[93,49,93,54],[93,55,93,60],[93,61,93,66],[95,1,95,2],[95,3,95,8],[95,16,95,21],[95,22,95,27],[95,28,95,33],[95,34,95,39],[14,8,14,27],[32,8,32,27],[6,34,6,42],[6,43,6,50],[114,67,114,72],[115,1,115,2],[115,3,115,8],[115,16,115,21],[115,22,115,27],[115,28,115,33],[115,34,115,39],[115,41,115,42],[115,43,115,48],[115,49,115,54],[115,55,115,60],[115,61,115,66],[115,67,115,72],[114,1,114,2],[114,3,114,8],[114,16,114,21],[114,22,114,27],[114,28,114,33],[114,34,114,39],[114,41,114,42],[114,43,114,48],[114,49,114,54],[114,55,114,60],[41,9,43,9],[114,61,114,66],[41,10,43,10],[11,34,11,68],[93,9,95,9],[112,67,112,72],[113,1,113,2],[113,3,113,8],[113,16,113,21],[113,22,113,27],[113,28,113,33],[113,34,113,39],[113,41,113,42],[113,43,113,48],[113,49,113,54],[113,55,113,60],[113,61,113,66],[113,67,113,72],[112,1,112,2],[112,3,112,8],[112,16,112,21],[112,22,112,27],[112,28,112,33],[112,34,112,39],[112,41,112,42],[112,43,112,48],[112,49,112,54],[112,55,112,60],[112,61,112,66],[110,67,110,72],[111,1,111,2],[111,3,111,8],[111,16,111,21],[111,22,111,27],[111,28,111,33],[111,34,111,39],[111,41,111,42],[111,43,111,48],[111,49,111,54],[111,55,111,60],[111,61,111,66],[111,67,111,72],[110,1,110,2],[110,3,110,8],[110,16,110,21],[110,22,110,27],[110,28,110,33],[110,34,110,39],[110,41,110,42],[110,43,110,48],[110,49,110,54],[110,55,110,60],[110,61,110,66],[108,67,108,72],[109,1,109,2],[109,3,109,8],[109,16,109,21],[109,22,109,27],[109,28,109,33],[109,34,109,39],[109,41,109,42],[109,43,109,48],[109,49,109,54],[109,55,109,60],[109,61,109,66],[109,67,109,72],[108,1,108,2],[108,3,108,8],[108,16,108,21],[108,22,108,27],[108,28,108,33],[108,34,108,39],[108,41,108,42],[108,43,108,48],[108,49,108,54],[108,55,108,60],[108,61,108,66],[106,67,106,72],[107,1,107,2],[107,3,107,8],[107,16,107,21],[107,22,107,27],[107,28,107,33],[107,34,107,39],[107,41,107,42],[107,43,107,48],[107,49,107,54],[107,55,107,60],[107,61,107,66],[107,67,107,72],[106,1,106,2],[106,3,106,8],[106,16,106,21],[106,22,106,27],[106,28,106,33],[106,34,106,39],[106,41,106,42],[106,43,106,48],[106,49,106,54],[106,55,106,60],[106,61,106,66],[104,67,104,72],[105,1,105,2],[105,3,105,8],[105,16,105,21],[105,22,105,27],[105,28,105,33],[105,34,105,39],[105,41,105,42],[105,43,105,48],[105,49,105,54],[105,55,105,60],[105,61,105,66],[105,67,105,72],[104,1,104,2],[104,3,104,8],[104,16,104,21],[104,22,104,27],[104,28,104,33],[104,34,104,39],[104,41,104,42],[104,43,104,48],[104,49,104,54],[104,55,104,60],[104,61,104,66],[102,67,102,72],[103,1,103,2],[103,3,103,8],[103,16,103,21],[103,22,103,27],[103,28,103,33],[103,34,103,39],[103,41,103,42],[103,43,103,48],[103,49,103,54],[103,55,103,60],[103,61,103,66],[103,67,103,72],[102,1,102,2],[102,3,102,8],[102,16,102,21],[102,22,102,27],[102,28,102,33],[102,34,102,39],[102,41,102,42],[102,43,102,48],[102,49,102,54],[102,55,102,60],[102,61,102,66],[100,67,100,72],[101,1,101,2],[101,3,101,8],[101,16,101,21],[101,22,101,27],[101,28,101,33],[101,34,101,39],[101,41,101,42],[101,43,101,48],[101,49,101,54],[101,55,101,60],[101,61,101,66],[101,67,101,72],[100,1,100,2],[100,3,100,8],[100,16,100,21],[100,22,100,27],[100,28,100,33],[100,34,100,39],[100,41,100,42],[100,43,100,48],[100,49,100,54],[100,55,100,60],[100,61,100,66],[96,43,96,48],[96,49,96,54],[96,55,96,60],[96,61,96,66],[98,67,98,72],[99,1,99,2],[99,3,99,8],[99,16,99,21],[99,22,99,27],[99,28,99,33],[99,34,99,39],[99,41,99,42],[99,43,99,48],[99,49,99,54],[99,55,99,60],[99,61,99,66],[99,67,99,72],[98,1,98,2],[98,3,98,8],[98,16,98,21],[98,22,98,27],[98,28,98,33],[98,34,98,39],[98,41,98,42],[98,43,98,48],[98,49,98,54],[98,55,98,60],[98,61,98,66],[95,41,95,42],[95,43,95,48],[95,49,95,54],[95,55,95,60],[95,61,95,66],[95,67,95,72],[96,67,96,72],[97,1,97,2],[97,3,97,8],[97,16,97,21],[97,22,97,27],[97,28,97,33],[97,34,97,39],[97,41,97,42],[97,43,97,48],[97,49,97,54],[97,55,97,60],[97,61,97,66],[97,67,97,72],[96,1,96,2],[96,3,96,8],[96,16,96,21],[96,22,96,27],[96,28,96,33],[96,34,96,39],[96,41,96,42],[93,11,95,11],[93,12,95,12],[93,13,95,13],[93,14,95,14],[93,67,93,72],[94,1,94,2],[94,3,94,8],[94,16,94,21],[94,22,94,27],[94,28,94,33],[94,34,94,39],[94,41,94,42],[94,43,94,48],[94,49,94,54],[94,55,94,60],[94,61,94,66],[94,67,94,72],[88,55,88,60],[88,61,88,66],[88,67,88,72],[89,1,89,2],[89,3,89,8],[89,16,89,21],[89,22,89,27],[89,28,89,33],[89,34,89,39],[89,41,89,42],[89,43,89,48],[89,49,89,54],[89,55,89,60],[89,61,89,66],[89,67,89,72],[88,1,88,2],[88,3,88,8],[88,16,88,21],[88,22,88,27],[88,28,88,33],[88,34,88,39],[88,41,88,42],[88,43,88,48],[88,49,88,54],[86,55,86,60],[86,61,86,66],[86,67,86,72],[87,1,87,2],[87,3,87,8],[87,16,87,21],[87,22,87,27],[87,28,87,33],[87,34,87,39],[87,41,87,42],[87,43,87,48],[87,49,87,54],[87,55,87,60],[87,61,87,66],[87,67,87,72],[86,1,86,2],[86,3,86,8],[86,16,86,21],[86,22,86,27],[86,28,86,33],[86,34,86,39],[86,41,86,42],[86,43,86,48],[86,49,86,54],[84,55,84,60],[84,61,84,66],[84,67,84,72],[85,1,85,2],[85,3,85,8],[85,16,85,21],[85,22,85,27],[85,28,85,33],[85,34,85,39],[85,41,85,42],[85,43,85,48],[85,49,85,54],[85,55,85,60],[85,61,85,66],[85,67,85,72],[84,1,84,2],[84,3,84,8],[84,16,84,21],[84,22,84,27],[84,28,84,33],[84,34,84,39],[84,41,84,42],[84,43,84,48],[84,49,84,54],[82,55,82,60],[82,61,82,66],[82,67,82,72],[83,1,83,2],[83,3,83,8],[83,16,83,21],[83,22,83,27],[83,28,83,33],[83,34,83,39],[83,41,83,42],[83,43,83,48],[83,49,83,54],[83,55,83,60],[83,61,83,66],[83,67,83,72],[82,1,82,2],[82,3,82,8],[82,16,82,21],[82,22,82,27],[82,28,82,33],[82,34,82,39],[82,41,82,42],[82,43,82,48],[82,49,82,54],[80,55,80,60],[80,61,80,66],[80,67,80,72],[81,1,81,2],[81,3,81,8],[81,16,81,21],[81,22,81,27],[81,28,81,33],[81,34,81,39],[81,41,81,42],[81,43,81,48],[81,49,81,54],[81,55,81,60],[81,61,81,66],[81,67,81,72],[80,1,80,2],[80,3,80,8],[80,16,80,21],[80,22,80,27],[80,28,80,33],[80,34,80,39],[80,41,80,42],[80,43,80,48],[80,49,80,54],[78,55,78,60],[78,61,78,66],[78,67,78,72],[79,1,79,2],[79,3,79,8],[79,16,79,21],[79,22,79,27],[79,28,79,33],[79,34,79,39],[79,41,79,42],[79,43,79,48],[79,49,79,54],[79,55,79,60],[79,61,79,66],[79,67,79,72],[78,1,78,2],[78,3,78,8],[78,16,78,21],[78,22,78,27],[78,28,78,33],[78,34,78,39],[78,41,78,42],[78,43,78,48],[78,49,78,54],[76,55,76,60],[76,61,76,66],[76,67,76,72],[77,1,77,2],[77,3,77,8],[77,16,77,21],[77,22,77,27],[77,28,77,33],[77,34,77,39],[77,41,77,42],[77,43,77,48],[77,49,77,54],[77,55,77,60],[77,61,77,66],[77,67,77,72],[76,1,76,2],[76,3,76,8],[76,16,76,21],[76,22,76,27],[76,28,76,33],[76,34,76,39],[76,41,76,42],[76,43,76,48],[76,49,76,54],[74,55,74,60],[74,61,74,66],[74,67,74,72],[75,1,75,2],[75,3,75,8],[75,16,75,21],[75,22,75,27],[75,28,75,33],[75,34,75,39],[75,41,75,42],[75,43,75,48],[75,49,75,54],[75,55,75,60],[75,61,75,66],[75,67,75,72],[74,1,74,2],[74,3,74,8],[74,16,74,21],[74,22,74,27],[74,28,74,33],[74,34,74,39],[74,41,74,42],[74,43,74,48],[74,49,74,54],[72,55,72,60],[72,61,72,66],[72,67,72,72],[73,1,73,2],[73,3,73,8],[73,16,73,21],[73,22,73,27],[73,28,73,33],[73,34,73,39],[73,41,73,42],[73,43,73,48],[73,49,73,54],[73,55,73,60],[73,61,73,66],[73,67,73,72],[72,1,72,2],[72,3,72,8],[72,16,72,21],[72,22,72,27],[72,28,72,33],[72,34,72,39],[72,41,72,42],[72,43,72,48],[72,49,72,54],[41,67,41,72],[69,55,69,60],[69,61,69,66],[69,67,69,72],[70,55,70,60],[70,61,70,66],[70,67,70,72],[71,1,71,2],[71,3,71,8],[71,16,71,21],[71,22,71,27],[71,28,71,33],[71,34,71,39],[71,41,71,42],[71,43,71,48],[71,49,71,54],[71,55,71,60],[71,61,71,66],[71,67,71,72],[70,1,70,2],[70,3,70,8],[70,16,70,21],[70,22,70,27],[70,28,70,33],[70,34,70,39],[70,41,70,42],[70,43,70,48],[70,49,70,54],[41,15,43,15],[67,9,69,9],[67,10,69,10],[67,15,69,15],[41,55,41,60],[41,61,41,66],[42,55,42,60],[21,1,21,7],[13,1,13,7],[31,1,31,7],[13,8,13,27],[31,8,31,27],[22,1,22,7],[69,1,69,2],[69,3,69,8],[69,16,69,21],[69,22,69,27],[69,28,69,33],[69,34,69,39],[69,41,69,42],[69,43,69,48],[69,49,69,54],[33,28,33,36],[33,37,33,45],[33,46,33,54],[65,1,65,73],[40,41,40,72],[37,37,37,43],[37,44,37,50],[39,1,39,73],[40,73,42,73],[41,1,41,2],[41,3,41,8],[41,16,41,21],[41,22,41,27],[41,28,41,33],[67,67,67,72],[68,1,68,2],[68,3,68,8],[68,16,68,21],[68,22,68,27],[68,28,68,33],[68,34,68,39],[68,41,68,42],[68,43,68,48],[68,49,68,54],[68,55,68,60],[68,61,68,66],[68,67,68,72],[67,1,67,2],[67,3,67,8],[67,16,67,21],[67,22,67,27],[67,28,67,33],[67,34,67,39],[67,41,67,42],[67,43,67,48],[67,49,67,54],[67,55,67,60],[67,61,67,66],[28,8,28,21],[29,8,29,21],[28,22,28,28],[29,22,29,28],[28,37,28,43],[28,44,28,50],[29,37,29,43],[29,44,29,50],[34,1,34,28],[34,30,34,50],[35,1,35,7],[35,8,35,21],[35,22,35,28],[35,37,35,43],[35,44,35,50],[32,28,32,36],[32,37,32,45],[32,46,32,54],[33,1,33,27],[31,46,31,54],[32,1,32,7],[21,46,21,54],[22,28,22,36],[2,1,2,16],[2,17,2,32],[2,34,2,42],[2,43,2,50],[3,1,3,16],[3,17,3,32],[3,34,3,42],[3,43,3,50],[2,52,2,68],[3,52,3,68],[4,43,4,50],[7,1,7,16],[7,17,7,32],[12,1,12,16],[4,58,4,60],[4,61,4,63],[4,64,4,65],[4,66,4,68],[4,17,4,32],[5,17,5,32],[6,1,6,16],[10,1,10,16],[5,43,5,50],[14,37,14,45],[14,46,14,54],[14,1,14,7],[21,8,21,27],[6,17,6,32],[4,34,4,42],[7,34,7,42],[8,1,8,16],[9,1,9,16],[8,17,8,32],[9,17,9,32],[4,52,4,54],[4,55,4,57],[16,1,16,28],[16,30,16,50],[6,52,6,59],[6,60,6,68],[5,52,5,59],[5,60,5,68],[9,52,9,55],[9,56,9,59],[9,60,9,64],[9,65,9,68],[15,1,15,27],[15,28,15,36],[15,37,15,45],[15,46,15,54],[14,28,14,36],[4,1,4,16],[5,1,5,16],[10,17,10,32],[11,1,11,16],[11,17,11,32],[5,34,5,42],[10,52,10,55],[10,56,10,59],[10,60,10,64],[10,65,10,68],[7,43,7,50],[23,18,24,24],[23,1,23,17],[24,1,24,17],[24,25,24,27],[23,25,23,27],[17,52,17,54],[18,52,18,54],[22,37,22,45],[22,46,22,54],[13,28,13,36],[13,37,13,45],[13,46,13,54],[18,1,18,7],[18,8,18,21],[18,22,18,28],[18,30,18,36],[18,37,18,43],[18,44,18,50],[17,1,17,7],[17,8,17,21],[17,22,17,28],[17,37,17,43],[17,44,17,50],[23,37,23,45],[23,46,23,54],[24,28,24,36],[24,37,24,45],[19,22,19,28],[19,37,19,43],[19,44,19,50],[21,28,21,36],[21,37,21,45],[19,8,19,21],[42,1,42,2],[23,28,23,36],[43,1,43,2],[42,3,42,8],[42,16,42,21],[42,22,42,27],[42,28,42,33],[42,34,42,39],[42,41,42,42],[42,43,42,48],[42,61,42,66],[35,52,35,54],[42,49,42,54],[41,34,41,39],[41,41,41,42],[41,43,41,48],[41,49,41,54],[40,1,40,39],[37,8,37,21],[37,22,37,28],[36,44,36,50],[36,52,36,54],[26,1,26,28],[26,30,26,50],[27,1,27,7],[27,8,27,21],[27,22,27,28],[27,37,27,43],[27,44,27,50],[27,52,27,54],[24,46,24,54],[44,55,44,60],[44,61,44,66],[44,67,44,72],[45,1,45,2],[45,3,45,8],[45,16,45,21],[45,22,45,27],[45,28,45,33],[45,67,45,72],[45,34,45,39],[45,41,45,42],[45,43,45,48],[45,49,45,54],[45,55,45,60],[45,61,45,66],[44,1,44,2],[44,3,44,8],[44,16,44,21],[44,22,44,27],[44,28,44,33],[44,34,44,39],[44,41,44,42],[44,43,44,48],[44,49,44,54],[46,67,46,72],[47,1,47,2],[47,3,47,8],[47,16,47,21],[47,22,47,27],[47,28,47,33],[47,34,47,39],[47,41,47,42],[47,43,47,48],[47,49,47,54],[47,55,47,60],[47,61,47,66],[47,67,47,72],[46,1,46,2],[46,3,46,8],[46,16,46,21],[46,22,46,27],[46,28,46,33],[46,34,46,39],[46,41,46,42],[46,43,46,48],[46,49,46,54],[48,1,48,2],[48,3,48,8],[48,16,48,21],[48,22,48,27],[48,28,48,33],[48,67,48,72],[49,1,49,2],[49,3,49,8],[49,16,49,21],[49,22,49,27],[49,28,49,33],[49,34,49,39],[49,41,49,42],[49,43,49,48],[49,49,49,54],[48,34,48,39],[48,41,48,42],[48,43,48,48],[48,49,48,54],[48,55,48,60],[48,61,48,66],[49,55,49,60],[49,61,49,66],[49,67,49,72],[51,1,51,2],[51,3,51,8],[51,16,51,21],[51,22,51,27],[51,28,51,33],[51,67,51,72],[51,34,51,39],[51,41,51,42],[51,43,51,48],[51,49,51,54],[51,55,51,60],[51,61,51,66],[50,1,50,2],[50,3,50,8],[50,16,50,21],[50,22,50,27],[50,28,50,33],[50,34,50,39],[50,41,50,42],[50,43,50,48],[50,49,50,54],[53,1,53,2],[53,3,53,8],[53,16,53,21],[53,22,53,27],[53,28,53,33],[53,34,53,39],[53,41,53,42],[53,43,53,48],[53,49,53,54],[53,55,53,60],[53,61,53,66],[53,67,53,72],[52,1,52,2],[52,3,52,8],[52,16,52,21],[52,22,52,27],[52,28,52,33],[52,34,52,39],[52,41,52,42],[52,43,52,48],[52,49,52,54],[54,1,54,2],[54,3,54,8],[54,16,54,21],[54,22,54,27],[54,28,54,33],[54,67,54,72],[55,1,55,2],[55,3,55,8],[55,16,55,21],[55,22,55,27],[55,28,55,33],[55,34,55,39],[55,41,55,42],[55,43,55,48],[55,49,55,54],[54,34,54,39],[54,41,54,42],[54,43,54,48],[54,49,54,54],[54,55,54,60],[54,61,54,66],[55,55,55,60],[55,61,55,66],[55,67,55,72],[60,1,60,2],[60,3,60,8],[60,16,60,21],[58,1,58,2],[58,3,58,8],[58,16,58,21],[59,43,59,48],[59,49,59,54],[56,55,56,60],[56,61,56,66],[58,55,58,60],[58,61,58,66],[56,67,56,72],[57,1,57,2],[57,3,57,8],[57,16,57,21],[57,22,57,27],[57,28,57,33],[57,67,57,72],[57,34,57,39],[57,41,57,42],[57,43,57,48],[57,49,57,54],[57,55,57,60],[57,61,57,66],[56,1,56,2],[56,3,56,8],[56,16,56,21],[56,22,56,27],[56,28,56,33],[56,34,56,39],[56,41,56,42],[59,1,59,2],[59,3,59,8],[59,16,59,21],[59,22,59,27],[59,28,59,33],[59,34,59,39],[59,41,59,42],[66,41,66,72],[66,1,66,39],[58,67,58,72],[59,55,59,60],[59,61,59,66],[59,67,59,72],[63,55,63,60],[63,61,63,66],[62,43,62,48],[60,67,60,72],[61,1,61,2],[61,3,61,8],[61,16,61,21],[61,22,61,27],[61,28,61,33],[61,34,61,39],[61,41,61,42],[61,43,61,48],[61,49,61,54],[60,34,60,39],[60,41,60,42],[60,43,60,48],[60,49,60,54],[60,55,60,60],[60,61,60,66],[62,22,62,27],[62,28,62,33],[62,34,62,39],[62,41,62,42],[63,67,63,72],[63,34,63,39],[63,41,63,42],[63,43,63,48],[63,49,63,54],[60,28,60,33],[62,55,62,60],[62,61,62,66],[0,24,0,66],[61,61,61,66],[61,67,61,72],[58,22,58,27],[58,28,58,33],[58,34,58,39],[58,41,58,42],[58,43,58,48],[58,49,58,54],[62,49,62,54],[56,43,56,48],[56,49,56,54],[52,55,52,60],[52,61,52,66],[52,67,52,72],[50,55,50,60],[50,61,50,66],[50,67,50,72],[46,55,46,60],[46,61,46,66],[66,73,68,73],[28,52,28,54],[43,61,43,66],[43,67,43,72],[43,3,43,8],[43,16,43,21],[43,22,43,27],[43,28,43,33],[43,34,43,39],[43,41,43,42],[43,43,43,48],[43,49,43,54]],"merged_total":1020,"flags":["merged_cut"]}
[null,null,null,null,null,null,null,null,null,null,null,null,null,null,null,null,null,null,null,null,null,null,null,null,{"$f":"CONCATENATE(\"OVERZICHT VORDERINGSSTAAT \",AR3)","v":"OVERZICHT VORDERINGSSTAAT 0"},null,null,null,null,null,null,null,null,null,null,null,null,null,null,null,null,null,null,null,null,null,null,null,null,null,null,null,null,null,null,null,null,null,null,null,null,null,null,null,null,null,null,null,null,null,null,null,null,"STD-AL-854-MD21735 R12"]
[]
[null,"Project nummer :",null,null,null,null,null,null,null,null,null,null,null,null,null,null,null,{"$f":"IF('0.basisgegevens'!$B$2=\"\",\"\",'0.basisgegevens'!$B$2)","v":""},null,null,null,null,null,null,null,null,null,null,null,null,null,null,null,null,"Vorderingsstaat nr. :",null,null,null,null,null,null,null,null,0,null,null,null,null,null,null,null,null,"Herzieningscoëfficiënten"]
[null,"Project naam :",null,null,null,null,null,null,null,null,null,null,null,null,null,null,null,{"$f":"IF('0.basisgegevens'!$B$3=\"\",\"\",'0.basisgegevens'!$B$3)","v":""},null,null,null,null,null,null,null,null,null,null,null,null,null,null,null,null,"Omschrijving :",null,null,null,null,null,null,null,null,null,null,null,null,null,null,null,null,null,"p=P * (a*s/S + b*i/I + c)"]
[null,"Perceelnummer :",null,null,null,null,null,null,null,null,null,null,null,null,null,null,null,{"$f":"IF('0.basisgegevens'!$B$4=\"\",\"\",'0.basisgegevens'!$B$4)","v":""},null,null,null,null,null,null,null,null,null,null,null,null,null,null,null,null,"Index :",null,null,null,null,null,null,null,null,null,null,null,null,null,null,null,null,null,"a =",null,null,0.4,null,null,"b =",null,null,0.4,null,null,"c =",null,0.2]
[null,"Naam Perceel :",null,null,null,null,null,null,null,null,null,null,null,null,null,null,null,{"$f":"IF('0.basisgegevens'!$B$5=\"\",\"\",'0.basisgegevens'!$B$5)","v":""},null,null,null,null,null,null,null,null,null,null,null,null,null,null,null,null,"Periode van :",true,null,null,null,null,null,null,null,null,null,null,null,null,null,null,null,null,"S ="]
[null,"Projectingenieur UZL :",null,null,null,null,null,null,null,null,null,null,null,null,null,null,null,{"$f":"IF('0.basisgegevens'!$B$6=\"\",\"\",'0.basisgegevens'!$B$6)","v":""},null,null,null,null,null,null,null,null,null,null,null,null,null,null,null,null,"Periode tot :",null,null,null,null,null,null,null,null,null,null,null,null,null,null,null,null,null,"I ="]
[null,"Projectcoördinator UZL :",null,null,null,null,null,null,null,null,null,null,null,null,null,null,null,{"$f":"IF('0.basisgegevens'!$B$7=\"\",\"\",'0.basisgegevens'!$B$7)","v":""},null,null,null,null,null,null,null,null,null,null,null,null,null,null,null,null,"Datum opmaak :"]
[null,"Uitvoeringscoördinator :",null,null,null,null,null,null,null,null,null,null,null,null,null,null,null,{"$f":"IF('0.basisgegevens'!$B$8=\"\",\"\",'0.basisgegevens'!$B$8)","v":""}]
[null,"Ontwerper :",null,null,null,null,null,null,null,null,null,null,null,null,null,null,null,{"$f":"IF('0.basisgegevens'!$B$9=\"\",\"\",'0.basisgegevens'!$B$9)","v":""},null,null,null,null,null,null,null,null,null,null,null,null,null,null,null,null,null,null,null,null,null,null,null,null,null,null,null,null,null,true]
[null,"Aannemer :",null,null,null,null,null,null,null,null,null,null,null,null,null,null,null,{"$f":"IF('0.basisgegevens'!$B$10=\"\",\"\",'0.basisgegevens'!$B$10)","v":""}]
[null,"Derden :",null,null,null,null,null,null,null,null,null,null,null,null,null,null,null,{"$f":"IF('0.basisgegevens'!$B$11=\"\",\"\",'0.basisgegevens'!$B$11)","v":""},null,null,null,null,null,null,null,null,null,null,null,null,null,null,null,null,"* ook indien BTW verlegd BTW tarief invullen, te betalen totalen in overzicht houden hier apart rekening mee."]
[]
[null,"DEEL UZL",null,null,null,null,null,null,"Bestelbon referentie",null,null,null,null,null,null,null,null,null,null,null,null,null,null,null,null,null,null,null,"Bedrag excl.BTW",null,null,null,null,null,null,null,null,"BTW",null,null,null,null,null,null,null,null,"Totaal"]
[null,"Bestelbon info :",null,null,null,null,null,null,null,null,null,null,null,null,null,null,null,null,null,null,null,null,null,null,null,null,null,null,null,null,null,null,null,null,null,null,null,{"$f":"AC15*BA19","v":0},null,null,null,null,null,null,null,null,{"$f":"AC15+AL15","v":0}]
[]
[null,{"$f":"CONCATENATE(\"Totalen huidige Vorderingsstaat : nr. \",AR3)","v":"Totalen huidige Vorderingsstaat : nr. 0"},null,null,null,null,null,null,null,null,null,null,null,null,null,null,null,null,null,null,null,null,null,null,null,null,null,null,null,null,"Totalen vorige Vorderingsstaten"]
[null,null,null,null,null,null,null,null,"Te herzien bedrag",null,null,null,null,null,null,null,null,null,null,null,null,null,"Herzieningsbedrag",null,null,null,null,null,null,null,null,null,null,null,null,null,null,"Te herzien bedrag",null,null,null,null,null,null,"Herzieningsbedrag",null,null,null,null,null,null,null,"BTW %"]
[null,"Deel A excl. BTW :",null,null,null,null,null,null,{"$f":"SUMIF(B45:C64,$AR$3,D45:I64)","v":0},null,null,null,null,null,null,null,null,null,null,null,null,null,{"$f":"SUMIF(B45:C64,AR3,Q45:V64)","v":0},null,null,null,null,null,null,null,"Deel A excl. BTW :",null,null,null,null,null,null,{"$f":"D43-I19","v":0},null,null,null,null,null,null,{"$f":"Q43-W19","v":0},null,null,null,null,null,null,null,0.21]
[null,"Deel B excl. BTW :",null,null,null,null,null,null,{"$f":"SUMIF(AP45:AQ64,$AR$3,AR45:AW64)","v":0},null,null,null,null,null,null,null,null,null,null,null,null,null,{"$f":"SUMIF(AP45:AQ64,$AR$3,AX45:BC64)","v":0},null,null,null,null,null,null,null,"Deel B excl. BTW :",null,null,null,null,null,null,{"$f":"AR43-I20","v":0},null,null,null,null,null,null,{"$f":"AX43-W20","v":0}]
[]
[null,"DEEL gemeen\nschappelijk",null,null,null,null,null,null,"Bestelbon referentie",null,null,null,null,null,null,null,null,null,null,null,null,null,null,null,null,null,null,null,"Bedrag",null,null,null,null,null,null,null,null,"BTW",null,null,null,null,null,null,null,null,"Totaal"]
[null,"Bestelbon info :",null,null,null,null,null,null,null,null,null,null,null,null,null,null,null,null,null,null,null,null,null,null,null,null,null,null,null,null,null,null,null,null,null,null,null,{"$f":"AC23*BA29","v":0},null,null,null,null,null,null,null,null,{"$f":"AC23+AL23","v":0}]
[null,"aandeel UZL",null,null,null,null,null,null,null,null,null,null,null,null,null,null,null,null,"Verdeelsleutel:",null,null,null,null,null,null,1,null,null,{"$f":"AC23*Z24","v":0},null,null,null,null,null,null,null,null,{"$f":"AC24*BA19","v":0},null,null,null,null,null,null,null,null,{"$f":"AC24+AL24","v":0}]
[null,"aandeel Derden",null,null,null,null,null,null,null,null,null,null,null,null,null,null,null,null,null,null,null,null,null,null,null,{"$f":"1-Z24","v":0},null,null,{"$f":"AC23*Z25","v":0},null,null,null,null,null,null,null,null,{"$f":"AC25*BA37","v":0},null,null,null,null,null,null,null,null,0]
[]
[null,{"$f":"CONCATENATE(\"Totalen huidige Vorderingsstaat : nr. \",AR3)","v":"Totalen huidige Vorderingsstaat : nr. 0"},null,null,null,null,null,null,null,null,null,null,null,null,null,null,null,null,null,null,null,null,null,null,null,null,null,null,null,null,"Totalen vorige Vorderingsstaten"]
[null,null,null,null,null,null,null,null,"Te herzien bedrag",null,null,null,null,null,null,null,null,null,null,null,null,null,"Herzieningsbedrag",null,null,null,null,null,null,null,null,null,null,null,null,null,null,"Te herzien bedrag",null,null,null,null,null,null,"Herzieningsbedrag",null,null,null,null,null,null,null,"BTW %"]
[null,"Deel A excl. BTW :",null,null,null,null,null,null,{"$f":"SUMIF(B71:C90,$AR$3,D71:I90)","v":0},null,null,null,null,null,null,null,null,null,null,null,null,null,{"$f":"SUMIF(B71:C90,AR3,Q71:V90)","v":0},null,null,null,null,null,null,null,"Deel A excl. BTW :",null,null,null,null,null,null,{"$f":"D69-I29","v":0},null,null,null,null,null,null,{"$f":"Q69-W29","v":0}]
[null,"Deel B excl. BTW :",null,null,null,null,null,null,{"$f":"SUMIF(AP71:AQ90,$AR$3,AR71:AW90)","v":0},null,null,null,null,null,null,null,null,null,null,null,null,null,{"$f":"SUMIF(AP71:AQ90,AR3,AX71:BC90)","v":0},null,null,null,null,null,null,null,"Deel B excl. BTW :",null,null,null,null,null,null,{"$f":"AR69-I30","v":0},null,null,null,null,null,null,{"$f":"AX69-W30","v":0}]
[]
[null,"DEEL Derden",null,null,null,null,null,null,"Bestelbon referentie",null,null,null,null,null,null,null,null,null,null,null,null,null,null,null,null,null,null,null,"Bedrag excl.BTW",null,null,null,null,null,null,null,null,"BTW",null,null,null,null,null,null,null,null,"Totaal"]
[null,"Bestelbon info :",null,null,null,null,null,null,null,null,null,null,null,null,null,null,null,null,null,null,null,null,null,null,null,null,null,null,null,null,null,null,null,null,null,null,null,{"$f":"AC33*BA37","v":0},null,null,null,null,null,null,null,null,{"$f":"AC33+AL33","v":0}]
[]
[null,{"$f":"CONCATENATE(\"Totalen huidige Vorderingsstaat : nr. \",AR3)","v":"Totalen huidige Vorderingsstaat : nr. 0"},null,null,null,null,null,null,null,null,null,null,null,null,null,null,null,null,null,null,null,null,null,null,null,null,null,null,null,null,"Totalen vorige Vorderingsstaten"]
[null,null,null,null,null,null,null,null,"Te herzien bedrag",null,null,null,null,null,null,null,null,null,null,null,null,null,"Herzieningsbedrag",null,null,null,null,null,null,null,null,null,null,null,null,null,null,"Te herzien bedrag",null,null,null,null,null,null,"Herzieningsbedrag",null,null,null,null,null,null,null,"BTW %"]
[null,"Deel A excl. BTW :",null,null,null,null,null,null,{"$f":"SUMIF(B97:C116,$AR$3,D97:I116)","v":0},null,null,null,null,null,null,null,null,null,null,null,null,null,{"$f":"SUMIF(B97:C116,AR3,Q97:V116)","v":0},null,null,null,null,null,null,null,"Deel A excl. BTW :",null,null,null,null,null,null,{"$f":"D95-I37","v":0},null,null,null,null,null,null,{"$f":"Q95-W37","v":0}]
[null,"Deel B excl. BTW :",null,null,null,null,null,null,{"$f":"SUMIF(AP97:AQ116,$AR$3,AR97:AW116)","v":0},null,null,null,null,null,null,null,null,null,null,null,null,null,{"$f":"SUMIF(AP97:AQ116,AR3,AX97:BC116)","v":0},null,null,null,null,null,null,null,"Deel B excl. BTW :",null,null,null,null,null,null,{"$f":"AR95-I38","v":0},null,null,null,null,null,null,{"$f":"AX95-W38","v":0}]
[]
[null,"OVERZICHT VORDERINGSSTATEN DEEL UZL"]
[null,"Overzicht vorderingsstaten deel A",null,null,null,null,null,null,null,null,null,null,null,null,null,null,null,null,null,null,null,null,null,null,null,null,null,null,null,null,null,null,null,null,null,null,null,null,null,null,null,"Overzicht vorderingsstaten deel B",null,null,null,null,null,null,null,null,null,null,null,null,null,null,null,null,null,null,null,null,null,null,null,null,null,null,null,null,null,null,null,"Vorderings % (excl.BTW)"]
[null,"Nr.",null,"Te herzien bedrag",null,null,null,null,null,"s","i","s/S","a*(s/S)","i/I","b*(i/I)","p","Herzieningsbedrag",null,null,null,null,null,"Bedrag excl. BTW",null,null,null,null,null,"BTW",null,null,null,null,null,"Bedrag incl BTW",null,null,null,null,null,null,"Nr.",null,"Te herzien bedrag",null,null,null,null,null,"Herzieningsbedrag",null,null,null,null,null,"Bedrag excl. BTW",null,null,null,null,null,"BTW",null,null,null,null,null,"Bedrag incl BTW"]
[null,"Tot.",null,{"$f":"SUM(D45:I64)","v":0},{"$f":"IFERROR(IF(SUM(E49:E1039)<>0,SUM(E49:E1039),\"\"),\"\")","v":""},"","","","",null,null,null,null,null,null,null,{"$f":"SUM(Q45:V64)","v":0},"","","","","",{"$f":"SUM(W45:AB64)","v":0},"","","","","",{"$f":"SUM(AC45:AH64)","v":0},"","","","","",{"$f":"SUM(AI45:AN64)","v":0},"","","","","",null,"Tot.",null,{"$f":"SUM(AR45:AW64)","v":0},{"$f":"IFERROR(IF(SUM(AS49:AS1039)<>0,SUM(AS49:AS1039),\"\"),\"\")","v":""},"","","","",{"$f":"SUM(AX45:BC64)","v":0},{"$f":"IFERROR(IF(SUM(AY49:AY1039)<>0,SUM(AY49:AY1039),\"\"),\"\")","v":""},"","","","",{"$f":"SUM(BD45:BI64)","v":0},{"$f":"IFERROR(IF(SUM(BE49:BE1039)<>0,SUM(BE49:BE1039),\"\"),\"\")","v":""},"","","","",{"$f":"SUM(BJ45:BO64)","v":0},{"$f":"IFERROR(IF(SUM(BK49:BK1039)<>0,SUM(BK49:BK1039),\"\"),\"\")","v":""},"","","","",{"$f":"SUM(BP45:BU64)","v":0},{"$f":"IFERROR(IF(SUM(BQ49:BQ1039)<>0,SUM(BQ49:BQ1039),\"\"),\"\")","v":""},"","","",""]
[null,0,null,0,null,null,null,null,null,null,null,null,null,null,null,null,0,null,null,null,null,null,0,null,null,null,null,null,0,null,null,null,null,null,0,null,null,null,null,null,null,0,null,0,null,null,null,null,null,0,null,null,null,null,null,0,null,null,null,null,null,0,null,null,null,null,null,0]
[null,1,null,null,null,null,null,null,null,null,null,{"$f":"(ROUND(J45/$BI$6,5))","v":{"$error":"#DIV/0!"}},{"$f":"(ROUND($BD$5*L45,5))","v":{"$error":"#DIV/0!"}},{"$f":"ROUND(K45/$BI$7,5)","v":{"$error":"#DIV/0!"}},{"$f":"ROUND($BJ$5*N45,5)","v":{"$error":"#DIV/0!"}},{"$f":"IF(AND(J45<>\"\",K45<>\"\"),ROUND(M45+O45+$BO$5,5),0)","v":0},{"$f":"IF(P45=0,0,(D45*P45)-D45)","v":0},null,null,null,null,null,{"$f":"D45+Q45","v":0},null,null,null,null,null,{"$f":"IF('2.Vorderingsstaat'!$AC$6=TRUE,\"BTW verlegd\",W45*$BA$19)","v":"BTW verlegd"},null,null,null,null,null,{"$f":"IF('2.Vorderingsstaat'!$AC$6=TRUE,\"BTW verlegd\",AC45+W45)","v":"BTW verlegd"},null,null,null,null,null,null,1,null,null,null,null,null,null,null,null,null,null,null,null,null,{"$f":"AR45+AX45","v":0},null,null,null,null,null,{"$f":"IF('2.Vorderingsstaat'!$AC$6=TRUE,\"BTW verlegd\",BD45*$BA$19)","v":"BTW verlegd"},null,null,null,null,null,{"$f":"IF('2.Vorderingsstaat'!$AC$6=TRUE,\"BTW verlegd\",BJ45+BD45)","v":"BTW verlegd"},null,null,null,null,null,{"$f":"IF(D45=\"\",0,IFERROR((D45+AR45)/$AC$15,0))","v":0}]
[null,2,null,null,null,null,null,null,null,null,null,{"$f":"(ROUND(J46/$BI$6,5))","v":{"$error":"#DIV/0!"}},{"$f":"(ROUND($BD$5*L46,5))","v":{"$error":"#DIV/0!"}},{"$f":"ROUND(K46/$BI$7,5)","v":{"$error":"#DIV/0!"}},{"$f":"ROUND($BJ$5*N46,5)","v":{"$error":"#DIV/0!"}},{"$f":"IF(AND(J46<>\"\",K46<>\"\"),ROUND(M46+O46+$BO$5,5),0)","v":0},{"$f":"IF(P46=0,0,(D46*P46)-D46)","v":0},null,null,null,null,null,{"$f":"D46+Q46","v":0},null,null,null,null,null,{"$f":"IF('2.Vorderingsstaat'!$AC$6=TRUE,\"BTW verlegd\",W46*$BA$19)","v":"BTW verlegd"},null,null,null,null,null,{"$f":"IF('2.Vorderingsstaat'!$AC$6=TRUE,\"BTW verlegd\",AC46+W46)","v":"BTW verlegd"},null,null,null,null,null,null,2,null,null,null,null,null,null,null,null,null,null,null,null,null,{"$f":"AR46+AX46","v":0},null,null,null,null,null,{"$f":"IF('2.Vorderingsstaat'!$AC$6=TRUE,\"BTW verlegd\",BD46*$BA$19)","v":"BTW verlegd"},null,null,null,null,null,{"$f":"IF('2.Vorderingsstaat'!$AC$6=TRUE,\"BTW verlegd\",BJ46+BD46)","v":"BTW verlegd"},null,null,null,null,null,{"$f":"IF(D46=\"\",0,IFERROR((SUM($AR$45:AW46,$D$45:I46)/$AC$15),0))","v":0}]
[null,3,null,null,null,null,null,null,null,null,null,{"$error":"#DIV/0!"},{"$error":"#DIV/0!"},{"$error":"#DIV/0!"},{"$error":"#DIV/0!"},0,0,null,null,null,null,null,0,null,null,null,null,null,{"$f":"IF('2.Vorderingsstaat'!$AC$6=TRUE,\"BTW verlegd\",W47*$BA$19)","v":"BTW verlegd"},null,null,null,null,null,{"$f":"IF('2.Vorderingsstaat'!$AC$6=TRUE,\"BTW verlegd\",AC47+W47)","v":"BTW verlegd"},null,null,null,null,null,null,3,null,null,null,null,null,null,null,null,null,null,null,null,null,0,null,null,null,null,null,{"$f":"IF('2.Vorderingsstaat'!$AC$6=TRUE,\"BTW verlegd\",BD47*$BA$19)","v":"BTW verlegd"},null,null,null,null,null,{"$f":"IF('2.Vorderingsstaat'!$AC$6=TRUE,\"BTW verlegd\",BJ47+BD47)","v":"BTW verlegd"},null,null,null,null,null,{"$f":"IF(D47=\"\",0,IFERROR((SUM($AR$45:AW47,$D$45:I47)/$AC$15),0))","v":0}]
[null,4,null,null,null,null,null,null,null,null,null,{"$error":"#DIV/0!"},{"$error":"#DIV/0!"},{"$error":"#DIV/0!"},{"$error":"#DIV/0!"},0,0,null,null,null,null,null,0,null,null,null,null,null,{"$f":"IF('2.Vorderingsstaat'!$AC$6=TRUE,\"BTW verlegd\",W48*$BA$19)","v":"BTW verlegd"},null,null,null,null,null,{"$f":"IF('2.Vorderingsstaat'!$AC$6=TRUE,\"BTW verlegd\",AC48+W48)","v":"BTW verlegd"},null,null,null,null,null,null,4,null,null,null,null,null,null,null,null,null,null,null,null,null,0,null,null,null,null,null,{"$f":"IF('2.Vorderingsstaat'!$AC$6=TRUE,\"BTW verlegd\",BD48*$BA$19)","v":"BTW verlegd"},null,null,null,null,null,{"$f":"IF('2.Vorderingsstaat'!$AC$6=TRUE,\"BTW verlegd\",BJ48+BD48)","v":"BTW verlegd"},null,null,null,null,null,{"$f":"IF(D48=\"\",0,IFERROR((SUM($AR$45:AW48,$D$45:I48)/$AC$15),0))","v":0}]
[null,5,null,null,null,null,null,null,null,null,null,{"$error":"#DIV/0!"},{"$error":"#DIV/0!"},{"$error":"#DIV/0!"},{"$error":"#DIV/0!"},0,0,null,null,null,null,null,0,null,null,null,null,null,{"$f":"IF('2.Vorderingsstaat'!$AC$6=TRUE,\"BTW verlegd\",W49*$BA$19)","v":"BTW verlegd"},null,null,null,null,null,{"$f":"IF('2.Vorderingsstaat'!$AC$6=TRUE,\"BTW verlegd\",AC49+W49)","v":"BTW verlegd"},null,null,null,null,null,null,5,null,null,null,null,null,null,null,null,null,null,null,null,null,0,null,null,null,null,null,{"$f":"IF('2.Vorderingsstaat'!$AC$6=TRUE,\"BTW verlegd\",BD49*$BA$19)","v":"BTW verlegd"},null,null,null,null,null,{"$f":"IF('2.Vorderingsstaat'!$AC$6=TRUE,\"BTW verlegd\",BJ49+BD49)","v":"BTW verlegd"},null,null,null,null,null,{"$f":"IF(D49=\"\",0,IFERROR((SUM($AR$45:AW49,$D$45:I49)/$AC$15),0))","v":0}]
[null,6,null,null,null,null,null,null,null,null,null,{"$error":"#DIV/0!"},{"$error":"#DIV/0!"},{"$error":"#DIV/0!"},{"$error":"#DIV/0!"},0,0,null,null,null,null,null,0,null,null,null,null,null,{"$f":"IF('2.Vorderingsstaat'!$AC$6=TRUE,\"BTW verlegd\",W50*$BA$19)","v":"BTW verlegd"},null,null,null,null,null,{"$f":"IF('2.Vorderingsstaat'!$AC$6=TRUE,\"BTW verlegd\",AC50+W50)","v":"BTW verlegd"},null,null,null,null,null,null,6,null,null,null,null,null,null,null,null,null,null,null,null,null,0,null,null,null,null,null,{"$f":"IF('2.Vorderingsstaat'!$AC$6=TRUE,\"BTW verlegd\",BD50*$BA$19)","v":"BTW verlegd"},null,null,null,null,null,{"$f":"IF('2.Vorderingsstaat'!$AC$6=TRUE,\"BTW verlegd\",BJ50+BD50)","v":"BTW verlegd"},null,null,null,null,null,{"$f":"IF(D50=\"\",0,IFERROR((SUM($AR$45:AW50,$D$45:I50)/$AC$15),0))","v":0}]
[null,7,null,null,null,null,null,null,null,null,null,{"$error":"#DIV/0!"},{"$error":"#DIV/0!"},{"$error":"#DIV/0!"},{"$error":"#DIV/0!"},0,0,null,null,null,null,null,0,null,null,null,null,null,{"$f":"IF('2.Vorderingsstaat'!$AC$6=TRUE,\"BTW verlegd\",W51*$BA$19)","v":"BTW verlegd"},null,null,null,null,null,{"$f":"IF('2.Vorderingsstaat'!$AC$6=TRUE,\"BTW verlegd\",AC51+W51)","v":"BTW verlegd"},null,null,null,null,null,null,7,null,null,null,null,null,null,null,null,null,null,null,null,null,0,null,null,null,null,null,{"$f":"IF('2.Vorderingsstaat'!$AC$6=TRUE,\"BTW verlegd\",BD51*$BA$19)","v":"BTW verlegd"},null,null,null,null,null,{"$f":"IF('2.Vorderingsstaat'!$AC$6=TRUE,\"BTW verlegd\",BJ51+BD51)","v":"BTW verlegd"},null,null,null,null,null,{"$f":"IF(D51=\"\",0,IFERROR((SUM($AR$45:AW51,$D$45:I51)/$AC$15),0))","v":0}]
[null,8,null,null,null,null,null,null,null,null,null,{"$error":"#DIV/0!"},{"$error":"#DIV/0!"},{"$error":"#DIV/0!"},{"$error":"#DIV/0!"},0,0,null,null,null,null,null,0,null,null,null,null,null,{"$f":"IF('2.Vorderingsstaat'!$AC$6=TRUE,\"BTW verlegd\",W52*$BA$19)","v":"BTW verlegd"},null,null,null,null,null,{"$f":"IF('2.Vorderingsstaat'!$AC$6=TRUE,\"BTW verlegd\",AC52+W52)","v":"BTW verlegd"},null,null,null,null,null,null,8,null,null,null,null,null,null,null,null,null,null,null,null,null,0,null,null,null,null,null,{"$f":"IF('2.Vorderingsstaat'!$AC$6=TRUE,\"BTW verlegd\",BD52*$BA$19)","v":"BTW verlegd"},null,null,null,null,null,{"$f":"IF('2.Vorderingsstaat'!$AC$6=TRUE,\"BTW verlegd\",BJ52+BD52)","v":"BTW verlegd"},null,null,null,null,null,{"$f":"IF(D52=\"\",0,IFERROR((SUM($AR$45:AW52,$D$45:I52)/$AC$15),0))","v":0}]
[null,9,null,null,null,null,null,null,null,null,null,{"$error":"#DIV/0!"},{"$error":"#DIV/0!"},{"$error":"#DIV/0!"},{"$error":"#DIV/0!"},0,0,null,null,null,null,null,0,null,null,null,null,null,{"$f":"IF('2.Vorderingsstaat'!$AC$6=TRUE,\"BTW verlegd\",W53*$BA$19)","v":"BTW verlegd"},null,null,null,null,null,{"$f":"IF('2.Vorderingsstaat'!$AC$6=TRUE,\"BTW verlegd\",AC53+W53)","v":"BTW verlegd"},null,null,null,null,null,null,9,null,null,null,null,null,null,null,null,null,null,null,null,null,0,null,null,null,null,null,{"$f":"IF('2.Vorderingsstaat'!$AC$6=TRUE,\"BTW verlegd\",BD53*$BA$19)","v":"BTW verlegd"},null,null,null,null,null,{"$f":"IF('2.Vorderingsstaat'!$AC$6=TRUE,\"BTW verlegd\",BJ53+BD53)","v":"BTW verlegd"},null,null,null,null,null,{"$f":"IF(D53=\"\",0,IFERROR((SUM($AR$45:AW53,$D$45:I53)/$AC$15),0))","v":0}]
[null,10,null,null,null,null,null,null,null,null,null,{"$error":"#DIV/0!"},{"$error":"#DIV/0!"},{"$error":"#DIV/0!"},{"$error":"#DIV/0!"},0,0,null,null,null,null,null,0,null,null,null,null,null,{"$f":"IF('2.Vorderingsstaat'!$AC$6=TRUE,\"BTW verlegd\",W54*$BA$19)","v":"BTW verlegd"},null,null,null,null,null,{"$f":"IF('2.Vorderingsstaat'!$AC$6=TRUE,\"BTW verlegd\",AC54+W54)","v":"BTW verlegd"},null,null,null,null,null,null,10,null,null,null,null,null,null,null,null,null,null,null,null,null,0,null,null,null,null,null,{"$f":"IF('2.Vorderingsstaat'!$AC$6=TRUE,\"BTW verlegd\",BD54*$BA$19)","v":"BTW verlegd"},null,null,null,null,null,{"$f":"IF('2.Vorderingsstaat'!$AC$6=TRUE,\"BTW verlegd\",BJ54+BD54)","v":"BTW verlegd"},null,null,null,null,null,{"$f":"IF(D54=\"\",0,IFERROR((SUM($AR$45:AW54,$D$45:I54)/$AC$15),0))","v":0}]
[null,11,null,null,null,null,null,null,null,null,null,{"$error":"#DIV/0!"},{"$error":"#DIV/0!"},{"$error":"#DIV/0!"},{"$error":"#DIV/0!"},0,0,null,null,null,null,null,0,null,null,null,null,null,{"$f":"IF('2.Vorderingsstaat'!$AC$6=TRUE,\"BTW verlegd\",W55*$BA$19)","v":"BTW verlegd"},null,null,null,null,null,{"$f":"IF('2.Vorderingsstaat'!$AC$6=TRUE,\"BTW verlegd\",AC55+W55)","v":"BTW verlegd"},null,null,null,null,null,null,11,null,null,null,null,null,null,null,null,null,null,null,null,null,0,null,null,null,null,null,{"$f":"IF('2.Vorderingsstaat'!$AC$6=TRUE,\"BTW verlegd\",BD55*$BA$19)","v":"BTW verlegd"},null,null,null,null,null,{"$f":"IF('2.Vorderingsstaat'!$AC$6=TRUE,\"BTW verlegd\",BJ55+BD55)","v":"BTW verlegd"},null,null,null,null,null,{"$f":"IF(D55=\"\",0,IFERROR((SUM($AR$45:AW55,$D$45:I55)/$AC$15),0))","v":0}]
[null,12,null,null,null,null,null,null,null,null,null,{"$error":"#DIV/0!"},{"$error":"#DIV/0!"},{"$error":"#DIV/0!"},{"$error":"#DIV/0!"},0,0,null,null,null,null,null,0,null,null,null,null,null,{"$f":"IF('2.Vorderingsstaat'!$AC$6=TRUE,\"BTW verlegd\",W56*$BA$19)","v":"BTW verlegd"},null,null,null,null,null,{"$f":"IF('2.Vorderingsstaat'!$AC$6=TRUE,\"BTW verlegd\",AC56+W56)","v":"BTW verlegd"},null,null,null,null,null,null,12,null,null,null,null,null,null,null,null,null,null,null,null,null,0,null,null,null,null,null,{"$f":"IF('2.Vorderingsstaat'!$AC$6=TRUE,\"BTW verlegd\",BD56*$BA$19)","v":"BTW verlegd"},null,null,null,null,null,{"$f":"IF('2.Vorderingsstaat'!$AC$6=TRUE,\"BTW verlegd\",BJ56+BD56)","v":"BTW verlegd"},null,null,null,null,null,{"$f":"IF(D56=\"\",0,IFERROR((SUM($AR$45:AW56,$D$45:I56)/$AC$15),0))","v":0}]
[null,13,null,null,null,null,null,null,null,null,null,{"$error":"#DIV/0!"},{"$error":"#DIV/0!"},{"$error":"#DIV/0!"},{"$error":"#DIV/0!"},0,0,null,null,null,null,null,0,null,null,null,null,null,{"$f":"IF('2.Vorderingsstaat'!$AC$6=TRUE,\"BTW verlegd\",W57*$BA$19)","v":"BTW verlegd"},null,null,null,null,null,{"$f":"IF('2.Vorderingsstaat'!$AC$6=TRUE,\"BTW verlegd\",AC57+W57)","v":"BTW verlegd"},null,null,null,null,null,null,13,null,null,null,null,null,null,null,null,null,null,null,null,null,0,null,null,null,null,null,{"$f":"IF('2.Vorderingsstaat'!$AC$6=TRUE,\"BTW verlegd\",BD57*$BA$19)","v":"BTW verlegd"},null,null,null,null,null,{"$f":"IF('2.Vorderingsstaat'!$AC$6=TRUE,\"BTW verlegd\",BJ57+BD57)","v":"BTW verlegd"},null,null,null,null,null,{"$f":"IF(D57=\"\",0,IFERROR((SUM($AR$45:AW57,$D$45:I57)/$AC$15),0))","v":0}]
[null,14,null,null,null,null,null,null,null,null,null,{"$error":"#DIV/0!"},{"$error":"#DIV/0!"},{"$error":"#DIV/0!"},{"$error":"#DIV/0!"},0,0,null,null,null,null,null,0,null,null,null,null,null,{"$f":"IF('2.Vorderingsstaat'!$AC$6=TRUE,\"BTW verlegd\",W58*$BA$19)","v":"BTW verlegd"},null,null,null,null,null,{"$f":"IF('2.Vorderingsstaat'!$AC$6=TRUE,\"BTW verlegd\",AC58+W58)","v":"BTW verlegd"},null,null,null,null,null,null,14,null,null,null,null,null,null,null,null,null,null,null,null,null,0,null,null,null,null,null,{"$f":"IF('2.Vorderingsstaat'!$AC$6=TRUE,\"BTW verlegd\",BD58*$BA$19)","v":"BTW verlegd"},null,null,null,null,null,{"$f":"IF('2.Vorderingsstaat'!$AC$6=TRUE,\"BTW verlegd\",BJ58+BD58)","v":"BTW verlegd"},null,null,null,null,null,{"$f":"IF(D58=\"\",0,IFERROR((SUM($AR$45:AW58,$D$45:I58)/$AC$15),0))","v":0}]
[null,15,null,null,null,null,null,null,null,null,null,{"$error":"#DIV/0!"},{"$error":"#DIV/0!"},{"$error":"#DIV/0!"},{"$error":"#DIV/0!"},0,0,null,null,null,null,null,0,null,null,null,null,null,{"$f":"IF('2.Vorderingsstaat'!$AC$6=TRUE,\"BTW verlegd\",W59*$BA$19)","v":"BTW verlegd"},null,null,null,null,null,{"$f":"IF('2.Vorderingsstaat'!$AC$6=TRUE,\"BTW verlegd\",AC59+W59)","v":"BTW verlegd"},null,null,null,null,null,null,15,null,null,null,null,null,null,null,null,null,null,null,null,null,0,null,null,null,null,null,{"$f":"IF('2.Vorderingsstaat'!$AC$6=TRUE,\"BTW verlegd\",BD59*$BA$19)","v":"BTW verlegd"},null,null,null,null,null,{"$f":"IF('2.Vorderingsstaat'!$AC$6=TRUE,\"BTW verlegd\",BJ59+BD59)","v":"BTW verlegd"},null,null,null,null,null,{"$f":"IF(D59=\"\",0,IFERROR((SUM($AR$45:AW59,$D$45:I59)/$AC$15),0))","v":0}]
[null,16,null,null,null,null,null,null,null,null,null,{"$error":"#DIV/0!"},{"$error":"#DIV/0!"},{"$error":"#DIV/0!"},{"$error":"#DIV/0!"},0,0,null,null,null,null,null,0,null,null,null,null,null,{"$f":"IF('2.Vorderingsstaat'!$AC$6=TRUE,\"BTW verlegd\",W60*$BA$19)","v":"BTW verlegd"},null,null,null,null,null,{"$f":"IF('2.Vorderingsstaat'!$AC$6=TRUE,\"BTW verlegd\",AC60+W60)","v":"BTW verlegd"},null,null,null,null,null,null,16,null,null,null,null,null,null,null,null,null,null,null,null,null,0,null,null,null,null,null,{"$f":"IF('2.Vorderingsstaat'!$AC$6=TRUE,\"BTW verlegd\",BD60*$BA$19)","v":"BTW verlegd"},null,null,null,null,null,{"$f":"IF('2.Vorderingsstaat'!$AC$6=TRUE,\"BTW verlegd\",BJ60+BD60)","v":"BTW verlegd"},null,null,null,null,null,{"$f":"IF(D60=\"\",0,IFERROR((SUM($AR$45:AW60,$D$45:I60)/$AC$15),0))","v":0}]
[null,17,null,null,null,null,null,null,null,null,null,{"$error":"#DIV/0!"},{"$error":"#DIV/0!"},{"$error":"#DIV/0!"},{"$error":"#DIV/0!"},0,0,null,null,null,null,null,0,null,null,null,null,null,{"$f":"IF('2.Vorderingsstaat'!$AC$6=TRUE,\"BTW verlegd\",W61*$BA$19)","v":"BTW verlegd"},null,null,null,null,null,{"$f":"IF('2.Vorderingsstaat'!$AC$6=TRUE,\"BTW verlegd\",AC61+W61)","v":"BTW verlegd"},null,null,null,null,null,null,17,null,null,null,null,null,null,null,null,null,null,null,null,null,0,null,null,null,null,null,{"$f":"IF('2.Vorderingsstaat'!$AC$6=TRUE,\"BTW verlegd\",BD61*$BA$19)","v":"BTW verlegd"},null,null,null,null,null,{"$f":"IF('2.Vorderingsstaat'!$AC$6=TRUE,\"BTW verlegd\",BJ61+BD61)","v":"BTW verlegd"},null,null,null,null,null,{"$f":"IF(D61=\"\",0,IFERROR((SUM($AR$45:AW61,$D$45:I61)/$AC$15),0))","v":0}]
[null,18,null,null,null,null,null,null,null,null,null,{"$error":"#DIV/0!"},{"$error":"#DIV/0!"},{"$error":"#DIV/0!"},{"$error":"#DIV/0!"},0,0,null,null,null,null,null,0,null,null,null,null,null,{"$f":"IF('2.Vorderingsstaat'!$AC$6=TRUE,\"BTW verlegd\",W62*$BA$19)","v":"BTW verlegd"},null,null,null,null,null,{"$f":"IF('2.Vorderingsstaat'!$AC$6=TRUE,\"BTW verlegd\",AC62+W62)","v":"BTW verlegd"},null,null,null,null,null,null,18,null,null,null,null,null,null,null,null,null,null,null,null,null,0,null,null,null,null,null,{"$f":"IF('2.Vorderingsstaat'!$AC$6=TRUE,\"BTW verlegd\",BD62*$BA$19)","v":"BTW verlegd"},null,null,null,null,null,{"$f":"IF('2.Vorderingsstaat'!$AC$6=TRUE,\"BTW verlegd\",BJ62+BD62)","v":"BTW verlegd"},null,null,null,null,null,{"$f":"IF(D62=\"\",0,IFERROR((SUM($AR$45:AW62,$D$45:I62)/$AC$15),0))","v":0}]
[null,19,null,null,null,null,null,null,null,null,null,{"$error":"#DIV/0!"},{"$error":"#DIV/0!"},{"$error":"#DIV/0!"},{"$error":"#DIV/0!"},0,0,null,null,null,null,null,0,null,null,null,null,null,{"$f":"IF('2.Vorderingsstaat'!$AC$6=TRUE,\"BTW verlegd\",W63*$BA$19)","v":"BTW verlegd"},null,null,null,null,null,{"$f":"IF('2.Vorderingsstaat'!$AC$6=TRUE,\"BTW verlegd\",AC63+W63)","v":"BTW verlegd"},null,null,null,null,null,null,19,null,null,null,null,null,null,null,null,null,null,null,null,null,0,null,null,null,null,null,{"$f":"IF('2.Vorderingsstaat'!$AC$6=TRUE,\"BTW verlegd\",BD63*$BA$19)","v":"BTW verlegd"},null,null,null,null,null,{"$f":"IF('2.Vorderingsstaat'!$AC$6=TRUE,\"BTW verlegd\",BJ63+BD63)","v":"BTW verlegd"},null,null,null,null,null,{"$f":"IF(D63=\"\",0,IFERROR((SUM($AR$45:AW63,$D$45:I63)/$AC$15),0))","v":0}]
[null,20,null,null,null,null,null,null,null,null,null,{"$error":"#DIV/0!"},{"$error":"#DIV/0!"},{"$error":"#DIV/0!"},{"$error":"#DIV/0!"},0,0,null,null,null,null,null,0,null,null,null,null,null,{"$f":"IF('2.Vorderingsstaat'!$AC$6=TRUE,\"BTW verlegd\",W64*$BA$19)","v":"BTW verlegd"},null,null,null,null,null,{"$f":"IF('2.Vorderingsstaat'!$AC$6=TRUE,\"BTW verlegd\",AC64+W64)","v":"BTW verlegd"},null,null,null,null,null,null,20,null,null,null,null,null,null,null,null,null,null,null,null,null,0,null,null,null,null,null,{"$f":"IF('2.Vorderingsstaat'!$AC$6=TRUE,\"BTW verlegd\",BD64*$BA$19)","v":"BTW verlegd"},null,null,null,null,null,{"$f":"IF('2.Vorderingsstaat'!$AC$6=TRUE,\"BTW verlegd\",BJ64+BD64)","v":"BTW verlegd"},null,null,null,null,null,{"$f":"IF(D64=\"\",0,IFERROR((SUM($AR$45:AW64,$D$45:I64)/$AC$15),0))","v":0}]
[]
[null,"OVERZICHT VORDERINGSSTATEN DEEL GEMEENSCHAPPELIJK"]
[null,"Overzicht vorderingsstaten deel A",null,null,null,null,null,null,null,null,null,null,null,null,null,null,null,null,null,null,null,null,null,null,null,null,null,null,null,null,null,null,null,null,null,null,null,null,null,null,null,"Overzicht vorderingsstaten deel B",null,null,null,null,null,null,null,null,null,null,null,null,null,null,null,null,null,null,null,null,null,null,null,null,null,null,null,null,null,null,null,"Vorderings %\n(excl.BTW)"]
[null,"Nr.",null,"Te herzien bedrag",null,null,null,null,null,"s","i","s/S","a*(s/S)","i/I","b*(i/I)","p","Herzieningsbedrag",null,null,null,null,null,"Bedrag excl. BTW",null,null,null,null,null,null,null,null,null,null,null,null,null,null,null,null,null,null,"Nr.",null,"Te herzien bedrag",null,null,null,null,null,"Herzieningsbedrag",null,null,null,null,null,"Bedrag excl. BTW"]
[null,"Tot.",null,{"$f":"SUM(D71:I90)","v":0},{"$f":"IFERROR(IF(SUM(E75:E1065)<>0,SUM(E75:E1065),\"\"),\"\")","v":""},"","","","",null,null,null,null,null,null,null,{"$f":"SUM(Q71:V90)","v":0},{"$f":"IFERROR(IF(SUM(R75:R1065)<>0,SUM(R75:R1065),\"\"),\"\")","v":""},"","","","",{"$f":"SUM(W71:AB90)","v":0},{"$f":"IFERROR(IF(SUM(X75:X1065)<>0,SUM(X75:X1065),\"\"),\"\")","v":""},"","","","",null,null,null,null,null,null,null,null,null,null,null,null,null,"Tot.",null,{"$f":"SUM(AR71:AW90)","v":0},{"$f":"IFERROR(IF(SUM(AS75:AS1065)<>0,SUM(AS75:AS1065),\"\"),\"\")","v":""},{"$f":"IFERROR(IF(SUM(AT75:AT1065)<>0,SUM(AT75:AT1065),\"\"),\"\")","v":""},{"$f":"IFERROR(IF(SUM(AU75:AU1065)<>0,SUM(AU75:AU1065),\"\"),\"\")","v":""},{"$f":"IFERROR(IF(SUM(AV75:AV1065)<>0,SUM(AV75:AV1065),\"\"),\"\")","v":""},{"$f":"IFERROR(IF(SUM(AW75:AW1065)<>0,SUM(AW75:AW1065),\"\"),\"\")","v":""},{"$f":"SUM(AX71:BC90)","v":0},{"$f":"IFERROR(IF(SUM(AY75:AY1065)<>0,SUM(AY75:AY1065),\"\"),\"\")","v":""},{"$f":"IFERROR(IF(SUM(AZ75:AZ1065)<>0,SUM(AZ75:AZ1065),\"\"),\"\")","v":""},{"$f":"IFERROR(IF(SUM(BA75:BA1065)<>0,SUM(BA75:BA1065),\"\"),\"\")","v":""},{"$f":"IFERROR(IF(SUM(BB75:BB1065)<>0,SUM(BB75:BB1065),\"\"),\"\")","v":""},{"$f":"IFERROR(IF(SUM(BC75:BC1065)<>0,SUM(BC75:BC1065),\"\"),\"\")","v":""},{"$f":"SUM(BD71:BI90)","v":0},{"$f":"IFERROR(IF(SUM(BE75:BE1065)<>0,SUM(BE75:BE1065),\"\"),\"\")","v":""},{"$f":"IFERROR(IF(SUM(BF75:BF1065)<>0,SUM(BF75:BF1065),\"\"),\"\")","v":""},{"$f":"IFERROR(IF(SUM(BG75:BG1065)<>0,SUM(BG75:BG1065),\"\"),\"\")","v":""},{"$f":"IFERROR(IF(SUM(BH75:BH1065)<>0,SUM(BH75:BH1065),\"\"),\"\")","v":""},{"$f":"IFERROR(IF(SUM(BI75:BI1065)<>0,SUM(BI75:BI1065),\"\"),\"\")","v":""}]
[null,0,null,0,null,null,null,null,null,null,null,null,null,null,null,null,0,null,null,null,null,null,0,null,null,null,null,null,null,null,null,null,null,null,null,null,null,null,null,null,null,0,null,0,null,null,null,null,null,0,null,null,null,null,null,0]
[null,1,null,null,null,null,null,null,null,null,null,{"$f":"(ROUND(J71/$BI$6,5))","v":{"$error":"#DIV/0!"}},{"$f":"(ROUND($BD$5*L71,5))","v":{"$error":"#DIV/0!"}},{"$f":"ROUND(K71/$BI$7,5)","v":{"$error":"#DIV/0!"}},{"$f":"ROUND($BJ$5*N71,5)","v":{"$error":"#DIV/0!"}},{"$f":"IF(AND(J71<>\"\",K71<>\"\"),ROUND(M71+O71+$BO$5,5),0)","v":0},{"$f":"IF(P71=0,0,(D71*P71)-D71)","v":0},null,null,null,null,null,{"$f":"D71+Q71","v":0},null,null,null,null,null,null,null,null,null,null,null,null,null,null,null,null,null,null,1,null,null,null,null,null,null,null,null,null,null,null,null,null,{"$f":"AR71+AX71","v":0},null,null,null,null,null,null,null,null,null,null,null,null,null,null,null,null,null,{"$f":"IF(D71=\"\",0,IFERROR((D71+AR71)/$AC$23,0))","v":0}]
[null,2,null,null,null,null,null,null,null,null,null,{"$f":"(ROUND(J72/$BI$6,5))","v":{"$error":"#DIV/0!"}},{"$f":"(ROUND($BD$5*L72,5))","v":{"$error":"#DIV/0!"}},{"$f":"ROUND(K72/$BI$7,5)","v":{"$error":"#DIV/0!"}},{"$f":"ROUND($BJ$5*N72,5)","v":{"$error":"#DIV/0!"}},{"$f":"IF(AND(J72<>\"\",K72<>\"\"),ROUND(M72+O72+$BO$5,5),0)","v":0},{"$f":"IF(P72=0,0,(D72*P72)-D72)","v":0},null,null,null,null,null,{"$f":"D72+Q72","v":0},null,null,null,null,null,null,null,null,null,null,null,null,null,null,null,null,null,null,2,null,null,null,null,null,null,null,null,null,null,null,null,null,{"$f":"AR72+AX72","v":0},null,null,null,null,null,null,null,null,null,null,null,null,null,null,null,null,null,{"$f":"IF(D72=\"\",0,IFERROR((SUM($AR$71:AW72,$D$71:I72)/$AC$23),0))","v":0}]
[null,3,null,null,null,null,null,null,null,null,null,{"$error":"#DIV/0!"},{"$error":"#DIV/0!"},{"$error":"#DIV/0!"},{"$error":"#DIV/0!"},0,0,null,null,null,null,null,0,null,null,null,null,null,null,null,null,null,null,null,null,null,null,null,null,null,null,3,null,null,null,null,null,null,null,null,null,null,null,null,null,0,null,null,null,null,null,null,null,null,null,null,null,null,null,null,null,null,null,{"$f":"IF(D73=\"\",0,IFERROR((SUM($AR$71:AW73,$D$71:I73)/$AC$23),0))","v":0}]
[null,4,null,null,null,null,null,null,null,null,null,{"$error":"#DIV/0!"},{"$error":"#DIV/0!"},{"$error":"#DIV/0!"},{"$error":"#DIV/0!"},0,0,null,null,null,null,null,0,null,null,null,null,null,null,null,null,null,null,null,null,null,null,null,null,null,null,4,null,null,null,null,null,null,null,null,null,null,null,null,null,0,null,null,null,null,null,null,null,null,null,null,null,null,null,null,null,null,null,{"$f":"IF(D74=\"\",0,IFERROR((SUM($AR$71:AW74,$D$71:I74)/$AC$23),0))","v":0}]
[null,5,null,null,null,null,null,null,null,null,null,{"$error":"#DIV/0!"},{"$error":"#DIV/0!"},{"$error":"#DIV/0!"},{"$error":"#DIV/0!"},0,0,null,null,null,null,null,0,null,null,null,null,null,null,null,null,null,null,null,null,null,null,null,null,null,null,5,null,null,null,null,null,null,null,null,null,null,null,null,null,0,null,null,null,null,null,null,null,null,null,null,null,null,null,null,null,null,null,{"$f":"IF(D75=\"\",0,IFERROR((SUM($AR$71:AW75,$D$71:I75)/$AC$23),0))","v":0}]
[null,6,null,null,null,null,null,null,null,null,null,{"$error":"#DIV/0!"},{"$error":"#DIV/0!"},{"$error":"#DIV/0!"},{"$error":"#DIV/0!"},0,0,null,null,null,null,null,0,null,null,null,null,null,null,null,null,null,null,null,null,null,null,null,null,null,null,6,null,null,null,null,null,null,null,null,null,null,null,null,null,0,null,null,null,null,null,null,null,null,null,null,null,null,null,null,null,null,null,{"$f":"IF(D76=\"\",0,IFERROR((SUM($AR$71:AW76,$D$71:I76)/$AC$23),0))","v":0}]
[null,7,null,null,null,null,null,null,null,null,null,{"$error":"#DIV/0!"},{"$error":"#DIV/0!"},{"$error":"#DIV/0!"},{"$error":"#DIV/0!"},0,0,null,null,null,null,null,0,null,null,null,null,null,null,null,null,null,null,null,null,null,null,null,null,null,null,7,null,null,null,null,null,null,null,null,null,null,null,null,null,0,null,null,null,null,null,null,null,null,null,null,null,null,null,null,null,null,null,{"$f":"IF(D77=\"\",0,IFERROR((SUM($AR$71:AW77,$D$71:I77)/$AC$23),0))","v":0}]
[null,8,null,null,null,null,null,null,null,null,null,{"$error":"#DIV/0!"},{"$error":"#DIV/0!"},{"$error":"#DIV/0!"},{"$error":"#DIV/0!"},0,0,null,null,null,null,null,0,null,null,null,null,null,null,null,null,null,null,null,null,null,null,null,null,null,null,8,null,null,null,null,null,null,null,null,null,null,null,null,null,0,null,null,null,null,null,null,null,null,null,null,null,null,null,null,null,null,null,{"$f":"IF(D78=\"\",0,IFERROR((SUM($AR$71:AW78,$D$71:I78)/$AC$23),0))","v":0}]
[null,9,null,null,null,null,null,null,null,null,null,{"$error":"#DIV/0!"},{"$error":"#DIV/0!"},{"$error":"#DIV/0!"},{"$error":"#DIV/0!"},0,0,null,null,null,null,null,0,null,null,null,null,null,null,null,null,null,null,null,null,null,null,null,null,null,null,9,null,null,null,null,null,null,null,null,null,null,null,null,null,0,null,null,null,null,null,null,null,null,null,null,null,null,null,null,null,null,null,{"$f":"IF(D79=\"\",0,IFERROR((SUM($AR$71:AW79,$D$71:I79)/$AC$23),0))","v":0}]
[null,10,null,null,null,null,null,null,null,null,null,{"$error":"#DIV/0!"},{"$error":"#DIV/0!"},{"$error":"#DIV/0!"},{"$error":"#DIV/0!"},0,0,null,null,null,null,null,0,null,null,null,null,null,null,null,null,null,null,null,null,null,null,null,null,null,null,10,null,null,null,null,null,null,null,null,null,null,null,null,null,0,null,null,null,null,null,null,null,null,null,null,null,null,null,null,null,null,null,{"$f":"IF(D80=\"\",0,IFERROR((SUM($AR$71:AW80,$D$71:I80)/$AC$23),0))","v":0}]
[null,11,null,null,null,null,null,null,null,null,null,{"$error":"#DIV/0!"},{"$error":"#DIV/0!"},{"$error":"#DIV/0!"},{"$error":"#DIV/0!"},0,0,null,null,null,null,null,0,null,null,null,null,null,null,null,null,null,null,null,null,null,null,null,null,null,null,11,null,null,null,null,null,null,null,null,null,null,null,null,null,0,null,null,null,null,null,null,null,null,null,null,null,null,null,null,null,null,null,{"$f":"IF(D81=\"\",0,IFERROR((SUM($AR$71:AW81,$D$71:I81)/$AC$23),0))","v":0}]
[null,12,null,null,null,null,null,null,null,null,null,{"$error":"#DIV/0!"},{"$error":"#DIV/0!"},{"$error":"#DIV/0!"},{"$error":"#DIV/0!"},0,0,null,null,null,null,null,0,null,null,null,null,null,null,null,null,null,null,null,null,null,null,null,null,null,null,12,null,null,null,null,null,null,null,null,null,null,null,null,null,0,null,null,null,null,null,null,null,null,null,null,null,null,null,null,null,null,null,{"$f":"IF(D82=\"\",0,IFERROR((SUM($AR$71:AW82,$D$71:I82)/$AC$23),0))","v":0}]
[null,13,null,null,null,null,null,null,null,null,null,{"$error":"#DIV/0!"},{"$error":"#DIV/0!"},{"$error":"#DIV/0!"},{"$error":"#DIV/0!"},0,0,null,null,null,null,null,0,null,null,null,null,null,null,null,null,null,null,null,null,null,null,null,null,null,null,13,null,null,null,null,null,null,null,null,null,null,null,null,null,0,null,null,null,null,null,null,null,null,null,null,null,null,null,null,null,null,null,{"$f":"IF(D83=\"\",0,IFERROR((SUM($AR$71:AW83,$D$71:I83)/$AC$23),0))","v":0}]
[null,14,null,null,null,null,null,null,null,null,null,{"$error":"#DIV/0!"},{"$error":"#DIV/0!"},{"$error":"#DIV/0!"},{"$error":"#DIV/0!"},0,0,null,null,null,null,null,0,null,null,null,null,null,null,null,null,null,null,null,null,null,null,null,null,null,null,14,null,null,null,null,null,null,null,null,null,null,null,null,null,0,null,null,null,null,null,null,null,null,null,null,null,null,null,null,null,null,null,{"$f":"IF(D84=\"\",0,IFERROR((SUM($AR$71:AW84,$D$71:I84)/$AC$23),0))","v":0}]
[null,15,null,null,null,null,null,null,null,null,null,{"$error":"#DIV/0!"},{"$error":"#DIV/0!"},{"$error":"#DIV/0!"},{"$error":"#DIV/0!"},0,0,null,null,null,null,null,0,null,null,null,null,null,null,null,null,null,null,null,null,null,null,null,null,null,null,15,null,null,null,null,null,null,null,null,null,null,null,null,null,0,null,null,null,null,null,null,null,null,null,null,null,null,null,null,null,null,null,{"$f":"IF(D85=\"\",0,IFERROR((SUM($AR$71:AW85,$D$71:I85)/$AC$23),0))","v":0}]
[null,16,null,null,null,null,null,null,null,null,null,{"$error":"#DIV/0!"},{"$error":"#DIV/0!"},{"$error":"#DIV/0!"},{"$error":"#DIV/0!"},0,0,null,null,null,null,null,0,null,null,null,null,null,null,null,null,null,null,null,null,null,null,null,null,null,null,16,null,null,null,null,null,null,null,null,null,null,null,null,null,0,null,null,null,null,null,null,null,null,null,null,null,null,null,null,null,null,null,{"$f":"IF(D86=\"\",0,IFERROR((SUM($AR$71:AW86,$D$71:I86)/$AC$23),0))","v":0}]
[null,17,null,null,null,null,null,null,null,null,null,{"$error":"#DIV/0!"},{"$error":"#DIV/0!"},{"$error":"#DIV/0!"},{"$error":"#DIV/0!"},0,0,null,null,null,null,null,0,null,null,null,null,null,null,null,null,null,null,null,null,null,null,null,null,null,null,17,null,null,null,null,null,null,null,null,null,null,null,null,null,0,null,null,null,null,null,null,null,null,null,null,null,null,null,null,null,null,null,{"$f":"IF(D87=\"\",0,IFERROR((SUM($AR$71:AW87,$D$71:I87)/$AC$23),0))","v":0}]
[null,18,null,null,null,null,null,null,null,null,null,{"$error":"#DIV/0!"},{"$error":"#DIV/0!"},{"$error":"#DIV/0!"},{"$error":"#DIV/0!"},0,0,null,null,null,null,null,0,null,null,null,null,null,null,null,null,null,null,null,null,null,null,null,null,null,null,18,null,null,null,null,null,null,null,null,null,null,null,null,null,0,null,null,null,null,null,null,null,null,null,null,null,null,null,null,null,null,null,{"$f":"IF(D88=\"\",0,IFERROR((SUM($AR$71:AW88,$D$71:I88)/$AC$23),0))","v":0}]
[null,19,null,null,null,null,null,null,null,null,null,{"$error":"#DIV/0!"},{"$error":"#DIV/0!"},{"$error":"#DIV/0!"},{"$error":"#DIV/0!"},0,0,null,null,null,null,null,0,null,null,null,null,null,null,null,null,null,null,null,null,null,null,null,null,null,null,19,null,null,null,null,null,null,null,null,null,null,null,null,null,0,null,null,null,null,null,null,null,null,null,null,null,null,null,null,null,null,null,{"$f":"IF(D89=\"\",0,IFERROR((SUM($AR$71:AW89,$D$71:I89)/$AC$23),0))","v":0}]
[null,20,null,null,null,null,null,null,null,null,null,{"$error":"#DIV/0!"},{"$error":"#DIV/0!"},{"$error":"#DIV/0!"},{"$error":"#DIV/0!"},0,0,null,null,null,null,null,0,null,null,null,null,null,null,null,null,null,null,null,null,null,null,null,null,null,null,20,null,null,null,null,null,null,null,null,null,null,null,null,null,0,null,null,null,null,null,null,null,null,null,null,null,null,null,null,null,null,null,{"$f":"IF(D90=\"\",0,IFERROR((SUM($AR$71:AW90,$D$71:I90)/$AC$23),0))","v":0}]
[]
[null,"OVERZICHT VORDERINGSSTATEN DEEL Derden"]
[null,"Overzicht vorderingsstaten deel A",null,null,null,null,null,null,null,null,null,null,null,null,null,null,null,null,null,null,null,null,null,null,null,null,null,null,null,null,null,null,null,null,null,null,null,null,null,null,null,"Overzicht vorderingsstaten deel B",null,null,null,null,null,null,null,null,null,null,null,null,null,null,null,null,null,null,null,null,null,null,null,null,null,null,null,null,null,null,null,"Vorderings %\n(excl.BTW)"]
[null,"Nr.",null,"Te herzien bedrag",null,null,null,null,null,"s","i","s/S","a*(s/S)","i/I","b*(i/I)","p","Herzieningsbedrag",null,null,null,null,null,"Bedrag excl. BTW",null,null,null,null,null,"BTW",null,null,null,null,null,"Bedrag incl BTW",null,null,null,null,null,null,"Nr.",null,"Te herzien bedrag",null,null,null,null,null,"Herzieningsbedrag",null,null,null,null,null,"Bedrag excl. BTW",null,null,null,null,null,"BTW",null,null,null,null,null,"Bedrag incl BTW"]
[null,"Tot.",null,{"$f":"SUM(D97:I116)","v":0},{"$f":"IFERROR(IF(SUM(E101:E1091)<>0,SUM(E101:E1091),\"\"),\"\")","v":""},"","","","",null,null,null,null,null,null,null,{"$f":"SUM(Q97:V116)","v":0},{"$f":"IFERROR(IF(SUM(R101:R1091)<>0,SUM(R101:R1091),\"\"),\"\")","v":""},"","","","",{"$f":"SUM(W97:AB116)","v":0},{"$f":"IFERROR(IF(SUM(X101:X1091)<>0,SUM(X101:X1091),\"\"),\"\")","v":""},"","","","",{"$f":"SUM(AC97:AH116)","v":0},{"$f":"IFERROR(IF(SUM(AD101:AD1091)<>0,SUM(AD101:AD1091),\"\"),\"\")","v":""},"","","","",{"$f":"SUM(AI97:AN116)","v":0},{"$f":"IFERROR(IF(SUM(AJ101:AJ1091)<>0,SUM(AJ101:AJ1091),\"\"),\"\")","v":""},"","","","",null,"Tot.",null,{"$f":"SUM(AR97:AW116)","v":0},{"$f":"IFERROR(IF(SUM(AS101:AS1091)<>0,SUM(AS101:AS1091),\"\"),\"\")","v":""},"","","","",{"$f":"SUM(AX97:BC116)","v":0},{"$f":"IFERROR(IF(SUM(AY101:AY1091)<>0,SUM(AY101:AY1091),\"\"),\"\")","v":""},"","","","",{"$f":"SUM(BD97:BI116)","v":0},{"$f":"IFERROR(IF(SUM(BE101:BE1091)<>0,SUM(BE101:BE1091),\"\"),\"\")","v":""},"","","","",{"$f":"SUM(BJ97:BO116)","v":0},{"$f":"IFERROR(IF(SUM(BK101:BK1091)<>0,SUM(BK101:BK1091),\"\"),\"\")","v":""},"","","","",{"$f":"SUM(BP97:BU116)","v":0},{"$f":"IFERROR(IF(SUM(BQ101:BQ1091)<>0,SUM(BQ101:BQ1091),\"\"),\"\")","v":""},"","","",""]
[null,0,null,0,null,null,null,null,null,null,null,null,null,null,null,null,0,null,null,null,null,null,0,null,null,null,null,null,0,null,null,null,null,null,0,null,null,null,null,null,null,0,null,0,null,null,null,null,null,0,null,null,null,null,null,0,null,null,null,null,null,0,null,null,null,null,null,0]
[null,1,null,null,null,null,null,null,null,null,null,{"$f":"(ROUND(J97/$BI$6,5))","v":{"$error":"#DIV/0!"}},{"$f":"(ROUND($BD$5*L97,5))","v":{"$error":"#DIV/0!"}},{"$f":"ROUND(K97/$BI$7,5)","v":{"$error":"#DIV/0!"}},{"$f":"ROUND($BJ$5*N97,5)","v":{"$error":"#DIV/0!"}},{"$f":"IF(AND(J97<>\"\",K97<>\"\"),ROUND(M97+O97+$BO$5,5),0)","v":0},{"$f":"IF(P97=0,0,(D97*P97)-D97)","v":0},null,null,null,null,null,{"$f":"D97+Q97","v":0},null,null,null,null,null,{"$f":"IF('2.Vorderingsstaat'!$AC$6=TRUE,\"BTW verlegd\",W97*$BA$19)","v":"BTW verlegd"},null,null,null,null,null,{"$f":"IF('2.Vorderingsstaat'!$AC$6=TRUE,\"BTW verlegd\",AC97+W97)","v":"BTW verlegd"},null,null,null,null,null,null,1,null,null,null,null,null,null,null,null,null,null,null,null,null,{"$f":"AR97+AX97","v":0},null,null,null,null,null,{"$f":"IF('2.Vorderingsstaat'!$AC$6=TRUE,\"BTW verlegd\",BD97*$BA$19)","v":"BTW verlegd"},null,null,null,null,null,{"$f":"IF('2.Vorderingsstaat'!$AC$6=TRUE,\"BTW verlegd\",BJ97+BD97)","v":"BTW verlegd"},null,null,null,null,null,{"$f":"IFERROR((D97+AR97)/$AC$33,0)","v":0}]
[null,2,null,null,null,null,null,null,null,null,null,{"$f":"(ROUND(J98/$BI$6,5))","v":{"$error":"#DIV/0!"}},{"$f":"(ROUND($BD$5*L98,5))","v":{"$error":"#DIV/0!"}},{"$f":"ROUND(K98/$BI$7,5)","v":{"$error":"#DIV/0!"}},{"$f":"ROUND($BJ$5*N98,5)","v":{"$error":"#DIV/0!"}},{"$f":"IF(AND(J98<>\"\",K98<>\"\"),ROUND(M98+O98+$BO$5,5),0)","v":0},{"$f":"IF(P98=0,0,(D98*P98)-D98)","v":0},null,null,null,null,null,{"$f":"D98+Q98","v":0},null,null,null,null,null,{"$f":"IF('2.Vorderingsstaat'!$AC$6=TRUE,\"BTW verlegd\",W98*$BA$19)","v":"BTW verlegd"},null,null,null,null,null,{"$f":"IF('2.Vorderingsstaat'!$AC$6=TRUE,\"BTW verlegd\",AC98+W98)","v":"BTW verlegd"},null,null,null,null,null,null,2,null,null,null,null,null,null,null,null,null,null,null,null,null,{"$f":"AR98+AX98","v":0},null,null,null,null,null,{"$f":"IF('2.Vorderingsstaat'!$AC$6=TRUE,\"BTW verlegd\",BD98*$BA$19)","v":"BTW verlegd"},null,null,null,null,null,{"$f":"IF('2.Vorderingsstaat'!$AC$6=TRUE,\"BTW verlegd\",BJ98+BD98)","v":"BTW verlegd"},null,null,null,null,null,{"$f":"IF(D98=\"\",0,IFERROR((SUM($AR$97:AW98,$D$97:I98)/$AC$33),0))","v":0}]
[null,3,null,null,null,null,null,null,null,null,null,{"$error":"#DIV/0!"},{"$error":"#DIV/0!"},{"$error":"#DIV/0!"},{"$error":"#DIV/0!"},0,0,null,null,null,null,null,0,null,null,null,null,null,{"$f":"IF('2.Vorderingsstaat'!$AC$6=TRUE,\"BTW verlegd\",W99*$BA$19)","v":"BTW verlegd"},null,null,null,null,null,{"$f":"IF('2.Vorderingsstaat'!$AC$6=TRUE,\"BTW verlegd\",AC99+W99)","v":"BTW verlegd"},null,null,null,null,null,null,3,null,null,null,null,null,null,null,null,null,null,null,null,null,0,null,null,null,null,null,{"$f":"IF('2.Vorderingsstaat'!$AC$6=TRUE,\"BTW verlegd\",BD99*$BA$19)","v":"BTW verlegd"},null,null,null,null,null,{"$f":"IF('2.Vorderingsstaat'!$AC$6=TRUE,\"BTW verlegd\",BJ99+BD99)","v":"BTW verlegd"},null,null,null,null,null,{"$f":"IF(D99=\"\",0,IFERROR((SUM($AR$97:AW99,$D$97:I99)/$AC$33),0))","v":0}]
[null,4,null,null,null,null,null,null,null,null,null,{"$error":"#DIV/0!"},{"$error":"#DIV/0!"},{"$error":"#DIV/0!"},{"$error":"#DIV/0!"},0,0,null,null,null,null,null,0,null,null,null,null,null,{"$f":"IF('2.Vorderingsstaat'!$AC$6=TRUE,\"BTW verlegd\",W100*$BA$19)","v":"BTW verlegd"},null,null,null,null,null,{"$f":"IF('2.Vorderingsstaat'!$AC$6=TRUE,\"BTW verlegd\",AC100+W100)","v":"BTW verlegd"},null,null,null,null,null,null,4,null,null,null,null,null,null,null,null,null,null,null,null,null,0,null,null,null,null,null,{"$f":"IF('2.Vorderingsstaat'!$AC$6=TRUE,\"BTW verlegd\",BD100*$BA$19)","v":"BTW verlegd"},null,null,null,null,null,{"$f":"IF('2.Vorderingsstaat'!$AC$6=TRUE,\"BTW verlegd\",BJ100+BD100)","v":"BTW verlegd"},null,null,null,null,null,{"$f":"IF(D100=\"\",0,IFERROR((SUM($AR$97:AW100,$D$97:I100)/$AC$33),0))","v":0}]
[null,5,null,null,null,null,null,null,null,null,null,{"$error":"#DIV/0!"},{"$error":"#DIV/0!"},{"$error":"#DIV/0!"},{"$error":"#DIV/0!"},0,0,null,null,null,null,null,0,null,null,null,null,null,{"$f":"IF('2.Vorderingsstaat'!$AC$6=TRUE,\"BTW verlegd\",W101*$BA$19)","v":"BTW verlegd"},null,null,null,null,null,{"$f":"IF('2.Vorderingsstaat'!$AC$6=TRUE,\"BTW verlegd\",AC101+W101)","v":"BTW verlegd"},null,null,null,null,null,null,5,null,null,null,null,null,null,null,null,null,null,null,null,null,0,null,null,null,null,null,{"$f":"IF('2.Vorderingsstaat'!$AC$6=TRUE,\"BTW verlegd\",BD101*$BA$19)","v":"BTW verlegd"},null,null,null,null,null,{"$f":"IF('2.Vorderingsstaat'!$AC$6=TRUE,\"BTW verlegd\",BJ101+BD101)","v":"BTW verlegd"},null,null,null,null,null,{"$f":"IF(D101=\"\",0,IFERROR((SUM($AR$97:AW101,$D$97:I101)/$AC$33),0))","v":0}]
[null,6,null,null,null,null,null,null,null,null,null,{"$error":"#DIV/0!"},{"$error":"#DIV/0!"},{"$error":"#DIV/0!"},{"$error":"#DIV/0!"},0,0,null,null,null,null,null,0,null,null,null,null,null,{"$f":"IF('2.Vorderingsstaat'!$AC$6=TRUE,\"BTW verlegd\",W102*$BA$19)","v":"BTW verlegd"},null,null,null,null,null,{"$f":"IF('2.Vorderingsstaat'!$AC$6=TRUE,\"BTW verlegd\",AC102+W102)","v":"BTW verlegd"},null,null,null,null,null,null,6,null,null,null,null,null,null,null,null,null,null,null,null,null,0,null,null,null,null,null,{"$f":"IF('2.Vorderingsstaat'!$AC$6=TRUE,\"BTW verlegd\",BD102*$BA$19)","v":"BTW verlegd"},null,null,null,null,null,{"$f":"IF('2.Vorderingsstaat'!$AC$6=TRUE,\"BTW verlegd\",BJ102+BD102)","v":"BTW verlegd"},null,null,null,null,null,{"$f":"IF(D102=\"\",0,IFERROR((SUM($AR$97:AW102,$D$97:I102)/$AC$33),0))","v":0}]
[null,7,null,null,null,null,null,null,null,null,null,{"$error":"#DIV/0!"},{"$error":"#DIV/0!"},{"$error":"#DIV/0!"},{"$error":"#DIV/0!"},0,0,null,null,null,null,null,0,null,null,null,null,null,{"$f":"IF('2.Vorderingsstaat'!$AC$6=TRUE,\"BTW verlegd\",W103*$BA$19)","v":"BTW verlegd"},null,null,null,null,null,{"$f":"IF('2.Vorderingsstaat'!$AC$6=TRUE,\"BTW verlegd\",AC103+W103)","v":"BTW verlegd"},null,null,null,null,null,null,7,null,null,null,null,null,null,null,null,null,null,null,null,null,0,null,null,null,null,null,{"$f":"IF('2.Vorderingsstaat'!$AC$6=TRUE,\"BTW verlegd\",BD103*$BA$19)","v":"BTW verlegd"},null,null,null,null,null,{"$f":"IF('2.Vorderingsstaat'!$AC$6=TRUE,\"BTW verlegd\",BJ103+BD103)","v":"BTW verlegd"},null,null,null,null,null,{"$f":"IF(D103=\"\",0,IFERROR((SUM($AR$97:AW103,$D$97:I103)/$AC$33),0))","v":0}]
[null,8,null,null,null,null,null,null,null,null,null,{"$error":"#DIV/0!"},{"$error":"#DIV/0!"},{"$error":"#DIV/0!"},{"$error":"#DIV/0!"},0,0,null,null,null,null,null,0,null,null,null,null,null,{"$f":"IF('2.Vorderingsstaat'!$AC$6=TRUE,\"BTW verlegd\",W104*$BA$19)","v":"BTW verlegd"},null,null,null,null,null,{"$f":"IF('2.Vorderingsstaat'!$AC$6=TRUE,\"BTW verlegd\",AC104+W104)","v":"BTW verlegd"},null,null,null,null,null,null,8,null,null,null,null,null,null,null,null,null,null,null,null,null,0,null,null,null,null,null,{"$f":"IF('2.Vorderingsstaat'!$AC$6=TRUE,\"BTW verlegd\",BD104*$BA$19)","v":"BTW verlegd"},null,null,null,null,null,{"$f":"IF('2.Vorderingsstaat'!$AC$6=TRUE,\"BTW verlegd\",BJ104+BD104)","v":"BTW verlegd"},null,null,null,null,null,{"$f":"IF(D104=\"\",0,IFERROR((SUM($AR$97:AW104,$D$97:I104)/$AC$33),0))","v":0}]
[null,9,null,null,null,null,null,null,null,null,null,{"$error":"#DIV/0!"},{"$error":"#DIV/0!"},{"$error":"#DIV/0!"},{"$error":"#DIV/0!"},0,0,null,null,null,null,null,0,null,null,null,null,null,{"$f":"IF('2.Vorderingsstaat'!$AC$6=TRUE,\"BTW verlegd\",W105*$BA$19)","v":"BTW verlegd"},null,null,null,null,null,{"$f":"IF('2.Vorderingsstaat'!$AC$6=TRUE,\"BTW verlegd\",AC105+W105)","v":"BTW verlegd"},null,null,null,null,null,null,9,null,null,null,null,null,null,null,null,null,null,null,null,null,0,null,null,null,null,null,{"$f":"IF('2.Vorderingsstaat'!$AC$6=TRUE,\"BTW verlegd\",BD105*$BA$19)","v":"BTW verlegd"},null,null,null,null,null,{"$f":"IF('2.Vorderingsstaat'!$AC$6=TRUE,\"BTW verlegd\",BJ105+BD105)","v":"BTW verlegd"},null,null,null,null,null,{"$f":"IF(D105=\"\",0,IFERROR((SUM($AR$97:AW105,$D$97:I105)/$AC$33),0))","v":0}]
[null,10,null,null,null,null,null,null,null,null,null,{"$error":"#DIV/0!"},{"$error":"#DIV/0!"},{"$error":"#DIV/0!"},{"$error":"#DIV/0!"},0,0,null,null,null,null,null,0,null,null,null,null,null,{"$f":"IF('2.Vorderingsstaat'!$AC$6=TRUE,\"BTW verlegd\",W106*$BA$19)","v":"BTW verlegd"},null,null,null,null,null,{"$f":"IF('2.Vorderingsstaat'!$AC$6=TRUE,\"BTW verlegd\",AC106+W106)","v":"BTW verlegd"},null,null,null,null,null,null,10,null,null,null,null,null,null,null,null,null,null,null,null,null,0,null,null,null,null,null,{"$f":"IF('2.Vorderingsstaat'!$AC$6=TRUE,\"BTW verlegd\",BD106*$BA$19)","v":"BTW verlegd"},null,null,null,null,null,{"$f":"IF('2.Vorderingsstaat'!$AC$6=TRUE,\"BTW verlegd\",BJ106+BD106)","v":"BTW verlegd"},null,null,null,null,null,{"$f":"IF(D106=\"\",0,IFERROR((SUM($AR$97:AW106,$D$97:I106)/$AC$33),0))","v":0}]
[null,11,null,null,null,null,null,null,null,null,null,{"$error":"#DIV/0!"},{"$error":"#DIV/0!"},{"$error":"#DIV/0!"},{"$error":"#DIV/0!"},0,0,null,null,null,null,null,0,null,null,null,null,null,{"$f":"IF('2.Vorderingsstaat'!$AC$6=TRUE,\"BTW verlegd\",W107*$BA$19)","v":"BTW verlegd"},null,null,null,null,null,{"$f":"IF('2.Vorderingsstaat'!$AC$6=TRUE,\"BTW verlegd\",AC107+W107)","v":"BTW verlegd"},null,null,null,null,null,null,11,null,null,null,null,null,null,null,null,null,null,null,null,null,0,null,null,null,null,null,{"$f":"IF('2.Vorderingsstaat'!$AC$6=TRUE,\"BTW verlegd\",BD107*$BA$19)","v":"BTW verlegd"},null,null,null,null,null,{"$f":"IF('2.Vorderingsstaat'!$AC$6=TRUE,\"BTW verlegd\",BJ107+BD107)","v":"BTW verlegd"},null,null,null,null,null,{"$f":"IF(D107=\"\",0,IFERROR((SUM($AR$97:AW107,$D$97:I107)/$AC$33),0))","v":0}]
[null,12,null,null,null,null,null,null,null,null,null,{"$error":"#DIV/0!"},{"$error":"#DIV/0!"},{"$error":"#DIV/0!"},{"$error":"#DIV/0!"},0,0,null,null,null,null,null,0,null,null,null,null,null,{"$f":"IF('2.Vorderingsstaat'!$AC$6=TRUE,\"BTW verlegd\",W108*$BA$19)","v":"BTW verlegd"},null,null,null,null,null,{"$f":"IF('2.Vorderingsstaat'!$AC$6=TRUE,\"BTW verlegd\",AC108+W108)","v":"BTW verlegd"},null,null,null,null,null,null,12,null,null,null,null,null,null,null,null,null,null,null,null,null,0,null,null,null,null,null,{"$f":"IF('2.Vorderingsstaat'!$AC$6=TRUE,\"BTW verlegd\",BD108*$BA$19)","v":"BTW verlegd"},null,null,null,null,null,{"$f":"IF('2.Vorderingsstaat'!$AC$6=TRUE,\"BTW verlegd\",BJ108+BD108)","v":"BTW verlegd"},null,null,null,null,null,{"$f":"IF(D108=\"\",0,IFERROR((SUM($AR$97:AW108,$D$97:I108)/$AC$33),0))","v":0}]
[null,13,null,null,null,null,null,null,null,null,null,{"$error":"#DIV/0!"},{"$error":"#DIV/0!"},{"$error":"#DIV/0!"},{"$error":"#DIV/0!"},0,0,null,null,null,null,null,0,null,null,null,null,null,{"$f":"IF('2.Vorderingsstaat'!$AC$6=TRUE,\"BTW verlegd\",W109*$BA$19)","v":"BTW verlegd"},null,null,null,null,null,{"$f":"IF('2.Vorderingsstaat'!$AC$6=TRUE,\"BTW verlegd\",AC109+W109)","v":"BTW verlegd"},null,null,null,null,null,null,13,null,null,null,null,null,null,null,null,null,null,null,null,null,0,null,null,null,null,null,{"$f":"IF('2.Vorderingsstaat'!$AC$6=TRUE,\"BTW verlegd\",BD109*$BA$19)","v":"BTW verlegd"},null,null,null,null,null,{"$f":"IF('2.Vorderingsstaat'!$AC$6=TRUE,\"BTW verlegd\",BJ109+BD109)","v":"BTW verlegd"},null,null,null,null,null,{"$f":"IF(D109=\"\",0,IFERROR((SUM($AR$97:AW109,$D$97:I109)/$AC$33),0))","v":0}]
[null,14,null,null,null,null,null,null,null,null,null,{"$error":"#DIV/0!"},{"$error":"#DIV/0!"},{"$error":"#DIV/0!"},{"$error":"#DIV/0!"},0,0,null,null,null,null,null,0,null,null,null,null,null,{"$f":"IF('2.Vorderingsstaat'!$AC$6=TRUE,\"BTW verlegd\",W110*$BA$19)","v":"BTW verlegd"},null,null,null,null,null,{"$f":"IF('2.Vorderingsstaat'!$AC$6=TRUE,\"BTW verlegd\",AC110+W110)","v":"BTW verlegd"},null,null,null,null,null,null,14,null,null,null,null,null,null,null,null,null,null,null,null,null,0,null,null,null,null,null,{"$f":"IF('2.Vorderingsstaat'!$AC$6=TRUE,\"BTW verlegd\",BD110*$BA$19)","v":"BTW verlegd"},null,null,null,null,null,{"$f":"IF('2.Vorderingsstaat'!$AC$6=TRUE,\"BTW verlegd\",BJ110+BD110)","v":"BTW verlegd"},null,null,null,null,null,{"$f":"IF(D110=\"\",0,IFERROR((SUM($AR$97:AW110,$D$97:I110)/$AC$33),0))","v":0}]
[null,15,null,null,null,null,null,null,null,null,null,{"$error":"#DIV/0!"},{"$error":"#DIV/0!"},{"$error":"#DIV/0!"},{"$error":"#DIV/0!"},0,0,null,null,null,null,null,0,null,null,null,null,null,{"$f":"IF('2.Vorderingsstaat'!$AC$6=TRUE,\"BTW verlegd\",W111*$BA$19)","v":"BTW verlegd"},null,null,null,null,null,{"$f":"IF('2.Vorderingsstaat'!$AC$6=TRUE,\"BTW verlegd\",AC111+W111)","v":"BTW verlegd"},null,null,null,null,null,null,15,null,null,null,null,null,null,null,null,null,null,null,null,null,0,null,null,null,null,null,{"$f":"IF('2.Vorderingsstaat'!$AC$6=TRUE,\"BTW verlegd\",BD111*$BA$19)","v":"BTW verlegd"},null,null,null,null,null,{"$f":"IF('2.Vorderingsstaat'!$AC$6=TRUE,\"BTW verlegd\",BJ111+BD111)","v":"BTW verlegd"},null,null,null,null,null,{"$f":"IF(D111=\"\",0,IFERROR((SUM($AR$97:AW111,$D$97:I111)/$AC$33),0))","v":0}]
[null,16,null,null,null,null,null,null,null,null,null,{"$error":"#DIV/0!"},{"$error":"#DIV/0!"},{"$error":"#DIV/0!"},{"$error":"#DIV/0!"},0,0,null,null,null,null,null,0,null,null,null,null,null,{"$f":"IF('2.Vorderingsstaat'!$AC$6=TRUE,\"BTW verlegd\",W112*$BA$19)","v":"BTW verlegd"},null,null,null,null,null,{"$f":"IF('2.Vorderingsstaat'!$AC$6=TRUE,\"BTW verlegd\",AC112+W112)","v":"BTW verlegd"},null,null,null,null,null,null,16,null,null,null,null,null,null,null,null,null,null,null,null,null,0,null,null,null,null,null,{"$f":"IF('2.Vorderingsstaat'!$AC$6=TRUE,\"BTW verlegd\",BD112*$BA$19)","v":"BTW verlegd"},null,null,null,null,null,{"$f":"IF('2.Vorderingsstaat'!$AC$6=TRUE,\"BTW verlegd\",BJ112+BD112)","v":"BTW verlegd"},null,null,null,null,null,{"$f":"IF(D112=\"\",0,IFERROR((SUM($AR$97:AW112,$D$97:I112)/$AC$33),0))","v":0}]
[null,17,null,null,null,null,null,null,null,null,null,{"$error":"#DIV/0!"},{"$error":"#DIV/0!"},{"$error":"#DIV/0!"},{"$error":"#DIV/0!"},0,0,null,null,null,null,null,0,null,null,null,null,null,{"$f":"IF('2.Vorderingsstaat'!$AC$6=TRUE,\"BTW verlegd\",W113*$BA$19)","v":"BTW verlegd"},null,null,null,null,null,{"$f":"IF('2.Vorderingsstaat'!$AC$6=TRUE,\"BTW verlegd\",AC113+W113)","v":"BTW verlegd"},null,null,null,null,null,null,17,null,null,null,null,null,null,null,null,null,null,null,null,null,0,null,null,null,null,null,{"$f":"IF('2.Vorderingsstaat'!$AC$6=TRUE,\"BTW verlegd\",BD113*$BA$19)","v":"BTW verlegd"},null,null,null,null,null,{"$f":"IF('2.Vorderingsstaat'!$AC$6=TRUE,\"BTW verlegd\",BJ113+BD113)","v":"BTW verlegd"},null,null,null,null,null,{"$f":"IF(D113=\"\",0,IFERROR((SUM($AR$97:AW113,$D$97:I113)/$AC$33),0))","v":0}]
[null,18,null,null,null,null,null,null,null,null,null,{"$error":"#DIV/0!"},{"$error":"#DIV/0!"},{"$error":"#DIV/0!"},{"$error":"#DIV/0!"},0,0,null,null,null,null,null,0,null,null,null,null,null,{"$f":"IF('2.Vorderingsstaat'!$AC$6=TRUE,\"BTW verlegd\",W114*$BA$19)","v":"BTW verlegd"},null,null,null,null,null,{"$f":"IF('2.Vorderingsstaat'!$AC$6=TRUE,\"BTW verlegd\",AC114+W114)","v":"BTW verlegd"},null,null,null,null,null,null,18,null,null,null,null,null,null,null,null,null,null,null,null,null,0,null,null,null,null,null,{"$f":"IF('2.Vorderingsstaat'!$AC$6=TRUE,\"BTW verlegd\",BD114*$BA$19)","v":"BTW verlegd"},null,null,null,null,null,{"$f":"IF('2.Vorderingsstaat'!$AC$6=TRUE,\"BTW verlegd\",BJ114+BD114)","v":"BTW verlegd"},null,null,null,null,null,{"$f":"IF(D114=\"\",0,IFERROR((SUM($AR$97:AW114,$D$97:I114)/$AC$33),0))","v":0}]
[null,19,null,null,null,null,null,null,null,null,null,{"$error":"#DIV/0!"},{"$error":"#DIV/0!"},{"$error":"#DIV/0!"},{"$error":"#DIV/0!"},0,0,null,null,null,null,null,0,null,null,null,null,null,{"$f":"IF('2.Vorderingsstaat'!$AC$6=TRUE,\"BTW verlegd\",W115*$BA$19)","v":"BTW verlegd"},null,null,null,null,null,{"$f":"IF('2.Vorderingsstaat'!$AC$6=TRUE,\"BTW verlegd\",AC115+W115)","v":"BTW verlegd"},null,null,null,null,null,null,19,null,null,null,null,null,null,null,null,null,null,null,null,null,0,null,null,null,null,null,{"$f":"IF('2.Vorderingsstaat'!$AC$6=TRUE,\"BTW verlegd\",BD115*$BA$19)","v":"BTW verlegd"},null,null,null,null,null,{"$f":"IF('2.Vorderingsstaat'!$AC$6=TRUE,\"BTW verlegd\",BJ115+BD115)","v":"BTW verlegd"},null,null,null,null,null,{"$f":"IF(D115=\"\",0,IFERROR((SUM($AR$97:AW115,$D$97:I115)/$AC$33),0))","v":0}]
[null,20,null,null,null,null,null,null,null,null,null,{"$error":"#DIV/0!"},{"$error":"#DIV/0!"},{"$error":"#DIV/0!"},{"$error":"#DIV/0!"},0,0,null,null,null,null,null,0,null,null,null,null,null,{"$f":"IF('2.Vorderingsstaat'!$AC$6=TRUE,\"BTW verlegd\",W116*$BA$19)","v":"BTW verlegd"},null,null,null,null,null,{"$f":"IF('2.Vorderingsstaat'!$AC$6=TRUE,\"BTW verlegd\",AC116+W116)","v":"BTW verlegd"},null,null,null,null,null,null,20,null,null,null,null,null,null,null,null,null,null,null,null,null,0,null,null,null,null,null,{"$f":"IF('2.Vorderingsstaat'!$AC$6=TRUE,\"BTW verlegd\",BD116*$BA$19)","v":"BTW verlegd"},null,null,null,null,null,{"$f":"IF('2.Vorderingsstaat'!$AC$6=TRUE,\"BTW verlegd\",BJ116+BD116)","v":"BTW verlegd"},null,null,null,null,null,{"$f":"IF(D116=\"\",0,IFERROR((SUM($AR$97:AW116,$D$97:I116)/$AC$33),0))","v":0}]

{"sheet":"2.Vorderingsstaat","index":4,"n_rows":61,"n_cols":39,"rows_kept":61,"cut":false,"hidden":false,"merged":[[8,0,15,0],[58,16,58,31],[59,22,59,36],[61,32,61,36],[26,0,33,0],[17,0,24,0],[60,27,60,31],[60,32,60,36],[60,22,60,26],[48,34,48,36],[45,20,45,26],[44,20,44,26],[61,27,61,31],[61,22,61,26],[59,1,59,5],[59,6,59,10],[59,11,59,15],[47,27,47,32],[46,20,46,26],[46,27,46,31],[46,32,46,36],[53,31,53,36],[51,1,51,30],[52,1,52,30],[53,1,53,30],[55,31,55,36],[56,31,56,36],[32,32,33,36],[32,27,32,31],[40,20,40,31],[38,20,38,31],[37,20,37,31],[36,20,36,31],[39,20,39,36],[47,34,47,36],[41,13,41,17],[42,13,42,17],[36,13,36,17],[37,13,37,17],[38,13,38,17],[40,13,40,17],[39,1,39,17],[36,1,36,12],[37,1,37,12],[41,32,41,36],[42,32,42,36],[43,27,43,31],[45,27,45,31],[43,32,43,36],[44,32,44,36],[45,32,45,36],[28,18,28,19],[32,18,32,22],[32,23,32,26],[44,27,44,31],[35,20,35,36],[31,23,31,26],[30,23,30,26],[38,1,38,12],[40,1,40,12],[33,13,33,17],[33,18,33,22],[36,32,36,36],[37,32,37,36],[38,32,38,36],[40,32,40,36],[19,23,19,26],[22,23,22,26],[23,23,23,26],[27,27,27,31],[26,27,26,31],[26,23,26,26],[27,23,27,26],[26,1,27,5],[27,18,27,22],[26,13,26,17],[26,6,26,7],[28,6,29,7],[28,8,29,12],[29,23,29,26],[31,20,31,22],[21,23,21,26],[21,20,21,22],[18,6,18,7],[18,8,18,12],[18,13,18,17],[17,1,18,5],[17,6,17,7],[17,8,17,12],[19,29,19,31],[20,29,20,31],[17,27,17,31],[18,27,18,31],[14,1,15,5],[14,6,14,7],[14,8,14,12],[14,13,14,17],[15,6,15,7],[15,8,15,12],[15,13,15,17],[17,13,17,17],[20,20,20,22],[10,6,11,7],[10,13,11,17],[12,13,13,17],[12,6,13,7],[12,8,13,12],[10,1,13,5],[4,3,4,5],[4,11,4,13],[4,15,4,17],[6,1,6,7],[6,8,6,12],[6,13,6,17],[8,1,9,5],[8,6,8,7],[8,8,8,12],[8,13,8,17],[9,6,9,7],[9,13,9,17],[6,32,6,36],[6,27,6,31],[6,18,6,22],[8,27,8,31],[9,18,9,22],[6,23,6,26],[8,23,8,26],[9,27,9,31],[8,18,8,22],[7,1,7,36],[8,32,9,36],[9,8,9,12],[11,18,11,19],[9,23,9,26],[10,23,10,26],[11,23,11,26],[18,23,18,26],[10,20,10,22],[11,20,11,22],[14,23,14,26],[15,23,15,26],[17,23,17,26],[12,23,12,26],[13,23,13,26],[17,18,17,22],[18,18,18,22],[14,18,14,22],[15,18,15,22],[12,18,12,19],[13,18,13,19],[12,20,12,22],[13,20,13,22],[46,13,46,17],[20,18,20,19],[21,18,21,19],[22,18,22,19],[27,6,27,7],[27,8,27,12],[27,13,27,17],[35,1,35,17],[30,6,31,7],[29,18,29,19],[30,18,30,19],[31,18,31,19],[26,18,26,22],[30,8,31,12],[28,13,29,17],[30,13,31,17],[28,20,28,22],[29,20,29,22],[30,20,30,22],[26,8,26,12],[19,6,20,7],[21,6,22,7],[21,8,22,12],[19,8,20,12],[43,13,43,17],[43,20,43,26],[42,20,42,31],[41,20,41,31],[10,8,11,12],[33,27,33,31],[33,23,33,26],[32,1,33,5],[32,6,32,7],[32,8,32,12],[32,13,32,17],[30,27,30,28],[31,27,31,28],[28,29,28,31],[29,29,29,31],[30,29,30,31],[29,27,29,28],[28,23,28,26],[28,1,31,5],[33,6,33,7],[33,8,33,12],[28,27,28,28],[25,1,25,36],[16,1,16,36],[24,23,24,26],[24,27,24,31],[20,23,20,26],[10,32,13,36],[14,32,15,36],[17,32,18,36],[19,32,22,36],[23,32,24,36],[23,1,24,5],[23,6,23,7],[23,8,23,12],[23,13,23,17],[23,18,23,22],[19,1,22,5],[24,6,24,7],[24,8,24,12],[24,13,24,17],[24,18,24,22],[19,13,20,17],[21,13,22,17],[19,20,19,22],[22,20,22,22],[19,18,19,19],[10,18,10,19],[26,32,27,36],[28,32,31,36],[10,27,10,28],[11,27,11,28],[12,27,12,28],[13,27,13,28],[10,29,10,31],[11,29,11,31],[12,29,12,31],[31,29,31,31],[13,29,13,31],[15,27,15,31],[23,27,23,31],[14,27,14,31],[19,27,19,28],[20,27,20,28],[21,27,21,28],[22,27,22,28],[22,29,22,31],[21,29,21,31],[57,31,57,36],[54,1,54,36],[55,1,55,30],[56,1,56,30],[57,1,57,30],[51,31,51,36],[52,31,52,36],[41,1,41,12],[42,1,42,12],[50,1,50,36],[47,8,47,14],[48,8,48,14],[44,8,44,12],[45,8,45,12],[46,8,46,12],[45,1,45,7],[47,1,48,7],[46,1,46,7],[47,15,47,17],[48,15,48,17],[44,13,44,17],[44,1,44,7],[47,20,48,26],[45,13,45,17]]}
[null,{"$f":"CONCATENATE(\"VORDERINGSSTAAT \",'1.Overzicht vorderingsstaat'!AR3)","v":"VORDERINGSSTAAT 0"}]
[]
[null,{"$f":"CONCATENATE(\"Dossier : \",'0.basisgegevens'!B2,\" - \",'0.basisgegevens'!B3)","v":"Dossier :  - "},null,null,null,null,null,null,null,null,null,null,null,null,null,null,null,{"$f":"CONCATENATE(\"Perceel : \",'0.basisgegevens'!B4,\" - \",'0.basisgegevens'!B5)","v":"Perceel :  - "}]
[]
[null,"Datum :",null,{"$f":"'1.Overzicht vorderingsstaat'!AR8","v":"00:00:00"},null,null,null,null,null,null,"Periode : Van ",{"$f":"'1.Overzicht vorderingsstaat'!AR6","v":"00:00:00"},null,null,"tot",{"$f":"'1.Overzicht vorderingsstaat'!AR7","v":"00:00:00"}]
[null,null,null,null,null,null,null,null,null,null,null,null,null,null,null,null,null,null,null,null,null,null,null,null,null,null,null,null,{"$f":"'1.Overzicht vorderingsstaat'!$AV$10","v":true}]
[null,"Overzicht",null,null,null,null,null,null,"Vordering excl. BTW",null,null,null,null,"Herzieningen",null,null,null,null,"Vordering excl.BTW, Incl herziening",null,null,null,null,"BTW",null,null,null,"Te betalen",null,null,null,null,"Totalen"]
[null,"Algemene totalen vorige staten"]
["Totalen vorige staten","Deel UZL",null,null,null,null,"Deel A",null,{"$f":"'1.Overzicht vorderingsstaat'!AL19","v":0},null,null,null,null,{"$f":"'1.Overzicht vorderingsstaat'!AS19","v":0},null,null,null,null,{"$f":"I9+N9","v":0},null,null,null,null,{"$f":"IF($AC$6=TRUE,\"BTW verlegd\",((S9)*'1.Overzicht vorderingsstaat'!$BA$19))","v":"BTW verlegd"},null,null,null,{"$f":"IF($AC$6=TRUE,S9,S9+X9)","v":0},null,null,null,null,{"$f":"AB9+AB10","v":0}]
[null,null,null,null,null,null,"Deel B",null,{"$f":"'1.Overzicht vorderingsstaat'!AL20","v":0},null,null,null,null,{"$f":"'1.Overzicht vorderingsstaat'!AS20","v":0},null,null,null,null,{"$f":"I10+N10","v":0},null,null,null,null,{"$f":"IF($AC$6=TRUE,\"BTW verlegd\",((S10)*'1.Overzicht vorderingsstaat'!$BA$19))","v":"BTW verlegd"},null,null,null,{"$f":"IF($AC$6=TRUE,S10,S10+X10)","v":0}]
[null,"Deel Gemeenschappelijk",null,null,null,null,"Deel A",null,{"$f":"'1.Overzicht vorderingsstaat'!AL29","v":0},null,null,null,null,{"$f":"'1.Overzicht vorderingsstaat'!AS29","v":0},null,null,null,null,"UZL",null,{"$f":"(I11+N11)*'1.Overzicht vorderingsstaat'!$Z$24","v":0},null,null,{"$f":"IF($AC$6=TRUE,\"BTW verlegd\",((U11)*'1.Overzicht vorderingsstaat'!$BA$19))","v":"BTW verlegd"},null,null,null,"UZL",null,{"$f":"IF($AC$6=TRUE,U11,U11+X11)","v":0},null,null,{"$f":"CONCATENATE(\"UZL: \",DOLLAR(AM11),\" Derden: \",DOLLAR(AM12))","v":"UZL: € 0.00 Derden: € 0.00"},null,null,null,null,"UZL",{"$f":"AD11+AD13","v":0}]
[null,null,null,null,null,null,null,null,null,null,null,null,null,null,null,null,null,null,"Derden",null,{"$f":"(I11+N11)*'1.Overzicht vorderingsstaat'!$Z$25","v":0},null,null,{"$f":"IF($AC$6=TRUE,\"BTW verlegd\",((U12)*'1.Overzicht vorderingsstaat'!$BA$37))","v":"BTW verlegd"},null,null,null,"Derden",null,{"$f":"IF($AC$6=TRUE,U12,U12+X12)","v":0},null,null,null,null,null,null,null,"Derden",{"$f":"AD12+AD14","v":0}]
[null,null,null,null,null,null,"Deel B",null,{"$f":"'1.Overzicht vorderingsstaat'!AL30","v":0},null,null,null,null,{"$f":"'1.Overzicht vorderingsstaat'!AS30","v":0},null,null,null,null,"UZL",null,{"$f":"(I13+N13)*'1.Overzicht vorderingsstaat'!$Z$24","v":0},null,null,{"$f":"IF($AC$6=TRUE,\"BTW verlegd\",((U13)*'1.Overzicht vorderingsstaat'!$BA$19))","v":"BTW verlegd"},null,null,null,"UZL",null,{"$f":"IF($AC$6=TRUE,U13,U13+X13)","v":0}]
[null,null,null,null,null,null,null,null,null,null,null,null,null,null,null,null,null,null,"Derden",null,{"$f":"(I13+N13)*'1.Overzicht vorderingsstaat'!$Z$25","v":0},null,null,{"$f":"IF($AC$6=TRUE,\"BTW verlegd\",((U14)*'1.Overzicht vorderingsstaat'!$BA$37))","v":"BTW verlegd"},null,null,null,"Derden",null,{"$f":"IF($AC$6=TRUE,U14,U14+X14)","v":0}]
[null,"Deel Derden",null,null,null,null,"Deel A",null,{"$f":"'1.Overzicht vorderingsstaat'!AL37","v":0},null,null,null,null,{"$f":"'1.Overzicht vorderingsstaat'!AS37","v":0},null,null,null,null,{"$f":"I15+N15","v":0},null,null,null,null,{"$f":"IF($AC$6=TRUE,\"BTW verlegd\",((S15)*'1.Overzicht vorderingsstaat'!$BA$37))","v":"BTW verlegd"},null,null,null,{"$f":"IF($AC$6=TRUE,S15,S15+X15)","v":0},null,null,null,null,{"$f":"AB15+AB16","v":0}]
[null,null,null,null,null,null,"Deel B",null,{"$f":"'1.Overzicht vorderingsstaat'!AL38","v":0},null,null,null,null,{"$f":"'1.Overzicht vorderingsstaat'!AS38","v":0},null,null,null,null,{"$f":"I16+N16","v":0},null,null,null,null,{"$f":"IF($AC$6=TRUE,\"BTW verlegd\",((S16)*'1.Overzicht vorderingsstaat'!$BA$37))","v":"BTW verlegd"},null,null,null,{"$f":"IF($AC$6=TRUE,S16,S16+X16)","v":0}]
[null,{"$f":"CONCATENATE(\"Totalen huidige staat nr. \",'1.Overzicht vorderingsstaat'!AR3)","v":"Totalen huidige staat nr. 0"}]
[{"$f":"CONCATENATE(\"Totalen huidige staat nr. \",'1.Overzicht vorderingsstaat'!AR3)","v":"Totalen huidige staat nr. 0"},"Deel UZL",null,null,null,null,"Deel A",null,{"$f":"'1.Overzicht vorderingsstaat'!I19:V19","v":0},null,null,null,null,{"$f":"'1.Overzicht vorderingsstaat'!W19","v":0},null,null,null,null,{"$f":"I18+N18","v":0},null,null,null,null,{"$f":"IF($AC$6=TRUE,\"BTW verlegd\",((S18)*'1.Overzicht vorderingsstaat'!$BA$19))","v":"BTW verlegd"},null,null,null,{"$f":"IF($AC$6=TRUE,S18,S18+X18)","v":0},null,null,null,null,{"$f":"AB18+AB19","v":0}]
[null,null,null,null,null,null,"Deel B",null,{"$f":"'1.Overzicht vorderingsstaat'!I20:V20","v":0},null,null,null,null,{"$f":"'1.Overzicht vorderingsstaat'!W20","v":0},null,null,null,null,{"$f":"I19+N19","v":0},null,null,null,null,{"$f":"IF($AC$6=TRUE,\"BTW verlegd\",((S19)*'1.Overzicht vorderingsstaat'!$BA$19))","v":"BTW verlegd"},null,null,null,{"$f":"IF($AC$6=TRUE,S19,S19+X19)","v":0}]
[null,"Deel Gemeenschappelijk",null,null,null,null,"Deel A",null,{"$f":"'1.Overzicht vorderingsstaat'!I29:V29","v":0},null,null,null,null,{"$f":"'1.Overzicht vorderingsstaat'!W29","v":0},null,null,null,null,"UZL",null,{"$f":"(I20+N20)*'1.Overzicht vorderingsstaat'!$Z$24","v":0},null,null,{"$f":"IF($AC$6=TRUE,\"BTW verlegd\",((U20)*'1.Overzicht vorderingsstaat'!$BA$19))","v":"BTW verlegd"},null,null,null,"UZL",null,{"$f":"IF($AC$6=TRUE,U20,U20+X20)","v":0},null,null,{"$f":"CONCATENATE(\"UZL:\",DOLLAR(AM20),\"  Derden:\",DOLLAR(AM21))","v":"UZL:€ 0.00  Derden:€ 0.00"},null,null,null,null,"UZL",{"$f":"AD20+AD22","v":0}]
[null,null,null,null,null,null,null,null,null,null,null,null,null,null,null,null,null,null,"Derden",null,{"$f":"(I20+N20)*'1.Overzicht vorderingsstaat'!$Z$25","v":0},null,null,{"$f":"IF($AC$6=TRUE,\"BTW verlegd\",((U21)*'1.Overzicht vorderingsstaat'!$BA$37))","v":"BTW verlegd"},null,null,null,"Derden",null,{"$f":"IF($AC$6=TRUE,U21,U21+X21)","v":0},null,null,null,null,null,null,null,"Derden",{"$f":"AD21+AD23","v":0}]
[null,null,null,null,null,null,"Deel B",null,{"$f":"'1.Overzicht vorderingsstaat'!I30:V30","v":0},null,null,null,null,{"$f":"'1.Overzicht vorderingsstaat'!W30","v":0},null,null,null,null,"UZL",null,{"$f":"(I22+N22)*'1.Overzicht vorderingsstaat'!$Z$24","v":0},null,null,{"$f":"IF($AC$6=TRUE,\"BTW verlegd\",((U22)*'1.Overzicht vorderingsstaat'!$BA$19))","v":"BTW verlegd"},null,null,null,"UZL",null,{"$f":"IF($AC$6=TRUE,U22,U22+X22)","v":0}]
[null,null,null,null,null,null,null,null,null,null,null,null,null,null,null,null,null,null,"Derden",null,{"$f":"(I22+N22)*'1.Overzicht vorderingsstaat'!$Z$25","v":0},null,null,{"$f":"IF($AC$6=TRUE,\"BTW verlegd\",((U23)*'1.Overzicht vorderingsstaat'!$BA$37))","v":"BTW verlegd"},null,null,null,"Derden",null,{"$f":"IF($AC$6=TRUE,U23,U23+X23)","v":0}]
[null,"Deel Derden",null,null,null,null,"Deel A",null,{"$f":"'1.Overzicht vorderingsstaat'!I37:V37","v":0},null,null,null,null,{"$f":"'1.Overzicht vorderingsstaat'!W37","v":0},null,null,null,null,{"$f":"I24+N24","v":0},null,null,null,null,{"$f":"IF($AC$6=TRUE,\"BTW verlegd\",((S24)*'1.Overzicht vorderingsstaat'!$BA$37))","v":"BTW verlegd"},null,null,null,{"$f":"IF($AC$6=TRUE,S24,S24+X24)","v":0},null,null,null,null,{"$f":"AB24+AB25","v":0}]
[null,null,null,null,null,null,"Deel B",null,{"$f":"'1.Overzicht vorderingsstaat'!I38:V38","v":0},null,null,null,null,{"$f":"'1.Overzicht vorderingsstaat'!W38","v":0},null,null,null,null,{"$f":"I25+N25","v":0},null,null,null,null,{"$f":"IF($AC$6=TRUE,\"BTW verlegd\",((S25)*'1.Overzicht vorderingsstaat'!$BA$37))","v":"BTW verlegd"},null,null,null,{"$f":"IF($AC$6=TRUE,S25,S25+X25)","v":0}]
[null,{"$f":"CONCATENATE(\"Algemene totalen inclusief staat nr. \",'1.Overzicht vorderingsstaat'!AR3)","v":"Algemene totalen inclusief staat nr. 0"}]
[{"$f":"CONCATENATE(\"Totalen alle staten Incl.nr. \",'1.Overzicht vorderingsstaat'!AR3)","v":"Totalen alle staten Incl.nr. 0"},"Deel UZL",null,null,null,null,"Deel A",null,{"$f":"I9+I18","v":0},null,null,null,null,{"$f":"N9+N18","v":0},null,null,null,null,{"$f":"I27+N27","v":0},null,null,null,null,{"$f":"IF($AC$6=TRUE,\"BTW verlegd\",((S27)*'1.Overzicht vorderingsstaat'!$BA$19))","v":"BTW verlegd"},null,null,null,{"$f":"IF($AC$6=TRUE,S27,S27+X27)","v":0},null,null,null,null,{"$f":"AB27+AB28","v":0}]
[null,null,null,null,null,null,"Deel B",null,{"$f":"I10+I19","v":0},null,null,null,null,{"$f":"N10+N19","v":0},null,null,null,null,{"$f":"I28+N28","v":0},null,null,null,null,{"$f":"IF($AC$6=TRUE,\"BTW verlegd\",((S28)*'1.Overzicht vorderingsstaat'!$BA$19))","v":"BTW verlegd"},null,null,null,{"$f":"IF($AC$6=TRUE,S28,S28+X28)","v":0}]
[null,"Deel gemeenschappelijk",null,null,null,null,"Deel A",null,{"$f":"I11+I20","v":0},null,null,null,null,{"$f":"N11+N20","v":0},null,null,null,null,"UZL",null,{"$f":"(I29+N29)*'1.Overzicht vorderingsstaat'!$Z$24","v":0},null,null,{"$f":"IF($AC$6=TRUE,\"BTW verlegd\",((U29)*'1.Overzicht vorderingsstaat'!$BA$19))","v":"BTW verlegd"},null,null,null,"UZL",null,{"$f":"IF($AC$6=TRUE,U29,U29+X29)","v":0},null,null,{"$f":"CONCATENATE(\"UZL:\",DOLLAR(AM29),\" Derden:\",DOLLAR(AM30))","v":"UZL:€ 0.00 Derden:€ 0.00"},null,null,null,null,"UZL",{"$f":"AD29+AD31","v":0}]
[null,null,null,null,null,null,null,null,null,null,null,null,null,null,null,null,null,null,"Derden",null,{"$f":"(I29+N29)*'1.Overzicht vorderingsstaat'!$Z$25","v":0},null,null,{"$f":"IF($AC$6=TRUE,\"BTW verlegd\",((U30)*'1.Overzicht vorderingsstaat'!$BA$37))","v":"BTW verlegd"},null,null,null,"Derden",null,{"$f":"IF($AC$6=TRUE,U30,U30+X30)","v":0},null,null,null,null,null,null,null,"Derden",{"$f":"AD30+AD32","v":0}]
[null,null,null,null,null,null,"Deel B",null,{"$f":"I13+I22","v":0},null,null,null,null,{"$f":"N13+N22","v":0},null,null,null,null,"UZL",null,{"$f":"(I31+N31)*'1.Overzicht vorderingsstaat'!$Z$24","v":0},null,null,{"$f":"IF($AC$6=TRUE,\"BTW verlegd\",((U31)*'1.Overzicht vorderingsstaat'!$BA$19))","v":"BTW verlegd"},null,null,null,"UZL",null,{"$f":"IF($AC$6=TRUE,U31,U31+X31)","v":0}]
[null,null,null,null,null,null,null,null,null,null,null,null,null,null,null,null,null,null,"Derden",null,{"$f":"(I31+N31)*'1.Overzicht vorderingsstaat'!$Z$25","v":0},null,null,{"$f":"IF($AC$6=TRUE,\"BTW verlegd\",((U32)*'1.Overzicht vorderingsstaat'!$BA$37))","v":"BTW verlegd"},null,null,null,"Derden",null,{"$f":"IF($AC$6=TRUE,U32,U32+X32)","v":0}]
[null,"Deel Derden",null,null,null,null,"Deel A",null,{"$f":"I15+I24","v":0},null,null,null,null,{"$f":"N15+N24","v":0},null,null,null,null,{"$f":"I33+N33","v":0},null,null,null,null,{"$f":"IF($AC$6=TRUE,\"BTW verlegd\",((S33)*'1.Overzicht vorderingsstaat'!$BA$37))","v":"BTW verlegd"},null,null,null,{"$f":"IF($AC$6=TRUE,S33,S33+X33)","v":0},null,null,null,null,{"$f":"AB33+AB34","v":0}]
[null,null,null,null,null,null,"Deel B",null,{"$f":"I16+I25","v":0},null,null,null,null,{"$f":"N16+N25","v":0},null,null,null,null,{"$f":"I34+N34","v":0},null,null,null,null,{"$f":"IF($AC$6=TRUE,\"BTW verlegd\",((S34)*'1.Overzicht vorderingsstaat'!$BA$37))","v":"BTW verlegd"},null,null,null,{"$f":"IF($AC$6=TRUE,S34,S34+X34)","v":0}]
[]
[null,{"$f":"CONCATENATE(\"Totaal vorderingsstaat deel UZL\",\": VS nr \",'1.Overzicht vorderingsstaat'!AR3)","v":"Totaal vorderingsstaat deel UZL: VS nr 0"},null,null,null,null,null,null,null,null,null,null,null,null,null,null,null,null,null,null,{"$f":"CONCATENATE(\"Totaal vorderingsstaat deel derden\",\": VS nr \",'1.Overzicht vorderingsstaat'!AR3)","v":"Totaal vorderingsstaat deel derden: VS nr 0"}]
[null,"Deel A + Deel B excl. BTW",null,null,null,null,null,null,null,null,null,null,null,{"$f":"S18+S19+U20+U22","v":0},null,null,null,null,null,null,"Deel A + Deel B excl. BTW",null,null,null,null,null,null,null,null,null,null,null,{"$f":"U21+U23+S24+S25","v":0}]
[null,"Deel A + Deel B incl. BTW",null,null,null,null,null,null,null,null,null,null,null,{"$f":"N37*(1+'1.Overzicht vorderingsstaat'!$BA$19)","v":0},null,null,null,null,null,null,"Deel A + Deel B incl. BTW",null,null,null,null,null,null,null,null,null,null,null,{"$f":"AG37*(1+'1.Overzicht vorderingsstaat'!$BA$37)","v":0}]
[null,"Te betalen",null,null,null,null,null,null,null,null,null,null,null,{"$f":"AB18+AB19+AD20+AD22","v":0},null,null,null,null,null,null,"Te betalen",null,null,null,null,null,null,null,null,null,null,null,{"$f":"AD21+AD23+AB24+AB25","v":0}]
[null,{"$f":"CONCATENATE(\"Algemene totalen UZL inclusief staat nr. \",'1.Overzicht vorderingsstaat'!AR3)","v":"Algemene totalen UZL inclusief staat nr. 0"},null,null,null,null,null,null,null,null,null,null,null,null,null,null,null,null,null,null,{"$f":"CONCATENATE(\"Algemene totalen  deel derden inclusief staat nr. \",'1.Overzicht vorderingsstaat'!AR3)","v":"Algemene totalen  deel derden inclusief staat nr. 0"}]
[null,"Deel A + Deel B excl. BTW",null,null,null,null,null,null,null,null,null,null,null,{"$f":"S27+S28+U29+U31","v":0},null,null,null,null,null,null,"Deel A + Deel B excl. BTW",null,null,null,null,null,null,null,null,null,null,null,{"$f":"U30+U32+S33+S34","v":0}]
[null,"Deel A + Deel B incl. BTW",null,null,null,null,null,null,null,null,null,null,null,{"$f":"N41*(1+'1.Overzicht vorderingsstaat'!$BA$19)","v":0},null,null,null,null,null,null,"Deel A + Deel B incl. BTW",null,null,null,null,null,null,null,null,null,null,null,{"$f":"AG41*(1+'1.Overzicht vorderingsstaat'!$BA$37)","v":0}]
[null,"Totaal : ",null,null,null,null,null,null,null,null,null,null,null,{"$f":"AB27+AB28+AD29+AD31","v":0},null,null,null,null,null,null,"Totaal : ",null,null,null,null,null,null,null,null,null,null,null,{"$f":"AD30+AD32+AB33+AB34","v":0}]
[null,null,null,null,null,null,null,null,"Excl. BTW",null,null,null,null,"Incl. BTW",null,null,null,null,null,null,null,null,null,null,null,null,null,"Excl. BTW",null,null,null,null,"Incl. BTW"]
[null,"Basisbedrag aanbesteding :",null,null,null,null,null,null,{"$f":"'1.Overzicht vorderingsstaat'!AC15+'1.Overzicht vorderingsstaat'!AC24","v":0},null,null,null,null,{"$f":"IF($AC$6=TRUE,\"BTW verlegd\",(I45+(I45)*'1.Overzicht vorderingsstaat'!$BA$19))","v":"BTW verlegd"},null,null,null,null,null,null,"Basisbedrag van de aanbesteding :",null,null,null,null,null,null,{"$f":"'1.Overzicht vorderingsstaat'!AC33+'1.Overzicht vorderingsstaat'!AC25","v":0},null,null,null,null,{"$f":"IF($AC$6=TRUE,\"BTW verlegd\",(AB45+(AB45)*'1.Overzicht vorderingsstaat'!$BA$37))","v":"BTW verlegd"}]
[null,"Bedrag goedgekeurde wijzigingen :",null,null,null,null,null,null,{"$f":"I28+(I31*'1.Overzicht vorderingsstaat'!$Z$24)","v":0},null,null,null,null,{"$f":"IF($AC$6=TRUE,\"BTW verlegd\",(I46+(I46)*'1.Overzicht vorderingsstaat'!$BA$19))","v":"BTW verlegd"},null,null,null,null,null,null,"Bedrag goedgekeurde wijzigingen :",null,null,null,null,null,null,{"$f":"I34+(I31*'1.Overzicht vorderingsstaat'!$Z$25)","v":0},null,null,null,null,{"$f":"IF($AC$6=TRUE,\"BTW verlegd\",(AB46+(AB46)*'1.Overzicht vorderingsstaat'!$BA$37))","v":"BTW verlegd"}]
[null,"Huidig bedrag aanbesteding :",null,null,null,null,null,null,{"$f":"I45+I46","v":0},null,null,null,null,{"$f":"IF($AC$6=TRUE,\"BTW verlegd\",(I47+(I47)*'1.Overzicht vorderingsstaat'!$BA$19))","v":"BTW verlegd"},null,null,null,null,null,null,"Huidig bedrag van de aanbesteding :",null,null,null,null,null,null,{"$f":"AB45+AB46","v":0},null,null,null,null,{"$f":"IF($AC$6=TRUE,\"BTW verlegd\",(AB47+(AB47)*'1.Overzicht vorderingsstaat'!$BA$37))","v":"BTW verlegd"}]
[null,"% tav basisbedrag aanbesteding (incl.BTW) :",null,null,null,null,null,null,"Excl. goedgekeurde wijzigingen :",null,null,null,null,null,null,{"$f":"IFERROR(((I27*(1+'1.Overzicht vorderingsstaat'!BA19)))/(I45+(I45)*'1.Overzicht vorderingsstaat'!$BA$19),0)","v":0},null,null,null,null,"% tav basisbedrag v/d aanbesteding (incl.BTW) :",null,null,null,null,null,null,"Excl. goedgekeurde wijzigingen :",null,null,null,null,null,null,{"$f":"IFERROR(((I33*(1+'1.Overzicht vorderingsstaat'!BA37)))/(AB45+(AB45)*'1.Overzicht vorderingsstaat'!$BA$37),0)","v":0}]
[null,null,null,null,null,null,null,null,"Incl. goedgekeurde wijzigingen :",null,null,null,null,null,null,{"$f":"IFERROR(((I27+I28)*(1+'1.Overzicht vorderingsstaat'!BA19))/(I45+(I45)*'1.Overzicht vorderingsstaat'!$BA$19),0)","v":0},null,null,null,null,null,null,null,null,null,null,null,"Incl. goedgekeurde wijzigingen :",null,null,null,null,null,null,{"$f":"IFERROR(((I33+I34)*(1+'1.Overzicht vorderingsstaat'!BA37))/(AB45+(AB45)*'1.Overzicht vorderingsstaat'!$BA$37),0)","v":0}]
[]
[null,{"$f":"CONCATENATE(\"Totaal vorderingsstaat \",\": VS nr \",'1.Overzicht vorderingsstaat'!AR3)","v":"Totaal vorderingsstaat : VS nr 0"}]
[null,"Deel A + Deel B excl. BTW",null,null,null,null,null,null,null,null,null,null,null,null,null,null,null,null,null,null,null,null,null,null,null,null,null,null,null,null,null,{"$f":"N37+AG37","v":0}]
[null,"Deel A + Deel B incl. BTW",null,null,null,null,null,null,null,null,null,null,null,null,null,null,null,null,null,null,null,null,null,null,null,null,null,null,null,null,null,{"$f":"N38+AG38","v":0}]
[null,"Te betalen",null,null,null,null,null,null,null,null,null,null,null,null,null,null,null,null,null,null,null,null,null,null,null,null,null,null,null,null,null,{"$f":"N39+AG39","v":0}]
[null,{"$f":"CONCATENATE(\"Algemene totalen inclusief staat nr. \",'1.Overzicht vorderingsstaat'!AR3)","v":"Algemene totalen inclusief staat nr. 0"}]
[null,"Deel A + Deel B excl. BTW",null,null,null,null,null,null,null,null,null,null,null,null,null,null,null,null,null,null,null,null,null,null,null,null,null,null,null,null,null,{"$f":"N41+AG41","v":0}]
[null,"Deel A + Deel B incl. BTW",null,null,null,null,null,null,null,null,null,null,null,null,null,null,null,null,null,null,null,null,null,null,null,null,null,null,null,null,null,{"$f":"N42+AG42","v":0}]
[null,"Totaal :",null,null,null,null,null,null,null,null,null,null,null,null,null,null,null,null,null,null,null,null,null,null,null,null,null,null,null,null,null,{"$f":"N43+AG43","v":0}]
[]
[null,"Aannemer",null,null,null,null,"Uitvoeringscoördinator",null,null,null,null,"Ontwerper",null,null,null,null,"Derden",null,null,null,null,null,"Bouwheer (vul aan met datum + handtekening)"]
[null,{"$f":"'0.basisgegevens'!B10","v":0},null,null,null,null,{"$f":"'0.basisgegevens'!B8","v":0},null,null,null,null,{"$f":"'0.basisgegevens'!B9","v":0},null,null,null,null,{"$f":"'0.basisgegevens'!B11","v":0},null,null,null,null,null,{"$f":"'0.basisgegevens'!B6","v":0},null,null,null,null,{"$f":"'0.basisgegevens'!B7","v":0},null,null,null,null,"Leidend Ambtenaar"]

{"sheet":"3.VS-A","index":5,"n_rows":999,"n_cols":15,"rows_kept":999,"cut":false,"hidden":false,"merged":[[5,4,7,4],[0,1,1,1],[5,0,7,0],[5,1,7,1],[5,2,7,2],[5,3,7,3],[5,5,5,8],[5,9,7,9],[5,10,5,13],[6,5,7,5],[6,6,6,8],[6,10,7,10],[6,11,6,13]]}
[null,{"$f":"CONCATENATE(\"OVERZICHT VORDERINGSSTAAT \",'1.Overzicht vorderingsstaat'!AR3,\" - DEEL A\")","v":"OVERZICHT VORDERINGSSTAAT 0 - DEEL A"},null,null,null,null,null,null,null,null,null,null,"Datum : ",{"$f":"'1.Overzicht vorderingsstaat'!AR8","v":"00:00:00"}]
[null,null,null,null,null,null,null,null,null,null,null,null,"Projectingenieur : ",{"$f":"'0.basisgegevens'!B6","v":0}]
["TE",{"$f":"'0.basisgegevens'!B2","v":0}]
["Titel",{"$f":"'0.basisgegevens'!B3","v":0}]
[null,null,null,null,null,null,null,null,null,"TOTAAL excl. BTW",{"$f":"IFERROR(IF(SUM(K9:K999)<>0,SUM(K9:K999),\"\"),\"\")","v":""},{"$f":"IFERROR(IF(SUM(L9:L999)<>0,SUM(L9:L999),\"\"),\"\")","v":""},"",{"$f":"IFERROR(IF(SUM(N9:N999)<>0,SUM(N9:N999),\"\"),\"\")","v":""}]
["Artnr","Omschrijving","Herziening","Meting","EH","HOEVEELHEDEN",null,null,null,"Eenh.prijs \n(excl. BTW)","BEDRAGEN"]
[null,null,null,null,null,"Voorziene hoeveelheid","Uitgevoerde hoeveelheden",null,null,null,"Voorzien bedrag","Uitgevoerde bedragen"]
[null,null,null,null,null,null,"Vorige periode","Huidige periode","Cumul",null,null,"Vorige periode","Huidige periode","Cumul","afdrukbereik filter"]
[null,null,null,null,null,null,null,null,{"$f":"IFERROR(G9+H9,\"\")","v":0},null,{"$f":"IFERROR(IF(J9<>\"\",F9*J9,\"\"),\"\")","v":""},{"$f":"IFERROR(IF(J9<>\"\",G9*J9,\"\"),\"\")","v":""},{"$f":"IFERROR(IF(J9<>\"\",H9*J9,\"\"),\"\")","v":""},{"$f":"IFERROR(L9+M9,\"\")","v":""},"X"]
[null,null,null,null,null,null,null,null,{"$f":"IFERROR(G10+H10,\"\")","v":0},null,{"$f":"IFERROR(IF(J10<>\"\",F10*J10,\"\"),\"\")","v":""},{"$f":"IFERROR(IF(J10<>\"\",G10*J10,\"\"),\"\")","v":""},{"$f":"IFERROR(IF(J10<>\"\",H10*J10,\"\"),\"\")","v":""},{"$f":"IFERROR(L10+M10,\"\")","v":""},"X"]
[null,null,null,null,null,null,null,null,0,null,"","","","","X"]
[null,null,null,null,null,null,null,null,0,null,"","","","","X"]
[null,null,null,null,null,null,null,null,0,null,"","","","","X"]
[null,null,null,null,null,null,null,null,0,null,"","","","","X"]
[null,null,null,null,null,null,null,null,0,null,"","","","","X"]
[null,null,null,null,null,null,null,null,0,null,"","","","","X"]
[null,null,null,null,null,null,null,null,0,null,"","","","","X"]
[null,null,null,null,null,null,null,null,null,null,"","","","","X"]
[null,null,null,null,null,null,null,null,null,null,"","","","","X"]
[null,null,null,null,null,null,null,null,null,null,"","","","","X"]
[null,null,null,null,null,null,null,null,null,null,"","","","","X"]
[null,null,null,null,null,null,null,null,null,null,"","","","","X"]
[null,null,null,null,null,null,null,null,null,null,"","","","","X"]
[null,null,null,null,null,null,null,null,null,null,"","","","","X"]
[null,null,null,null,null,null,null,null,null,null,"","","","","X"]
[null,null,null,null,null,null,null,null,null,null,"","","","","X"]
[null,null,null,null,null,null,null,null,null,null,"","","","","X"]
[null,null,null,null,null,null,null,null,null,null,"","","","","X"]
[null,null,null,null,null,null,null,null,null,null,"","","","","X"]
[null,null,null,null,null,null,null,null,null,null,"","","","","X"]
[null,null,null,null,null,null,null,null,null,null,"","","","","X"]
[null,null,null,null,null,null,null,null,null,null,"","","","","X"]
[null,null,null,null,null,null,null,null,null,null,"","","","","X"]
[null,null,null,null,null,null,null,null,null,null,"","","","","X"]
[null,null,null,null,null,null,null,null,0,null,"","","","","X"]
[null,null,null,null,null,null,null,null,0,null,"","","","","X"]
[null,null,null,null,null,null,null,null,0,null,"","","","","X"]
[null,null,null,null,null,null,null,null,0,null,"","","","","X"]
[null,null,null,null,null,null,null,null,0,null,"","","","","X"]
[null,null,null,null,null,null,null,null,0,null,"","","","","X"]
[null,null,null,null,null,null,null,null,0,null,"","","","","X"]
[null,null,null,null,null,null,null,null,0,null,"","","","","X"]
[null,null,null,null,null,null,null,null,0,null,"","","","","X"]
[null,null,null,null,null,null,null,null,0,null,"","","","","X"]
[null,null,null,null,null,null,null,null,0,null,"","","","","X"]
[null,null,null,null,null,null,null,null,0,null,"","","","","X"]
[null,null,null,null,null,null,null,null,0,null,"","","","","X"]
[null,null,null,null,null,null,null,null,0,null,"","","","","X"]
[null,null,null,null,null,null,null,null,0,null,"","","","","X"]
[null,null,null,null,null,null,null,null,0,null,"","","","","X"]
[null,null,null,null,null,null,null,null,0,null,"","","","","X"]
[null,null,null,null,null,null,null,null,0,null,"","","","","X"]
[null,null,null,null,null,null,null,null,0,null,"","","","","X"]
[null,null,null,null,null,null,null,null,0,null,"","","","","X"]
[null,null,null,null,null,null,null,null,0,null,"","","","","X"]
[null,null,null,null,null,null,null,null,0,null,"","","","","X"]
[null,null,null,null,null,null,null,null,0,null,"","","","","X"]
[null,null,null,null,null,null,null,null,0,null,"","","","","X"]
[null,null,null,null,null,null,null,null,0,null,"","","","","X"]
[null,null,null,null,null,null,null,null,0,null,"","","","","X"]
[null,null,null,null,null,null,null,null,0,null,"","","","","X"]
[null,null,null,null,null,null,null,null,0,null,"","","","","X"]
[null,null,null,null,null,null,null,null,0,null,"","","","","X"]
[null,null,null,null,null,null,null,null,0,null,"","","","","X"]
[null,null,null,null,null,null,null,null,0,null,"","","","","X"]
[null,null,null,null,null,null,null,null,0,null,"","","","","X"]
[null,null,null,null,null,null,null,null,0,null,"","","","","X"]
[null,null,null,null,null,null,null,null,0,null,"","","","","X"]
[null,null,null,null,null,null,null,null,0,null,"","","","","X"]
[null,null,null,null,null,null,null,null,0,null,"","","","","X"]
[null,null,null,null,null,null,null,null,0,null,"","","","","X"]
[null,null,null,null,null,null,null,null,0,null,"","","","","X"]
[null,null,null,null,null,null,null,null,0,null,"","","","","X"]
[null,null,null,null,null,null,null,null,{"$f":"IFERROR(G74+H74,\"\")","v":0},null,{"$f":"IFERROR(IF(J74<>\"\",F74*J74,\"\"),\"\")","v":""},{"$f":"IFERROR(IF(J74<>\"\",G74*J74,\"\"),\"\")","v":""},{"$f":"IFERROR(IF(J74<>\"\",H74*J74,\"\"),\"\")","v":""},{"$f":"IFERROR(L74+M74,\"\")","v":""},"X"]
[null,null,null,null,null,null,null,null,0,null,"","","","","X"]
[null,null,null,null,null,null,null,null,0,null,"","","","","X"]
[null,null,null,null,null,null,null,null,0,null,"","","","","X"]
[null,null,null,null,null,null,null,null,0,null,"","","","","X"]
[null,null,null,null,null,null,null,null,0,null,"","","","","X"]
[null,null,null,null,null,null,null,null,0,null,"","","","","X"]
[null,null,null,null,null,null,null,null,0,null,"","","","","X"]
[null,null,null,null,null,null,null,null,0,null,"","","","","X"]
[null,null,null,null,null,null,null,null,0,null,"","","","","X"]
[null,null,null,null,null,null,null,null,0,null,"","","","","X"]
[null,null,null,null,null,null,null,null,0,null,"","","","","X"]
[null,null,null,null,null,null,null,null,0,null,"","","","","X"]
[null,null,null,null,null,null,null,null,0,null,"","","","","X"]
[null,null,null,null,null,null,null,null,0,null,"","","","","X"]
[null,null,null,null,null,null,null,null,0,null,"","","","","X"]
[null,null,null,null,null,null,null,null,0,null,"","","","","X"]
[null,null,null,null,null,null,null,null,0,null,"","","","","X"]
[null,null,null,null,null,null,null,null,0,null,"","","","","X"]
[null,null,null,null,null,null,null,null,0,null,"","","","","X"]
[null,null,null,null,null,null,null,null,0,null,"","","","","X"]
[null,null,null,null,null,null,null,null,0,null,"","","","","X"]
[null,null,null,null,null,null,null,null,0,null,"","","","","X"]
[null,null,null,null,null,null,null,null,0,null,"","","","","X"]
[null,null,null,null,null,null,null,null,0,null,"","","","","X"]
[null,null,null,null,null,null,null,null,0,null,"","","","","X"]
[null,null,null,null,null,null,null,null,0,null,"","","","","X"]
[null,null,null,null,null,null,null,null,0,null,"","","","","X"]
[null,null,null,null,null,null,null,null,0,null,"","","","","X"]
[null,null,null,null,null,null,null,null,0,null,"","","","","X"]
[null,null,null,null,null,null,null,null,0,null,"","","","","X"]
[null,null,null,null,null,null,null,null,0,null,"","","","","X"]
[null,null,null,null,null,null,null,null,0,null,"","","","","X"]
[null,null,null,null,null,null,null,null,0,null,"","","","","X"]
[null,null,null,null,null,null,null,null,0,null,"","","","","X"]
[null,null,null,null,null,null,null,null,0,null,"","","","","X"]
[null,null,null,null,null,null,null,null,0,null,"","","","","X"]
[null,null,null,null,null,null,null,null,0,null,"","","","","X"]
[null,null,null,null,null,null,null,null,0,null,"","","","","X"]
[null,null,null,null,null,null,null,null,0,null,"","","","","X"]
[null,null,null,null,null,null,null,null,0,null,"","","","","X"]
[null,null,null,null,null,null,null,null,0,null,"","","","","X"]
[null,null,null,null,null,null,null,null,0,null,"","","","","X"]
[null,null,null,null,null,null,null,null,0,null,"","","","","X"]
[null,null,null,null,null,null,null,null,0,null,"","","","","X"]
[null,null,null,null,null,null,null,null,0,null,"","","","","X"]
[null,null,null,null,null,null,null,null,0,null,"","","",""]
[null,null,null,null,null,null,null,null,0,null,"","","",""]
[null,null,null,null,null,null,null,null,0,null,"","","",""]
[null,null,null,null,null,null,null,null,0,null,"","","",""]
[null,null,null,null,null,null,null,null,0,null,"","","",""]
[null,null,null,null,null,null,null,null,0,null,"","","",""]
[null,null,null,null,null,null,null,null,0,null,"","","",""]
[null,null,null,null,null,null,null,null,0,null,"","","",""]
[null,null,null,null,null,null,null,null,0,null,"","","",""]
[null,null,null,null,null,null,null,null,0,null,"","","",""]
[null,null,null,null,null,null,null,null,0,null,"","","",""]
[null,null,null,null,null,null,null,null,0,null,"","","",""]
[null,null,null,null,null,null,null,null,0,null,"","","",""]
[null,null,null,null,null,null,null,null,0,null,"","","",""]
[null,null,null,null,null,null,null,null,0,null,"","","",""]
[null,null,null,null,null,null,null,null,0,null,"","","",""]
[null,null,null,null,null,null,null,null,0,null,"","","",""]
[null,null,null,null,null,null,null,null,0,null,"","","",""]
[null,null,null,null,null,null,null,null,{"$f":"IFERROR(G138+H138,\"\")","v":0},null,{"$f":"IFERROR(IF(J138<>\"\",F138*J138,\"\"),\"\")","v":""},{"$f":"IFERROR(IF(J138<>\"\",G138*J138,\"\"),\"\")","v":""},{"$f":"IFERROR(IF(J138<>\"\",H138*J138,\"\"),\"\")","v":""},{"$f":"IFERROR(L138+M138,\"\")","v":""}]
[null,null,null,null,null,null,null,null,0,null,"","","",""]
[null,null,null,null,null,null,null,null,0,null,"","","",""]
[null,null,null,null,null,null,null,null,0,null,"","","",""]
[null,null,null,null,null,null,null,null,0,null,"","","",""]
[null,null,null,null,null,null,null,null,0,null,"","","",""]
[null,null,null,null,null,null,null,null,0,null,"","","",""]
[null,null,null,null,null,null,null,null,0,null,"","","",""]
[null,null,null,null,null,null,null,null,0,null,"","","",""]
[null,null,null,null,null,null,null,null,0,null,"","","",""]
[null,null,null,null,null,null,null,null,0,null,"","","",""]
[null,null,null,null,null,null,null,null,0,null,"","","",""]
[null,null,null,null,null,null,null,null,0,null,"","","",""]
[null,null,null,null,null,null,null,null,0,null,"","","",""]
[null,null,null,null,null,null,null,null,0,null,"","","",""]
[null,null,null,null,null,null,null,null,0,null,"","","",""]
[null,null,null,null,null,null,null,null,0,null,"","","",""]
[null,null,null,null,null,null,null,null,0,null,"","","",""]
[null,null,null,null,null,null,null,null,0,null,"","","",""]
[null,null,null,null,null,null,null,null,0,null,"","","",""]
[null,null,null,null,null,null,null,null,0,null,"","","",""]
[null,null,null,null,null,null,null,null,0,null,"","","",""]
[null,null,null,null,null,null,null,null,0,null,"","","",""]
[null,null,null,null,null,null,null,null,0,null,"","","",""]
[null,null,null,null,null,null,null,null,0,null,"","","",""]
[null,null,null,null,null,null,null,null,0,null,"","","",""]
[null,null,null,null,null,null,null,null,0,null,"","","",""]
[null,null,null,null,null,null,null,null,0,null,"","","",""]
[null,null,null,null,null,null,null,null,0,null,"","","",""]
[null,null,null,null,null,null,null,null,0,null,"","","",""]
[null,null,null,null,null,null,null,null,0,null,"","","",""]
[null,null,null,null,null,null,null,null,0,null,"","","",""]
[null,null,null,null,null,null,null,null,0,null,"","","",""]
[null,null,null,null,null,null,null,null,0,null,"","","",""]
[null,null,null,null,null,null,null,null,0,null,"","","",""]
[null,null,null,null,null,null,null,null,0,null,"","","",""]
[null,null,null,null,null,null,null,null,0,null,"","","",""]
[null,null,null,null,null,null,null,null,0,null,"","","",""]
[null,null,null,null,null,null,null,null,0,null,"","","",""]
[null,null,null,null,null,null,null,null,0,null,"","","",""]
[null,null,null,null,null,null,null,null,0,null,"","","",""]
[null,null,null,null,null,null,null,null,0,null,"","","",""]
[null,null,null,null,null,null,null,null,0,null,"","","",""]
[null,null,null,null,null,null,null,null,0,null,"","","",""]
[null,null,null,null,null,null,null,null,0,null,"","","",""]
[null,null,null,null,null,null,null,null,0,null,"","","",""]
[null,null,null,null,null,null,null,null,0,null,"","","",""]
[null,null,null,null,null,null,null,null,0,null,"","","",""]
[null,null,null,null,null,null,null,null,0,null,"","","",""]
[null,null,null,null,null,null,null,null,0,null,"","","",""]
[null,null,null,null,null,null,null,null,0,null,"","","",""]
[null,null,null,null,null,null,null,null,0,null,"","","",""]
[null,null,null,null,null,null,null,null,0,null,"","","",""]
[null,null,null,null,null,null,null,null,0,null,"","","",""]
[null,null,null,null,null,null,null,null,0,null,"","","",""]
[null,null,null,null,null,null,null,null,0,null,"","","",""]
[null,null,null,null,null,null,null,null,0,null,"","","",""]
[null,null,null,null,null,null,null,null,0,null,"","","",""]
[null,null,null,null,null,null,null,null,0,null,"","","",""]
[null,null,null,null,null,null,null,null,0,null,"","","",""]
[null,null,null,null,null,null,null,null,0,null,"","","",""]
[null,null,null,null,null,null,null,null,0,null,"","","",""]
[null,null,null,null,null,null,null,null,0,null,"","","",""]
[null,null,null,null,null,null,null,null,0,null,"","","",""]
[null,null,null,null,null,null,null,null,{"$f":"IFERROR(G202+H202,\"\")","v":0},null,{"$f":"IFERROR(IF(J202<>\"\",F202*J202,\"\"),\"\")","v":""},{"$f":"IFERROR(IF(J202<>\"\",G202*J202,\"\"),\"\")","v":""},{"$f":"IFERROR(IF(J202<>\"\",H202*J202,\"\"),\"\")","v":""},{"$f":"IFERROR(L202+M202,\"\")","v":""}]
[null,null,null,null,null,null,null,null,0,null,"","","",""]
[null,null,null,null,null,null,null,null,0,null,"","","",""]
[null,null,null,null,null,null,null,null,0,null,"","","",""]
[null,null,null,null,null,null,null,null,0,null,"","","",""]
[null,null,null,null,null,null,null,null,0,null,"","","",""]
[null,null,null,null,null,null,null,null,0,null,"","","",""]
[null,null,null,null,null,null,null,null,0,null,"","","",""]
[null,null,null,null,null,null,null,null,0,null,"","","",""]
[null,null,null,null,null,null,null,null,0,null,"","","",""]
[null,null,null,null,null,null,null,null,0,null,"","","",""]
[null,null,null,null,null,null,null,null,0,null,"","","",""]
[null,null,null,null,null,null,null,null,0,null,"","","",""]
[null,null,null,null,null,null,null,null,0,null,"","","",""]
[null,null,null,null,null,null,null,null,0,null,"","","",""]
[null,null,null,null,null,null,null,null,0,null,"","","",""]
[null,null,null,null,null,null,null,null,0,null,"","","",""]
[null,null,null,null,null,null,null,null,0,null,"","","",""]
[null,null,null,null,null,null,null,null,0,null,"","","",""]
[null,null,null,null,null,null,null,null,0,null,"","","",""]
[null,null,null,null,null,null,null,null,0,null,"","","",""]
[null,null,null,null,null,null,null,null,0,null,"","","",""]
[null,null,null,null,null,null,null,null,0,null,"","","",""]
[null,null,null,null,null,null,null,null,0,null,"","","",""]
[null,null,null,null,null,null,null,null,0,null,"","","",""]
[null,null,null,null,null,null,null,null,0,null,"","","",""]
[null,null,null,null,null,null,null,null,0,null,"","","",""]
[null,null,null,null,null,null,null,null,0,null,"","","",""]
[null,null,null,null,null,null,null,null,0,null,"","","",""]
[null,null,null,null,null,null,null,null,0,null,"","","",""]
[null,null,null,null,null,null,null,null,0,null,"","","",""]
[null,null,null,null,null,null,null,null,0,null,"","","",""]
[null,null,null,null,null,null,null,null,0,null,"","","",""]
[null,null,null,null,null,null,null,null,0,null,"","","",""]
[null,null,null,null,null,null,null,null,0,null,"","","",""]
[null,null,null,null,null,null,null,null,0,null,"","","",""]
[null,null,null,null,null,null,null,null,0,null,"","","",""]
[null,null,null,null,null,null,null,null,0,null,"","","",""]
[null,null,null,null,null,null,null,null,0,null,"","","",""]
[null,null,null,null,null,null,null,null,0,null,"","","",""]
[null,null,null,null,null,null,null,null,0,null,"","","",""]
[null,null,null,null,null,null,null,null,0,null,"","","",""]
[null,null,null,null,null,null,null,null,0,null,"","","",""]
[null,null,null,null,null,null,null,null,0,null,"","","",""]
[null,null,null,null,null,null,null,null,0,null,"","","",""]
[null,null,null,null,null,null,null,null,0,null,"","","",""]
[null,null,null,null,null,null,null,null,0,null,"","","",""]
[null,null,null,null,null,null,null,null,0,null,"","","",""]
[null,null,null,null,null,null,null,null,0,null,"","","",""]
[null,null,null,null,null,null,null,null,0,null,"","","",""]
[null,null,null,null,null,null,null,null,0,null,"","","",""]
[null,null,null,null,null,null,null,null,0,null,"","","",""]
[null,null,null,null,null,null,null,null,0,null,"","","",""]
[null,null,null,null,null,null,null,null,0,null,"","","",""]
[null,null,null,null,null,null,null,null,0,null,"","","",""]
[null,null,null,null,null,null,null,null,0,null,"","","",""]
[null,null,null,null,null,null,null,null,0,null,"","","",""]
[null,null,null,null,null,null,null,null,0,null,"","","",""]
[null,null,null,null,null,null,null,null,0,null,"","","",""]
[null,null,null,null,null,null,null,null,0,null,"","","",""]
[null,null,null,null,null,null,null,null,0,null,"","","",""]
[null,null,null,null,null,null,null,null,0,null,"","","",""]
[null,null,null,null,null,null,null,null,0,null,"","","",""]
[null,null,null,null,null,null,null,null,0,null,"","","",""]
[null,null,null,null,null,null,null,null,{"$f":"IFERROR(G266+H266,\"\")","v":0},null,{"$f":"IFERROR(IF(J266<>\"\",F266*J266,\"\"),\"\")","v":""},{"$f":"IFERROR(IF(J266<>\"\",G266*J266,\"\"),\"\")","v":""},{"$f":"IFERROR(IF(J266<>\"\",H266*J266,\"\"),\"\")","v":""},{"$f":"IFERROR(L266+M266,\"\")","v":""}]
[null,null,null,null,null,null,null,null,0,null,"","","",""]
[null,null,null,null,null,null,null,null,0,null,"","","",""]
[null,null,null,null,null,null,null,null,0,null,"","","",""]
[null,null,null,null,null,null,null,null,0,null,"","","",""]
[null,null,null,null,null,null,null,null,0,null,"","","",""]
[null,null,null,null,null,null,null,null,0,null,"","","",""]
[null,null,null,null,null,null,null,null,0,null,"","","",""]
[null,null,null,null,null,null,null,null,0,null,"","","",""]
[null,null,null,null,null,null,null,null,0,null,"","","",""]
[null,null,null,null,null,null,null,null,0,null,"","","",""]
[null,null,null,null,null,null,null,null,0,null,"","","",""]
[null,null,null,null,null,null,null,null,0,null,"","","",""]
[null,null,null,null,null,null,null,null,0,null,"","","",""]
[null,null,null,null,null,null,null,null,0,null,"","","",""]
[null,null,null,null,null,null,null,null,0,null,"","","",""]
[null,null,null,null,null,null,null,null,0,null,"","","",""]
[null,null,null,null,null,null,null,null,0,null,"","","",""]
[null,null,null,null,null,null,null,null,0,null,"","","",""]
[null,null,null,null,null,null,null,null,0,null,"","","",""]
[null,null,null,null,null,null,null,null,0,null,"","","",""]
[null,null,null,null,null,null,null,null,0,null,"","","",""]
[null,null,null,null,null,null,null,null,0,null,"","","",""]
[null,null,null,null,null,null,null,null,0,null,"","","",""]
[null,null,null,null,null,null,null,null,0,null,"","","",""]
[null,null,null,null,null,null,null,null,0,null,"","","",""]
[null,null,null,null,null,null,null,null,0,null,"","","",""]
[null,null,null,null,null,null,null,null,0,null,"","","",""]
[null,null,null,null,null,null,null,null,0,null,"","","",""]
[null,null,null,null,null,null,null,null,0,null,"","","",""]
[null,null,null,null,null,null,null,null,0,null,"","","",""]
[null,null,null,null,null,null,null,null,0,null,"","","",""]
[null,null,null,null,null,null,null,null,0,null,"","","",""]
[null,null,null,null,null,null,null,null,0,null,"","","",""]
[null,null,null,null,null,null,null,null,0,null,"","","",""]
[null,null,null,null,null,null,null,null,0,null,"","","",""]
[null,null,null,null,null,null,null,null,0,null,"","","",""]
[null,null,null,null,null,null,null,null,0,null,"","","",""]
[null,null,null,null,null,null,null,null,0,null,"","","",""]
[null,null,null,null,null,null,null,null,0,null,"","","",""]
[null,null,null,null,null,null,null,null,0,null,"","","",""]
[null,null,null,null,null,null,null,null,0,null,"","","",""]
[null,null,null,null,null,null,null,null,0,null,"","","",""]
[null,null,null,null,null,null,null,null,0,null,"","","",""]
[null,null,null,null,null,null,null,null,0,null,"","","",""]
[null,null,null,null,null,null,null,null,0,null,"","","",""]
[null,null,null,null,null,null,null,null,0,null,"","","",""]
[null,null,null,null,null,null,null,null,0,null,"","","",""]
[null,null,null,null,null,null,null,null,0,null,"","","",""]
[null,null,null,null,null,null,null,null,0,null,"","","",""]
[null,null,null,null,null,null,null,null,0,null,"","","",""]
[null,null,null,null,null,null,null,null,0,null,"","","",""]
[null,null,null,null,null,null,null,null,0,null,"","","",""]
[null,null,null,null,null,null,null,null,0,null,"","","",""]
[null,null,null,null,null,null,null,null,0,null,"","","",""]
[null,null,null,null,null,null,null,null,0,null,"","","",""]
[null,null,null,null,null,null,null,null,0,null,"","","",""]
[null,null,null,null,null,null,null,null,0,null,"","","",""]
[null,null,null,null,null,null,null,null,0,null,"","","",""]
[null,null,null,null,null,null,null,null,0,null,"","","",""]
[null,null,null,null,null,null,null,null,0,null,"","","",""]
[null,null,null,null,null,null,null,null,0,null,"","","",""]
[null,null,null,null,null,null,null,null,0,null,"","","",""]
[null,null,null,null,null,null,null,null,0,null,"","","",""]
[null,null,null,null,null,null,null,null,{"$f":"IFERROR(G330+H330,\"\")","v":0},null,{"$f":"IFERROR(IF(J330<>\"\",F330*J330,\"\"),\"\")","v":""},{"$f":"IFERROR(IF(J330<>\"\",G330*J330,\"\"),\"\")","v":""},{"$f":"IFERROR(IF(J330<>\"\",H330*J330,\"\"),\"\")","v":""},{"$f":"IFERROR(L330+M330,\"\")","v":""}]
[null,null,null,null,null,null,null,null,0,null,"","","",""]
[null,null,null,null,null,null,null,null,0,null,"","","",""]
[null,null,null,null,null,null,null,null,0,null,"","","",""]
[null,null,null,null,null,null,null,null,0,null,"","","",""]
[null,null,null,null,null,null,null,null,0,null,"","","",""]
[null,null,null,null,null,null,null,null,0,null,"","","",""]
[null,null,null,null,null,null,null,null,0,null,"","","",""]
[null,null,null,null,null,null,null,null,0,null,"","","",""]
[null,null,null,null,null,null,null,null,0,null,"","","",""]
[null,null,null,null,null,null,null,null,0,null,"","","",""]
[null,null,null,null,null,null,null,null,0,null,"","","",""]
[null,null,null,null,null,null,null,null,0,null,"","","",""]
[null,null,null,null,null,null,null,null,0,null,"","","",""]
[null,null,null,null,null,null,null,null,0,null,"","","",""]
[null,null,null,null,null,null,null,null,0,null,"","","",""]
[null,null,null,null,null,null,null,null,0,null,"","","",""]
[null,null,null,null,null,null,null,null,0,null,"","","",""]
[null,null,null,null,null,null,null,null,0,null,"","","",""]
[null,null,null,null,null,null,null,null,0,null,"","","",""]
[null,null,null,null,null,null,null,null,0,null,"","","",""]
[null,null,null,null,null,null,null,null,0,null,"","","",""]
[null,null,null,null,null,null,null,null,0,null,"","","",""]
[null,null,null,null,null,null,null,null,0,null,"","","",""]
[null,null,null,null,null,null,null,null,0,null,"","","",""]
[null,null,null,null,null,null,null,null,0,null,"","","",""]
[null,null,null,null,null,null,null,null,0,null,"","","",""]
[null,null,null,null,null,null,null,null,0,null,"","","",""]
[null,null,null,null,null,null,null,null,0,null,"","","",""]
[null,null,null,null,null,null,null,null,0,null,"","","",""]
[null,null,null,null,null,null,null,null,0,null,"","","",""]
[null,null,null,null,null,null,null,null,0,null,"","","",""]
[null,null,null,null,null,null,null,null,0,null,"","","",""]
[null,null,null,null,null,null,null,null,0,null,"","","",""]
[null,null,null,null,null,null,null,null,0,null,"","","",""]
[null,null,null,null,null,null,null,null,0,null,"","","",""]
[null,null,null,null,null,null,null,null,0,null,"","","",""]
[null,null,null,null,null,null,null,null,0,null,"","","",""]
[null,null,null,null,null,null,null,null,0,null,"","","",""]
[null,null,null,null,null,null,null,null,0,null,"","","",""]
[null,null,null,null,null,null,null,null,0,null,"","","",""]
[null,null,null,null,null,null,null,null,0,null,"","","",""]
[null,null,null,null,null,null,null,null,0,null,"","","",""]
[null,null,null,null,null,null,null,null,0,null,"","","",""]
[null,null,null,null,null,null,null,null,0,null,"","","",""]
[null,null,null,null,null,null,null,null,0,null,"","","",""]
[null,null,null,null,null,null,null,null,0,null,"","","",""]
[null,null,null,null,null,null,null,null,0,null,"","","",""]
[null,null,null,null,null,null,null,null,0,null,"","","",""]
[null,null,null,null,null,null,null,null,0,null,"","","",""]
[null,null,null,null,null,null,null,null,0,null,"","","",""]
[null,null,null,null,null,null,null,null,0,null,"","","",""]
[null,null,null,null,null,null,null,null,0,null,"","","",""]
[null,null,null,null,null,null,null,null,0,null,"","","",""]
[null,null,null,null,null,null,null,null,0,null,"","","",""]
[null,null,null,null,null,null,null,null,0,null,"","","",""]
[null,null,null,null,null,null,null,null,0,null,"","","",""]
[null,null,null,null,null,null,null,null,0,null,"","","",""]
[null,null,null,null,null,null,null,null,0,null,"","","",""]
[null,null,null,null,null,null,null,null,0,null,"","","",""]
[null,null,null,null,null,null,null,null,0,null,"","","",""]
[null,null,null,null,null,null,null,null,0,null,"","","",""]
[null,null,null,null,null,null,null,null,0,null,"","","",""]
[null,null,null,null,null,null,null,null,0,null,"","","",""]
[null,null,null,null,null,null,null,null,{"$f":"IFERROR(G394+H394,\"\")","v":0},null,{"$f":"IFERROR(IF(J394<>\"\",F394*J394,\"\"),\"\")","v":""},{"$f":"IFERROR(IF(J394<>\"\",G394*J394,\"\"),\"\")","v":""},{"$f":"IFERROR(IF(J394<>\"\",H394*J394,\"\"),\"\")","v":""},{"$f":"IFERROR(L394+M394,\"\")","v":""}]
[null,null,null,null,null,null,null,null,0,null,"","","",""]
[null,null,null,null,null,null,null,null,0,null,"","","",""]
[null,null,null,null,null,null,null,null,0,null,"","","",""]
[null,null,null,null,null,null,null,null,0,null,"","","",""]
[null,null,null,null,null,null,null,null,0,null,"","","",""]
[null,null,null,null,null,null,null,null,0,null,"","","",""]
[null,null,null,null,null,null,null,null,0,null,"","","",""]
[null,null,null,null,null,null,null,null,0,null,"","","",""]
[null,null,null,null,null,null,null,null,0,null,"","","",""]
[null,null,null,null,null,null,null,null,0,null,"","","",""]
[null,null,null,null,null,null,null,null,0,null,"","","",""]
[null,null,null,null,null,null,null,null,0,null,"","","",""]
[null,null,null,null,null,null,null,null,0,null,"","","",""]
[null,null,null,null,null,null,null,null,0,null,"","","",""]
[null,null,null,null,null,null,null,null,0,null,"","","",""]
[null,null,null,null,null,null,null,null,0,null,"","","",""]
[null,null,null,null,null,null,null,null,0,null,"","","",""]
[null,null,null,null,null,null,null,null,0,null,"","","",""]
[null,null,null,null,null,null,null,null,0,null,"","","",""]
[null,null,null,null,null,null,null,null,0,null,"","","",""]
[null,null,null,null,null,null,null,null,0,null,"","","",""]
[null,null,null,null,null,null,null,null,0,null,"","","",""]
[null,null,null,null,null,null,null,null,0,null,"","","",""]
[null,null,null,null,null,null,null,null,0,null,"","","",""]
[null,null,null,null,null,null,null,null,0,null,"","","",""]
[null,null,null,null,null,null,null,null,0,null,"","","",""]
[null,null,null,null,null,null,null,null,0,null,"","","",""]
[null,null,null,null,null,null,null,null,0,null,"","","",""]
[null,null,null,null,null,null,null,null,0,null,"","","",""]
[null,null,null,null,null,null,null,null,0,null,"","","",""]
[null,null,null,null,null,null,null,null,0,null,"","","",""]
[null,null,null,null,null,null,null,null,0,null,"","","",""]
[null,null,null,null,null,null,null,null,0,null,"","","",""]
[null,null,null,null,null,null,null,null,0,null,"","","",""]
[null,null,null,null,null,null,null,null,0,null,"","","",""]
[null,null,null,null,null,null,null,null,0,null,"","","",""]
[null,null,null,null,null,null,null,null,0,null,"","","",""]
[null,null,null,null,null,null,null,null,0,null,"","","",""]
[null,null,null,null,null,null,null,null,0,null,"","","",""]
[null,null,null,null,null,null,null,null,0,null,"","","",""]
[null,null,null,null,null,null,null,null,0,null,"","","",""]
[null,null,null,null,null,null,null,null,0,null,"","","",""]
[null,null,null,null,null,null,null,null,0,null,"","","",""]
[null,null,null,null,null,null,null,null,0,null,"","","",""]
[null,null,null,null,null,null,null,null,0,null,"","","",""]
[null,null,null,null,null,null,null,null,0,null,"","","",""]
[null,null,null,null,null,null,null,null,0,null,"","","",""]
[null,null,null,null,null,null,null,null,0,null,"","","",""]
[null,null,null,null,null,null,null,null,0,null,"","","",""]
[null,null,null,null,null,null,null,null,0,null,"","","",""]
[null,null,null,null,null,null,null,null,0,null,"","","",""]
[null,null,null,null,null,null,null,null,0,null,"","","",""]
[null,null,null,null,null,null,null,null,0,null,"","","",""]
[null,null,null,null,null,null,null,null,0,null,"","","",""]
[null,null,null,null,null,null,null,null,0,null,"","","",""]
[null,null,null,null,null,null,null,null,0,null,"","","",""]
[null,null,null,null,null,null,null,null,0,null,"","","",""]
[null,null,null,null,null,null,null,null,0,null,"","","",""]
[null,null,null,null,null,null,null,null,0,null,"","","",""]
[null,null,null,null,null,null,null,null,0,null,"","","",""]
[null,null,null,null,null,null,null,null,0,null,"","","",""]
[null,null,null,null,null,null,null,null,0,null,"","","",""]
[null,null,null,null,null,null,null,null,0,null,"","","",""]
[null,null,null,null,null,null,null,null,{"$f":"IFERROR(G458+H458,\"\")","v":0},null,{"$f":"IFERROR(IF(J458<>\"\",F458*J458,\"\"),\"\")","v":""},{"$f":"IFERROR(IF(J458<>\"\",G458*J458,\"\"),\"\")","v":""},{"$f":"IFERROR(IF(J458<>\"\",H458*J458,\"\"),\"\")","v":""},{"$f":"IFERROR(L458+M458,\"\")","v":""}]
[null,null,null,null,null,null,null,null,0,null,"","","",""]
[null,null,null,null,null,null,null,null,0,null,"","","",""]
[null,null,null,null,null,null,null,null,0,null,"","","",""]
[null,null,null,null,null,null,null,null,0,null,"","","",""]
[null,null,null,null,null,null,null,null,0,null,"","","",""]
[null,null,null,null,null,null,null,null,0,null,"","","",""]
[null,null,null,null,null,null,null,null,0,null,"","","",""]
[null,null,null,null,null,null,null,null,0,null,"","","",""]
[null,null,null,null,null,null,null,null,0,null,"","","",""]
[null,null,null,null,null,null,null,null,0,null,"","","",""]
[null,null,null,null,null,null,null,null,0,null,"","","",""]
[null,null,null,null,null,null,null,null,0,null,"","","",""]
[null,null,null,null,null,null,null,null,0,null,"","","",""]
[null,null,null,null,null,null,null,null,0,null,"","","",""]
[null,null,null,null,null,null,null,null,0,null,"","","",""]
[null,null,null,null,null,null,null,null,0,null,"","","",""]
[null,null,null,null,null,null,null,null,0,null,"","","",""]
[null,null,null,null,null,null,null,null,0,null,"","","",""]
[null,null,null,null,null,null,null,null,0,null,"","","",""]
[null,null,null,null,null,null,null,null,0,null,"","","",""]
[null,null,null,null,null,null,null,null,0,null,"","","",""]
[null,null,null,null,null,null,null,null,0,null,"","","",""]
[null,null,null,null,null,null,null,null,0,null,"","","",""]
[null,null,null,null,null,null,null,null,0,null,"","","",""]
[null,null,null,null,null,null,null,null,0,null,"","","",""]
[null,null,null,null,null,null,null,null,0,null,"","","",""]
[null,null,null,null,null,null,null,null,0,null,"","","",""]
[null,null,null,null,null,null,null,null,0,null,"","","",""]
[null,null,null,null,null,null,null,null,0,null,"","","",""]
[null,null,null,null,null,null,null,null,0,null,"","","",""]
[null,null,null,null,null,null,null,null,0,null,"","","",""]
[null,null,null,null,null,null,null,null,0,null,"","","",""]
[null,null,null,null,null,null,null,null,0,null,"","","",""]
[null,null,null,null,null,null,null,null,0,null,"","","",""]
[null,null,null,null,null,null,null,null,0,null,"","","",""]
[null,null,null,null,null,null,null,null,0,null,"","","",""]
[null,null,null,null,null,null,null,null,0,null,"","","",""]
[null,null,null,null,null,null,null,null,0,null,"","","",""]
[null,null,null,null,null,null,null,null,0,null,"","","",""]
[null,null,null,null,null,null,null,null,0,null,"","","",""]
[null,null,null,null,null,null,null,null,0,null,"","","",""]
[null,null,null,null,null,null,null,null,0,null,"","","",""]
[null,null,null,null,null,null,null,null,0,null,"","","",""]
[null,null,null,null,null,null,null,null,0,null,"","","",""]
[null,null,null,null,null,null,null,null,0,null,"","","",""]
[null,null,null,null,null,null,null,null,0,null,"","","",""]
[null,null,null,null,null,null,null,null,0,null,"","","",""]
[null,null,null,null,null,null,null,null,0,null,"","","",""]
[null,null,null,null,null,null,null,null,0,null,"","","",""]
[null,null,null,null,null,null,null,null,0,null,"","","",""]
[null,null,null,null,null,null,null,null,0,null,"","","",""]
[null,null,null,null,null,null,null,null,0,null,"","","",""]
[null,null,null,null,null,null,null,null,0,null,"","","",""]
[null,null,null,null,null,null,null,null,0,null,"","","",""]
[null,null,null,null,null,null,null,null,0,null,"","","",""]
[null,null,null,null,null,null,null,null,0,null,"","","",""]
[null,null,null,null,null,null,null,null,0,null,"","","",""]
[null,null,null,null,null,null,null,null,0,null,"","","",""]
[null,null,null,null,null,null,null,null,0,null,"","","",""]
[null,null,null,null,null,null,null,null,0,null,"","","",""]
[null,null,null,null,null,null,null,null,0,null,"","","",""]
[null,null,null,null,null,null,null,null,0,null,"","","",""]
[null,null,null,null,null,null,null,null,0,null,"","","",""]
[null,null,null,null,null,null,null,null,{"$f":"IFERROR(G522+H522,\"\")","v":0},null,{"$f":"IFERROR(IF(J522<>\"\",F522*J522,\"\"),\"\")","v":""},{"$f":"IFERROR(IF(J522<>\"\",G522*J522,\"\"),\"\")","v":""},{"$f":"IFERROR(IF(J522<>\"\",H522*J522,\"\"),\"\")","v":""},{"$f":"IFERROR(L522+M522,\"\")","v":""}]
[null,null,null,null,null,null,null,null,0,null,"","","",""]
[null,null,null,null,null,null,null,null,0,null,"","","",""]
[null,null,null,null,null,null,null,null,0,null,"","","",""]
[null,null,null,null,null,null,null,null,0,null,"","","",""]
[null,null,null,null,null,null,null,null,0,null,"","","",""]
[null,null,null,null,null,null,null,null,0,null,"","","",""]
[null,null,null,null,null,null,null,null,0,null,"","","",""]
[null,null,null,null,null,null,null,null,0,null,"","","",""]
[null,null,null,null,null,null,null,null,0,null,"","","",""]
[null,null,null,null,null,null,null,null,0,null,"","","",""]
[null,null,null,null,null,null,null,null,0,null,"","","",""]
[null,null,null,null,null,null,null,null,0,null,"","","",""]
[null,null,null,null,null,null,null,null,0,null,"","","",""]
[null,null,null,null,null,null,null,null,0,null,"","","",""]
[null,null,null,null,null,null,null,null,0,null,"","","",""]
[null,null,null,null,null,null,null,null,0,null,"","","",""]
[null,null,null,null,null,null,null,null,0,null,"","","",""]
[null,null,null,null,null,null,null,null,0,null,"","","",""]
[null,null,null,null,null,null,null,null,0,null,"","","",""]
[null,null,null,null,null,null,null,null,0,null,"","","",""]
[null,null,null,null,null,null,null,null,0,null,"","","",""]
[null,null,null,null,null,null,null,null,0,null,"","","",""]
[null,null,null,null,null,null,null,null,0,null,"","","",""]
[null,null,null,null,null,null,null,null,0,null,"","","",""]
[null,null,null,null,null,null,null,null,0,null,"","","",""]
[null,null,null,null,null,null,null,null,0,null,"","","",""]
[null,null,null,null,null,null,null,null,0,null,"","","",""]
[null,null,null,null,null,null,null,null,0,null,"","","",""]
[null,null,null,null,null,null,null,null,0,null,"","","",""]
[null,null,null,null,null,null,null,null,0,null,"","","",""]
[null,null,null,null,null,null,null,null,0,null,"","","",""]
[null,null,null,null,null,null,null,null,0,null,"","","",""]
[null,null,null,null,null,null,null,null,0,null,"","","",""]
[null,null,null,null,null,null,null,null,0,null,"","","",""]
[null,null,null,null,null,null,null,null,0,null,"","","",""]
[null,null,null,null,null,null,null,null,0,null,"","","",""]
[null,null,null,null,null,null,null,null,0,null,"","","",""]
[null,null,null,null,null,null,null,null,0,null,"","","",""]
[null,null,null,null,null,null,null,null,0,null,"","","",""]
[null,null,null,null,null,null,null,null,0,null,"","","",""]
[null,null,null,null,null,null,null,null,0,null,"","","",""]
[null,null,null,null,null,null,null,null,0,null,"","","",""]
[null,null,null,null,null,null,null,null,0,null,"","","",""]
[null,null,null,null,null,null,null,null,0,null,"","","",""]
[null,null,null,null,null,null,null,null,0,null,"","","",""]
[null,null,null,null,null,null,null,null,0,null,"","","",""]
[null,null,null,null,null,null,null,null,0,null,"","","",""]
[null,null,null,null,null,null,null,null,0,null,"","","",""]
[null,null,null,null,null,null,null,null,0,null,"","","",""]
[null,null,null,null,null,null,null,null,0,null,"","","",""]
[null,null,null,null,null,null,null,null,0,null,"","","",""]
[null,null,null,null,null,null,null,null,0,null,"","","",""]
[null,null,null,null,null,null,null,null,0,null,"","","",""]
[null,null,null,null,null,null,null,null,0,null,"","","",""]
[null,null,null,null,null,null,null,null,0,null,"","","",""]
[null,null,null,null,null,null,null,null,0,null,"","","",""]
[null,null,null,null,null,null,null,null,0,null,"","","",""]
[null,null,null,null,null,null,null,null,0,null,"","","",""]
[null,null,null,null,null,null,null,null,0,null,"","","",""]
[null,null,null,null,null,null,null,null,0,null,"","","",""]
[null,null,null,null,null,null,null,null,0,null,"","","",""]
[null,null,null,null,null,null,null,null,0,null,"","","",""]
[null,null,null,null,null,null,null,null,0,null,"","","",""]
[null,null,null,null,null,null,null,null,{"$f":"IFERROR(G586+H586,\"\")","v":0},null,{"$f":"IFERROR(IF(J586<>\"\",F586*J586,\"\"),\"\")","v":""},{"$f":"IFERROR(IF(J586<>\"\",G586*J586,\"\"),\"\")","v":""},{"$f":"IFERROR(IF(J586<>\"\",H586*J586,\"\"),\"\")","v":""},{"$f":"IFERROR(L586+M586,\"\")","v":""}]
[null,null,null,null,null,null,null,null,0,null,"","","",""]
[null,null,null,null,null,null,null,null,0,null,"","","",""]
[null,null,null,null,null,null,null,null,0,null,"","","",""]
[null,null,null,null,null,null,null,null,0,null,"","","",""]
[null,null,null,null,null,null,null,null,0,null,"","","",""]
[null,null,null,null,null,null,null,null,0,null,"","","",""]
[null,null,null,null,null,null,null,null,0,null,"","","",""]
[null,null,null,null,null,null,null,null,0,null,"","","",""]
[null,null,null,null,null,null,null,null,0,null,"","","",""]
[null,null,null,null,null,null,null,null,0,null,"","","",""]
[null,null,null,null,null,null,null,null,0,null,"","","",""]
[null,null,null,null,null,null,null,null,0,null,"","","",""]
[null,null,null,null,null,null,null,null,0,null,"","","",""]
[null,null,null,null,null,null,null,null,0,null,"","","",""]
[null,null,null,null,null,null,null,null,0,null,"","","",""]
[null,null,null,null,null,null,null,null,0,null,"","","",""]
[null,null,null,null,null,null,null,null,0,null,"","","",""]
[null,null,null,null,null,null,null,null,0,null,"","","",""]
[null,null,null,null,null,null,null,null,0,null,"","","",""]
[null,null,null,null,null,null,null,null,0,null,"","","",""]
[null,null,null,null,null,null,null,null,0,null,"","","",""]
[null,null,null,null,null,null,null,null,0,null,"","","",""]
[null,null,null,null,null,null,null,null,0,null,"","","",""]
[null,null,null,null,null,null,null,null,0,null,"","","",""]
[null,null,null,null,null,null,null,null,0,null,"","","",""]
[null,null,null,null,null,null,null,null,0,null,"","","",""]
[null,null,null,null,null,null,null,null,0,null,"","","",""]
[null,null,null,null,null,null,null,null,0,null,"","","",""]
[null,null,null,null,null,null,null,null,0,null,"","","",""]
[null,null,null,null,null,null,null,null,0,null,"","","",""]
[null,null,null,null,null,null,null,null,0,null,"","","",""]
[null,null,null,null,null,null,null,null,0,null,"","","",""]
[null,null,null,null,null,null,null,null,0,null,"","","",""]
[null,null,null,null,null,null,null,null,0,null,"","","",""]
[null,null,null,null,null,null,null,null,0,null,"","","",""]
[null,null,null,null,null,null,null,null,0,null,"","","",""]
[null,null,null,null,null,null,null,null,0,null,"","","",""]
[null,null,null,null,null,null,null,null,0,null,"","","",""]
[null,null,null,null,null,null,null,null,0,null,"","","",""]
[null,null,null,null,null,null,null,null,0,null,"","","",""]
[null,null,null,null,null,null,null,null,0,null,"","","",""]
[null,null,null,null,null,null,null,null,0,null,"","","",""]
[null,null,null,null,null,null,null,null,0,null,"","","",""]
[null,null,null,null,null,null,null,null,0,null,"","","",""]
[null,null,null,null,null,null,null,null,0,null,"","","",""]
[null,null,null,null,null,null,null,null,0,null,"","","",""]
[null,null,null,null,null,null,null,null,0,null,"","","",""]
[null,null,null,null,null,null,null,null,0,null,"","","",""]
[null,null,null,null,null,null,null,null,0,null,"","","",""]
[null,null,null,null,null,null,null,null,0,null,"","","",""]
[null,null,null,null,null,null,null,null,0,null,"","","",""]
[null,null,null,null,null,null,null,null,0,null,"","","",""]
[null,null,null,null,null,null,null,null,0,null,"","","",""]
[null,null,null,null,null,null,null,null,0,null,"","","",""]
[null,null,null,null,null,null,null,null,0,null,"","","",""]
[null,null,null,null,null,null,null,null,0,null,"","","",""]
[null,null,null,null,null,null,null,null,0,null,"","","",""]
[null,null,null,null,null,null,null,null,0,null,"","","",""]
[null,null,null,null,null,null,null,null,0,null,"","","",""]
[null,null,null,null,null,null,null,null,0,null,"","","",""]
[null,null,null,null,null,null,null,null,0,null,"","","",""]
[null,null,null,null,null,null,null,null,0,null,"","","",""]
[null,null,null,null,null,null,null,null,0,null,"","","",""]
[null,null,null,null,null,null,null,null,{"$f":"IFERROR(G650+H650,\"\")","v":0},null,{"$f":"IFERROR(IF(J650<>\"\",F650*J650,\"\"),\"\")","v":""},{"$f":"IFERROR(IF(J650<>\"\",G650*J650,\"\"),\"\")","v":""},{"$f":"IFERROR(IF(J650<>\"\",H650*J650,\"\"),\"\")","v":""},{"$f":"IFERROR(L650+M650,\"\")","v":""}]
[null,null,null,null,null,null,null,null,0,null,"","","",""]
[null,null,null,null,null,null,null,null,0,null,"","","",""]
[null,null,null,null,null,null,null,null,0,null,"","","",""]
[null,null,null,null,null,null,null,null,0,null,"","","",""]
[null,null,null,null,null,null,null,null,0,null,"","","",""]
[null,null,null,null,null,null,null,null,0,null,"","","",""]
[null,null,null,null,null,null,null,null,0,null,"","","",""]
[null,null,null,null,null,null,null,null,0,null,"","","",""]
[null,null,null,null,null,null,null,null,0,null,"","","",""]
[null,null,null,null,null,null,null,null,0,null,"","","",""]
[null,null,null,null,null,null,null,null,0,null,"","","",""]
[null,null,null,null,null,null,null,null,0,null,"","","",""]
[null,null,null,null,null,null,null,null,0,null,"","","",""]
[null,null,null,null,null,null,null,null,0,null,"","","",""]
[null,null,null,null,null,null,null,null,0,null,"","","",""]
[null,null,null,null,null,null,null,null,0,null,"","","",""]
[null,null,null,null,null,null,null,null,0,null,"","","",""]
[null,null,null,null,null,null,null,null,0,null,"","","",""]
[null,null,null,null,null,null,null,null,0,null,"","","",""]
[null,null,null,null,null,null,null,null,0,null,"","","",""]
[null,null,null,null,null,null,null,null,0,null,"","","",""]
[null,null,null,null,null,null,null,null,0,null,"","","",""]
[null,null,null,null,null,null,null,null,0,null,"","","",""]
[null,null,null,null,null,null,null,null,0,null,"","","",""]
[null,null,null,null,null,null,null,null,0,null,"","","",""]
[null,null,null,null,null,null,null,null,0,null,"","","",""]
[null,null,null,null,null,null,null,null,0,null,"","","",""]
[null,null,null,null,null,null,null,null,0,null,"","","",""]
[null,null,null,null,null,null,null,null,0,null,"","","",""]
[null,null,null,null,null,null,null,null,0,null,"","","",""]
[null,null,null,null,null,null,null,null,0,null,"","","",""]
[null,null,null,null,null,null,null,null,0,null,"","","",""]
[null,null,null,null,null,null,null,null,0,null,"","","",""]
[null,null,null,null,null,null,null,null,0,null,"","","",""]
[null,null,null,null,null,null,null,null,0,null,"","","",""]
[null,null,null,null,null,null,null,null,0,null,"","","",""]
[null,null,null,null,null,null,null,null,0,null,"","","",""]
[null,null,null,null,null,null,null,null,0,null,"","","",""]
[null,null,null,null,null,null,null,null,0,null,"","","",""]
[null,null,null,null,null,null,null,null,0,null,"","","",""]
[null,null,null,null,null,null,null,null,0,null,"","","",""]
[null,null,null,null,null,null,null,null,0,null,"","","",""]
[null,null,null,null,null,null,null,null,0,null,"","","",""]
[null,null,null,null,null,null,null,null,0,null,"","","",""]
[null,null,null,null,null,null,null,null,0,null,"","","",""]
[null,null,null,null,null,null,null,null,0,null,"","","",""]
[null,null,null,null,null,null,null,null,0,null,"","","",""]
[null,null,null,null,null,null,null,null,0,null,"","","",""]
[null,null,null,null,null,null,null,null,0,null,"","","",""]
[null,null,null,null,null,null,null,null,0,null,"","","",""]
[null,null,null,null,null,null,null,null,0,null,"","","",""]
[null,null,null,null,null,null,null,null,0,null,"","","",""]
[null,null,null,null,null,null,null,null,0,null,"","","",""]
[null,null,null,null,null,null,null,null,0,null,"","","",""]
[null,null,null,null,null,null,null,null,0,null,"","","",""]
[null,null,null,null,null,null,null,null,0,null,"","","",""]
[null,null,null,null,null,null,null,null,0,null,"","","",""]
[null,null,null,null,null,null,null,null,0,null,"","","",""]
[null,null,null,null,null,null,null,null,0,null,"","","",""]
[null,null,null,null,null,null,null,null,0,null,"","","",""]
[null,null,null,null,null,null,null,null,0,null,"","","",""]
[null,null,null,null,null,null,null,null,0,null,"","","",""]
[null,null,null,null,null,null,null,null,0,null,"","","",""]
[null,null,null,null,null,null,null,null,{"$f":"IFERROR(G714+H714,\"\")","v":0},null,{"$f":"IFERROR(IF(J714<>\"\",F714*J714,\"\"),\"\")","v":""},{"$f":"IFERROR(IF(J714<>\"\",G714*J714,\"\"),\"\")","v":""},{"$f":"IFERROR(IF(J714<>\"\",H714*J714,\"\"),\"\")","v":""},{"$f":"IFERROR(L714+M714,\"\")","v":""}]
[null,null,null,null,null,null,null,null,0,null,"","","",""]
[null,null,null,null,null,null,null,null,0,null,"","","",""]
[null,null,null,null,null,null,null,null,0,null,"","","",""]
[null,null,null,null,null,null,null,null,0,null,"","","",""]
[null,null,null,null,null,null,null,null,0,null,"","","",""]
[null,null,null,null,null,null,null,null,0,null,"","","",""]
[null,null,null,null,null,null,null,null,0,null,"","","",""]
[null,null,null,null,null,null,null,null,0,null,"","","",""]
[null,null,null,null,null,null,null,null,0,null,"","","",""]
[null,null,null,null,null,null,null,null,0,null,"","","",""]
[null,null,null,null,null,null,null,null,0,null,"","","",""]
[null,null,null,null,null,null,null,null,0,null,"","","",""]
[null,null,null,null,null,null,null,null,0,null,"","","",""]
[null,null,null,null,null,null,null,null,0,null,"","","",""]
[null,null,null,null,null,null,null,null,0,null,"","","",""]
[null,null,null,null,null,null,null,null,0,null,"","","",""]
[null,null,null,null,null,null,null,null,0,null,"","","",""]
[null,null,null,null,null,null,null,null,0,null,"","","",""]
[null,null,null,null,null,null,null,null,0,null,"","","",""]
[null,null,null,null,null,null,null,null,0,null,"","","",""]
[null,null,null,null,null,null,null,null,0,null,"","","",""]
[null,null,null,null,null,null,null,null,0,null,"","","",""]
[null,null,null,null,null,null,null,null,0,null,"","","",""]
[null,null,null,null,null,null,null,null,0,null,"","","",""]
[null,null,null,null,null,null,null,null,0,null,"","","",""]
[null,null,null,null,null,null,null,null,0,null,"","","",""]
[null,null,null,null,null,null,null,null,0,null,"","","",""]
[null,null,null,null,null,null,null,null,0,null,"","","",""]
[null,null,null,null,null,null,null,null,0,null,"","","",""]
[null,null,null,null,null,null,null,null,0,null,"","","",""]
[null,null,null,null,null,null,null,null,0,null,"","","",""]
[null,null,null,null,null,null,null,null,0,null,"","","",""]
[null,null,null,null,null,null,null,null,0,null,"","","",""]
[null,null,null,null,null,null,null,null,0,null,"","","",""]
[null,null,null,null,null,null,null,null,0,null,"","","",""]
[null,null,null,null,null,null,null,null,0,null,"","","",""]
[null,null,null,null,null,null,null,null,0,null,"","","",""]
[null,null,null,null,null,null,null,null,0,null,"","","",""]
[null,null,null,null,null,null,null,null,0,null,"","","",""]
[null,null,null,null,null,null,null,null,0,null,"","","",""]
[null,null,null,null,null,null,null,null,0,null,"","","",""]
[null,null,null,null,null,null,null,null,0,null,"","","",""]
[null,null,null,null,null,null,null,null,0,null,"","","",""]
[null,null,null,null,null,null,null,null,0,null,"","","",""]
[null,null,null,null,null,null,null,null,0,null,"","","",""]
[null,null,null,null,null,null,null,null,0,null,"","","",""]
[null,null,null,null,null,null,null,null,0,null,"","","",""]
[null,null,null,null,null,null,null,null,0,null,"","","",""]
[null,null,null,null,null,null,null,null,0,null,"","","",""]
[null,null,null,null,null,null,null,null,0,null,"","","",""]
[null,null,null,null,null,null,null,null,0,null,"","","",""]
[null,null,null,null,null,null,null,null,0,null,"","","",""]
[null,null,null,null,null,null,null,null,0,null,"","","",""]
[null,null,null,null,null,null,null,null,0,null,"","","",""]
[null,null,null,null,null,null,null,null,0,null,"","","",""]
[null,null,null,null,null,null,null,null,0,null,"","","",""]
[null,null,null,null,null,null,null,null,0,null,"","","",""]
[null,null,null,null,null,null,null,null,0,null,"","","",""]
[null,null,null,null,null,null,null,null,0,null,"","","",""]
[null,null,null,null,null,null,null,null,0,null,"","","",""]
[null,null,null,null,null,null,null,null,0,null,"","","",""]
[null,null,null,null,null,null,null,null,0,null,"","","",""]
[null,null,null,null,null,null,null,null,0,null,"","","",""]
[null,null,null,null,null,null,null,null,{"$f":"IFERROR(G778+H778,\"\")","v":0},null,{"$f":"IFERROR(IF(J778<>\"\",F778*J778,\"\"),\"\")","v":""},{"$f":"IFERROR(IF(J778<>\"\",G778*J778,\"\"),\"\")","v":""},{"$f":"IFERROR(IF(J778<>\"\",H778*J778,\"\"),\"\")","v":""},{"$f":"IFERROR(L778+M778,\"\")","v":""}]
[null,null,null,null,null,null,null,null,0,null,"","","",""]
[null,null,null,null,null,null,null,null,0,null,"","","",""]
[null,null,null,null,null,null,null,null,0,null,"","","",""]
[null,null,null,null,null,null,null,null,0,null,"","","",""]
[null,null,null,null,null,null,null,null,0,null,"","","",""]
[null,null,null,null,null,null,null,null,0,null,"","","",""]
[null,null,null,null,null,null,null,null,0,null,"","","",""]
[null,null,null,null,null,null,null,null,0,null,"","","",""]
[null,null,null,null,null,null,null,null,0,null,"","","",""]
[null,null,null,null,null,null,null,null,0,null,"","","",""]
[null,null,null,null,null,null,null,null,0,null,"","","",""]
[null,null,null,null,null,null,null,null,0,null,"","","",""]
[null,null,null,null,null,null,null,null,0,null,"","","",""]
[null,null,null,null,null,null,null,null,0,null,"","","",""]
[null,null,null,null,null,null,null,null,0,null,"","","",""]
[null,null,null,null,null,null,null,null,0,null,"","","",""]
[null,null,null,null,null,null,null,null,0,null,"","","",""]
[null,null,null,null,null,null,null,null,0,null,"","","",""]
[null,null,null,null,null,null,null,null,0,null,"","","",""]
[null,null,null,null,null,null,null,null,0,null,"","","",""]
[null,null,null,null,null,null,null,null,0,null,"","","",""]
[null,null,null,null,null,null,null,null,0,null,"","","",""]
[null,null,null,null,null,null,null,null,0,null,"","","",""]
[null,null,null,null,null,null,null,null,0,null,"","","",""]
[null,null,null,null,null,null,null,null,0,null,"","","",""]
[null,null,null,null,null,null,null,null,0,null,"","","",""]
[null,null,null,null,null,null,null,null,0,null,"","","",""]
[null,null,null,null,null,null,null,null,0,null,"","","",""]
[null,null,null,null,null,null,null,null,0,null,"","","",""]
[null,null,null,null,null,null,null,null,0,null,"","","",""]
[null,null,null,null,null,null,null,null,0,null,"","","",""]
[null,null,null,null,null,null,null,null,0,null,"","","",""]
[null,null,null,null,null,null,null,null,0,null,"","","",""]
[null,null,null,null,null,null,null,null,0,null,"","","",""]
[null,null,null,null,null,null,null,null,0,null,"","","",""]
[null,null,null,null,null,null,null,null,0,null,"","","",""]
[null,null,null,null,null,null,null,null,0,null,"","","",""]
[null,null,null,null,null,null,null,null,0,null,"","","",""]
[null,null,null,null,null,null,null,null,0,null,"","","",""]
[null,null,null,null,null,null,null,null,0,null,"","","",""]
[null,null,null,null,null,null,null,null,0,null,"","","",""]
[null,null,null,null,null,null,null,null,0,null,"","","",""]
[null,null,null,null,null,null,null,null,0,null,"","","",""]
[null,null,null,null,null,null,null,null,0,null,"","","",""]
[null,null,null,null,null,null,null,null,0,null,"","","",""]
[null,null,null,null,null,null,null,null,0,null,"","","",""]
[null,null,null,null,null,null,null,null,0,null,"","","",""]
[null,null,null,null,null,null,null,null,0,null,"","","",""]
[null,null,null,null,null,null,null,null,0,null,"","","",""]
[null,null,null,null,null,null,null,null,0,null,"","","",""]
[null,null,null,null,null,null,null,null,0,null,"","","",""]
[null,null,null,null,null,null,null,null,0,null,"","","",""]
[null,null,null,null,null,null,null,null,0,null,"","","",""]
[null,null,null,null,null,null,null,null,0,null,"","","",""]
[null,null,null,null,null,null,null,null,0,null,"","","",""]
[null,null,null,null,null,null,null,null,0,null,"","","",""]
[null,null,null,null,null,null,null,null,0,null,"","","",""]
[null,null,null,null,null,null,null,null,0,null,"","","",""]
[null,null,null,null,null,null,null,null,0,null,"","","",""]
[null,null,null,null,null,null,null,null,0,null,"","","",""]
[null,null,null,null,null,null,null,null,0,null,"","","",""]
[null,null,null,null,null,null,null,null,0,null,"","","",""]
[null,null,null,null,null,null,null,null,0,null,"","","",""]
[null,null,null,null,null,null,null,null,{"$f":"IFERROR(G842+H842,\"\")","v":0},null,{"$f":"IFERROR(IF(J842<>\"\",F842*J842,\"\"),\"\")","v":""},{"$f":"IFERROR(IF(J842<>\"\",G842*J842,\"\"),\"\")","v":""},{"$f":"IFERROR(IF(J842<>\"\",H842*J842,\"\"),\"\")","v":""},{"$f":"IFERROR(L842+M842,\"\")","v":""}]
[null,null,null,null,null,null,null,null,0,null,"","","",""]
[null,null,null,null,null,null,null,null,0,null,"","","",""]
[null,null,null,null,null,null,null,null,0,null,"","","",""]
[null,null,null,null,null,null,null,null,0,null,"","","",""]
[null,null,null,null,null,null,null,null,0,null,"","","",""]
[null,null,null,null,null,null,null,null,0,null,"","","",""]
[null,null,null,null,null,null,null,null,0,null,"","","",""]
[null,null,null,null,null,null,null,null,0,null,"","","",""]
[null,null,null,null,null,null,null,null,0,null,"","","",""]
[null,null,null,null,null,null,null,null,0,null,"","","",""]
[null,null,null,null,null,null,null,null,0,null,"","","",""]
[null,null,null,null,null,null,null,null,0,null,"","","",""]
[null,null,null,null,null,null,null,null,0,null,"","","",""]
[null,null,null,null,null,null,null,null,0,null,"","","",""]
[null,null,null,null,null,null,null,null,0,null,"","","",""]
[null,null,null,null,null,null,null,null,0,null,"","","",""]
[null,null,null,null,null,null,null,null,0,null,"","","",""]
[null,null,null,null,null,null,null,null,0,null,"","","",""]
[null,null,null,null,null,null,null,null,0,null,"","","",""]
[null,null,null,null,null,null,null,null,0,null,"","","",""]
[null,null,null,null,null,null,null,null,0,null,"","","",""]
[null,null,null,null,null,null,null,null,0,null,"","","",""]
[null,null,null,null,null,null,null,null,0,null,"","","",""]
[null,null,null,null,null,null,null,null,0,null,"","","",""]
[null,null,null,null,null,null,null,null,0,null,"","","",""]
[null,null,null,null,null,null,null,null,0,null,"","","",""]
[null,null,null,null,null,null,null,null,0,null,"","","",""]
[null,null,null,null,null,null,null,null,0,null,"","","",""]
[null,null,null,null,null,null,null,null,0,null,"","","",""]
[null,null,null,null,null,null,null,null,0,null,"","","",""]
[null,null,null,null,null,null,null,null,0,null,"","","",""]
[null,null,null,null,null,null,null,null,0,null,"","","",""]
[null,null,null,null,null,null,null,null,0,null,"","","",""]
[null,null,null,null,null,null,null,null,0,null,"","","",""]
[null,null,null,null,null,null,null,null,0,null,"","","",""]
[null,null,null,null,null,null,null,null,0,null,"","","",""]
[null,null,null,null,null,null,null,null,0,null,"","","",""]
[null,null,null,null,null,null,null,null,0,null,"","","",""]
[null,null,null,null,null,null,null,null,0,null,"","","",""]
[null,null,null,null,null,null,null,null,0,null,"","","",""]
[null,null,null,null,null,null,null,null,0,null,"","","",""]
[null,null,null,null,null,null,null,null,0,null,"","","",""]
[null,null,null,null,null,null,null,null,0,null,"","","",""]
[null,null,null,null,null,null,null,null,0,null,"","","",""]
[null,null,null,null,null,null,null,null,0,null,"","","",""]
[null,null,null,null,null,null,null,null,0,null,"","","",""]
[null,null,null,null,null,null,null,null,0,null,"","","",""]
[null,null,null,null,null,null,null,null,0,null,"","","",""]
[null,null,null,null,null,null,null,null,0,null,"","","",""]
[null,null,null,null,null,null,null,null,0,null,"","","",""]
[null,null,null,null,null,null,null,null,0,null,"","","",""]
[null,null,null,null,null,null,null,null,0,null,"","","",""]
[null,null,null,null,null,null,null,null,0,null,"","","",""]
[null,null,null,null,null,null,null,null,0,null,"","","",""]
[null,null,null,null,null,null,null,null,0,null,"","","",""]
[null,null,null,null,null,null,null,null,0,null,"","","",""]
[null,null,null,null,null,null,null,null,0,null,"","","",""]
[null,null,null,null,null,null,null,null,0,null,"","","",""]
[null,null,null,null,null,null,null,null,0,null,"","","",""]
[null,null,null,null,null,null,null,null,0,null,"","","",""]
[null,null,null,null,null,null,null,null,0,null,"","","",""]
[null,null,null,null,null,null,null,null,0,null,"","","",""]
[null,null,null,null,null,null,null,null,0,null,"","","",""]
[null,null,null,null,null,null,null,null,{"$f":"IFERROR(G906+H906,\"\")","v":0},null,{"$f":"IFERROR(IF(J906<>\"\",F906*J906,\"\"),\"\")","v":""},{"$f":"IFERROR(IF(J906<>\"\",G906*J906,\"\"),\"\")","v":""},{"$f":"IFERROR(IF(J906<>\"\",H906*J906,\"\"),\"\")","v":""},{"$f":"IFERROR(L906+M906,\"\")","v":""}]
[null,null,null,null,null,null,null,null,0,null,"","","",""]
[null,null,null,null,null,null,null,null,0,null,"","","",""]
[null,null,null,null,null,null,null,null,0,null,"","","",""]
[null,null,null,null,null,null,null,null,0,null,"","","",""]
[null,null,null,null,null,null,null,null,0,null,"","","",""]
[null,null,null,null,null,null,null,null,0,null,"","","",""]
[null,null,null,null,null,null,null,null,0,null,"","","",""]
[null,null,null,null,null,null,null,null,0,null,"","","",""]
[null,null,null,null,null,null,null,null,0,null,"","","",""]
[null,null,null,null,null,null,null,null,0,null,"","","",""]
[null,null,null,null,null,null,null,null,0,null,"","","",""]
[null,null,null,null,null,null,null,null,0,null,"","","",""]
[null,null,null,null,null,null,null,null,0,null,"","","",""]
[null,null,null,null,null,null,null,null,0,null,"","","",""]
[null,null,null,null,null,null,null,null,0,null,"","","",""]
[null,null,null,null,null,null,null,null,0,null,"","","",""]
[null,null,null,null,null,null,null,null,0,null,"","","",""]
[null,null,null,null,null,null,null,null,0,null,"","","",""]
[null,null,null,null,null,null,null,null,0,null,"","","",""]
[null,null,null,null,null,null,null,null,0,null,"","","",""]
[null,null,null,null,null,null,null,null,0,null,"","","",""]
[null,null,null,null,null,null,null,null,0,null,"","","",""]
[null,null,null,null,null,null,null,null,0,null,"","","",""]
[null,null,null,null,null,null,null,null,0,null,"","","",""]
[null,null,null,null,null,null,null,null,0,null,"","","",""]
[null,null,null,null,null,null,null,null,0,null,"","","",""]
[null,null,null,null,null,null,null,null,0,null,"","","",""]
[null,null,null,null,null,null,null,null,0,null,"","","",""]
[null,null,null,null,null,null,null,null,0,null,"","","",""]
[null,null,null,null,null,null,null,null,0,null,"","","",""]
[null,null,null,null,null,null,null,null,0,null,"","","",""]
[null,null,null,null,null,null,null,null,0,null,"","","",""]
[null,null,null,null,null,null,null,null,0,null,"","","",""]
[null,null,null,null,null,null,null,null,0,null,"","","",""]
[null,null,null,null,null,null,null,null,0,null,"","","",""]
[null,null,null,null,null,null,null,null,0,null,"","","",""]
[null,null,null,null,null,null,null,null,0,null,"","","",""]
[null,null,null,null,null,null,null,null,0,null,"","","",""]
[null,null,null,null,null,null,null,null,0,null,"","","",""]
[null,null,null,null,null,null,null,null,0,null,"","","",""]
[null,null,null,null,null,null,null,null,0,null,"","","",""]
[null,null,null,null,null,null,null,null,0,null,"","","",""]
[null,null,null,null,null,null,null,null,0,null,"","","",""]
[null,null,null,null,null,null,null,null,0,null,"","","",""]
[null,null,null,null,null,null,null,null,0,null,"","","",""]
[null,null,null,null,null,null,null,null,0,null,"","","",""]
[null,null,null,null,null,null,null,null,0,null,"","","",""]
[null,null,null,null,null,null,null,null,0,null,"","","",""]
[null,null,null,null,null,null,null,null,0,null,"","","",""]
[null,null,null,null,null,null,null,null,0,null,"","","",""]
[null,null,null,null,null,null,null,null,0,null,"","","",""]
[null,null,null,null,null,null,null,null,0,null,"","","",""]
[null,null,null,null,null,null,null,null,0,null,"","","",""]
[null,null,null,null,null,null,null,null,0,null,"","","",""]
[null,null,null,null,null,null,null,null,0,null,"","","",""]
[null,null,null,null,null,null,null,null,0,null,"","","",""]
[null,null,null,null,null,null,null,null,0,null,"","","",""]
[null,null,null,null,null,null,null,null,0,null,"","","",""]
[null,null,null,null,null,null,null,null,0,null,"","","",""]
[null,null,null,null,null,null,null,null,0,null,"","","",""]
[null,null,null,null,null,null,null,null,0,null,"","","",""]
[null,null,null,null,null,null,null,null,0,null,"","","",""]
[null,null,null,null,null,null,null,null,0,null,"","","",""]
[null,null,null,null,null,null,null,null,{"$f":"IFERROR(G970+H970,\"\")","v":0},null,{"$f":"IFERROR(IF(J970<>\"\",F970*J970,\"\"),\"\")","v":""},{"$f":"IFERROR(IF(J970<>\"\",G970*J970,\"\"),\"\")","v":""},{"$f":"IFERROR(IF(J970<>\"\",H970*J970,\"\"),\"\")","v":""},{"$f":"IFERROR(L970+M970,\"\")","v":""}]
[null,null,null,null,null,null,null,null,0,null,"","","",""]
[null,null,null,null,null,null,null,null,0,null,"","","",""]
[null,null,null,null,null,null,null,null,0,null,"","","",""]
[null,null,null,null,null,null,null,null,0,null,"","","",""]
[null,null,null,null,null,null,null,null,0,null,"","","",""]
[null,null,null,null,null,null,null,null,0,null,"","","",""]
[null,null,null,null,null,null,null,null,0,null,"","","",""]
[null,null,null,null,null,null,null,null,0,null,"","","",""]
[null,null,null,null,null,null,null,null,0,null,"","","",""]
[null,null,null,null,null,null,null,null,0,null,"","","",""]
[null,null,null,null,null,null,null,null,0,null,"","","",""]
[null,null,null,null,null,null,null,null,0,null,"","","",""]
[null,null,null,null,null,null,null,null,0,null,"","","",""]
[null,null,null,null,null,null,null,null,0,null,"","","",""]
[null,null,null,null,null,null,null,null,0,null,"","","",""]
[null,null,null,null,null,null,null,null,0,null,"","","",""]
[null,null,null,null,null,null,null,null,0,null,"","","",""]
[null,null,null,null,null,null,null,null,0,null,"","","",""]
[null,null,null,null,null,null,null,null,0,null,"","","",""]
[null,null,null,null,null,null,null,null,0,null,"","","",""]
[null,null,null,null,null,null,null,null,0,null,"","","",""]
[null,null,null,null,null,null,null,null,0,null,"","","",""]
[null,null,null,null,null,null,null,null,0,null,"","","",""]
[null,null,null,null,null,null,null,null,0,null,"","","",""]
[null,null,null,null,null,null,null,null,0,null,"","","",""]
[null,null,null,null,null,null,null,null,0,null,"","","",""]
[null,null,null,null,null,null,null,null,0,null,"","","",""]
[null,null,null,null,null,null,null,null,0,null,"","","",""]
[null,null,null,null,null,null,null,null,0,null,"","","",""]

{"sheet":"4.VS-B","index":6,"n_rows":999,"n_cols":15,"rows_kept":999,"cut":false,"hidden":false,"merged":[[5,4,7,4],[0,1,1,1],[5,0,7,0],[5,1,7,1],[5,2,7,2],[5,3,7,3],[5,5,5,8],[5,9,7,9],[5,10,5,13],[6,5,7,5],[6,6,6,8],[6,10,7,10],[6,11,6,13]]}
[null,{"$f":"CONCATENATE(\"OVERZICHT VORDERINGSSTAAT \",'1.Overzicht vorderingsstaat'!AR3,\" - DEEL B\")","v":"OVERZICHT VORDERINGSSTAAT 0 - DEEL B"},null,null,null,null,null,null,null,null,null,null,"Datum : ",{"$f":"'1.Overzicht vorderingsstaat'!AR8","v":"00:00:00"}]
[null,null,null,null,null,null,null,null,null,null,null,null,"Projectingenieur : ",{"$f":"'0.basisgegevens'!B6","v":0}]
["TE",{"$f":"'0.basisgegevens'!B2","v":0}]
["Titel",{"$f":"'0.basisgegevens'!B3","v":0}]
[null,null,null,null,null,null,null,null,null,"TOTAAL excl. BTW",{"$f":"IFERROR(IF(SUM(K9:K999)<>0,SUM(K9:K999),\"\"),\"\")","v":""},{"$f":"IFERROR(IF(SUM(L9:L999)<>0,SUM(L9:L999),\"\"),\"\")","v":""},"",{"$f":"IFERROR(IF(SUM(N9:N999)<>0,SUM(N9:N999),\"\"),\"\")","v":""}]
["Artnr","Omschrijving","Herziening","Meting","EH","HOEVEELHEDEN",null,null,null,"Eenh.prijs \n(excl. BTW)","BEDRAGEN"]
[null,null,null,null,null,"Voorziene hoeveelheid","Uitgevoerde hoeveelheden",null,null,null,"Voorzien bedrag","Uitgevoerde bedragen"]
[null,null,null,null,null,null,"Vorige periode","Huidige periode","Cumul",null,null,"Vorige periode","Huidige periode","Cumul","afdrukbereik filter"]
[null,null,null,null,null,null,null,null,null,null,{"$f":"IFERROR(IF(J9<>\"\",F9*J9,\"\"),\"\")","v":""},{"$f":"IFERROR(IF(J9<>\"\",G9*J9,\"\"),\"\")","v":""},{"$f":"IFERROR(IF(J9<>\"\",H9*J9,\"\"),\"\")","v":""},{"$f":"IFERROR(L9+M9,\"\")","v":""}]
[null,null,null,null,null,null,null,null,null,null,{"$f":"IFERROR(IF(J10<>\"\",F10*J10,\"\"),\"\")","v":""},{"$f":"IFERROR(IF(J10<>\"\",G10*J10,\"\"),\"\")","v":""},{"$f":"IFERROR(IF(J10<>\"\",H10*J10,\"\"),\"\")","v":""},{"$f":"IFERROR(L10+M10,\"\")","v":""}]
[null,null,null,null,null,null,null,null,null,null,"","","",""]
[null,null,null,null,null,null,null,null,null,null,"","","",""]
[null,null,null,null,null,null,null,null,null,null,"","","",""]
[null,null,null,null,null,null,null,null,null,null,"","","",""]
[null,null,null,null,null,null,null,null,null,null,"","","",""]
[null,null,null,null,null,null,null,null,null,null,"","","",""]
[null,null,null,null,null,null,null,null,null,null,"","","",""]
[null,null,null,null,null,null,null,null,null,null,"","","",""]
[null,null,null,null,null,null,null,null,null,null,"","","",""]
[null,null,null,null,null,null,null,null,null,null,"","","",""]
[null,null,null,null,null,null,null,null,null,null,"","","",""]
[null,null,null,null,null,null,null,null,null,null,"","","",""]
[null,null,null,null,null,null,null,null,null,null,"","","",""]
[null,null,null,null,null,null,null,null,null,null,"","","",""]
[null,null,null,null,null,null,null,null,null,null,"","","",""]
[null,null,null,null,null,null,null,null,null,null,"","","",""]
[null,null,null,null,null,null,null,null,null,null,"","","",""]
[null,null,null,null,null,null,null,null,null,null,"","","",""]
[null,null,null,null,null,null,null,null,null,null,"","","",""]
[null,null,null,null,null,null,null,null,null,null,"","","",""]
[null,null,null,null,null,null,null,null,null,null,"","","",""]
[null,null,null,null,null,null,null,null,null,null,"","","",""]
[null,null,null,null,null,null,null,null,null,null,"","","",""]
[null,null,null,null,null,null,null,null,null,null,"","","",""]
[null,null,null,null,null,null,null,null,null,null,"","","",""]
[null,null,null,null,null,null,null,null,null,null,"","","",""]
[null,null,null,null,null,null,null,null,null,null,"","","",""]
[null,null,null,null,null,null,null,null,null,null,"","","",""]
[null,null,null,null,null,null,null,null,null,null,"","","",""]
[null,null,null,null,null,null,null,null,null,null,"","","",""]
[null,null,null,null,null,null,null,null,null,null,"","","",""]
[null,null,null,null,null,null,null,null,null,null,"","","",""]
[null,null,null,null,null,null,null,null,null,null,"","","",""]
[null,null,null,null,null,null,null,null,null,null,"","","",""]
[null,null,null,null,null,null,null,null,null,null,"","","",""]
[null,null,null,null,null,null,null,null,null,null,"","","",""]
[null,null,null,null,null,null,null,null,null,null,"","","",""]
[null,null,null,null,null,null,null,null,null,null,"","","",""]
[null,null,null,null,null,null,null,null,null,null,"","","",""]
[null,null,null,null,null,null,null,null,null,null,"","","",""]
[null,null,null,null,null,null,null,null,null,null,"","","",""]
[null,null,null,null,null,null,null,null,null,null,"","","",""]
[null,null,null,null,null,null,null,null,null,null,"","","",""]
[null,null,null,null,null,null,null,null,null,null,"","","",""]
[null,null,null,null,null,null,null,null,null,null,"","","",""]
[null,null,null,null,null,null,null,null,null,null,"","","",""]
[null,null,null,null,null,null,null,null,null,null,"","","",""]
[null,null,null,null,null,null,null,null,null,null,"","","",""]
[null,null,null,null,null,null,null,null,null,null,"","","",""]
[null,null,null,null,null,null,null,null,null,null,"","","",""]
[null,null,null,null,null,null,null,null,null,null,"","","",""]
[null,null,null,null,null,null,null,null,null,null,"","","",""]
[null,null,null,null,null,null,null,null,null,null,"","","",""]
[null,null,null,null,null,null,null,null,null,null,"","","",""]
[null,null,null,null,null,null,null,null,null,null,"","","",""]
[null,null,null,null,null,null,null,null,null,null,"","","",""]
[null,null,null,null,null,null,null,null,null,null,"","","",""]
[null,null,null,null,null,null,null,null,null,null,"","","",""]
[null,null,null,null,null,null,null,null,null,null,"","","",""]
[null,null,null,null,null,null,null,null,null,null,"","","",""]
[null,null,null,null,null,null,null,null,null,null,"","","",""]
[null,null,null,null,null,null,null,null,null,null,"","","",""]
[null,null,null,null,null,null,null,null,null,null,"","","",""]
[null,null,null,null,null,null,null,null,null,null,{"$f":"IFERROR(IF(J74<>\"\",F74*J74,\"\"),\"\")","v":""},{"$f":"IFERROR(IF(J74<>\"\",G74*J74,\"\"),\"\")","v":""},{"$f":"IFERROR(IF(J74<>\"\",H74*J74,\"\"),\"\")","v":""},{"$f":"IFERROR(L74+M74,\"\")","v":""}]
[null,null,null,null,null,null,null,null,null,null,"","","",""]
[null,null,null,null,null,null,null,null,null,null,"","","",""]
[null,null,null,null,null,null,null,null,null,null,"","","",""]
[null,null,null,null,null,null,null,null,null,null,"","","",""]
[null,null,null,null,null,null,null,null,null,null,"","","",""]
[null,null,null,null,null,null,null,null,null,null,"","","",""]
[null,null,null,null,null,null,null,null,null,null,"","","",""]
[null,null,null,null,null,null,null,null,null,null,"","","",""]
[null,null,null,null,null,null,null,null,null,null,"","","",""]
[null,null,null,null,null,null,null,null,null,null,"","","",""]
[null,null,null,null,null,null,null,null,null,null,"","","",""]
[null,null,null,null,null,null,null,null,null,null,"","","",""]
[null,null,null,null,null,null,null,null,null,null,"","","",""]
[null,null,null,null,null,null,null,null,null,null,"","","",""]
[null,null,null,null,null,null,null,null,null,null,"","","",""]
[null,null,null,null,null,null,null,null,null,null,"","","",""]
[null,null,null,null,null,null,null,null,null,null,"","","",""]
[null,null,null,null,null,null,null,null,null,null,"","","",""]
[null,null,null,null,null,null,null,null,null,null,"","","",""]
[null,null,null,null,null,null,null,null,null,null,"","","",""]
[null,null,null,null,null,null,null,null,null,null,"","","",""]
[null,null,null,null,null,null,null,null,null,null,"","","",""]
[null,null,null,null,null,null,null,null,null,null,"","","",""]
[null,null,null,null,null,null,null,null,null,null,"","","",""]
[null,null,null,null,null,null,null,null,null,null,"","","",""]
[null,null,null,null,null,null,null,null,null,null,"","","",""]
[null,null,null,null,null,null,null,null,null,null,"","","",""]
[null,null,null,null,null,null,null,null,null,null,"","","",""]
[null,null,null,null,null,null,null,null,null,null,"","","",""]
[null,null,null,null,null,null,null,null,null,null,"","","",""]
[null,null,null,null,null,null,null,null,null,null,"","","",""]
[null,null,null,null,null,null,null,null,null,null,"","","",""]
[null,null,null,null,null,null,null,null,null,null,"","","",""]
[null,null,null,null,null,null,null,null,null,null,"","","",""]
[null,null,null,null,null,null,null,null,null,null,"","","",""]
[null,null,null,null,null,null,null,null,null,null,"","","",""]
[null,null,null,null,null,null,null,null,null,null,"","","",""]
[null,null,null,null,null,null,null,null,null,null,"","","",""]
[null,null,null,null,null,null,null,null,{"$f":"IFERROR(G113+H113,\"\")","v":0},null,"","","",""]
[null,null,null,null,null,null,null,null,0,null,"","","",""]
[null,null,null,null,null,null,null,null,0,null,"","","",""]
[null,null,null,null,null,null,null,null,0,null,"","","",""]
[null,null,null,null,null,null,null,null,0,null,"","","",""]
[null,null,null,null,null,null,null,null,0,null,"","","",""]
[null,null,null,null,null,null,null,null,0,null,"","","",""]
[null,null,null,null,null,null,null,null,0,null,"","","",""]
[null,null,null,null,null,null,null,null,0,null,"","","",""]
[null,null,null,null,null,null,null,null,0,null,"","","",""]
[null,null,null,null,null,null,null,null,0,null,"","","",""]
[null,null,null,null,null,null,null,null,0,null,"","","",""]
[null,null,null,null,null,null,null,null,0,null,"","","",""]
[null,null,null,null,null,null,null,null,0,null,"","","",""]
[null,null,null,null,null,null,null,null,0,null,"","","",""]
[null,null,null,null,null,null,null,null,0,null,"","","",""]
[null,null,null,null,null,null,null,null,0,null,"","","",""]
[null,null,null,null,null,null,null,null,0,null,"","","",""]
[null,null,null,null,null,null,null,null,0,null,"","","",""]
[null,null,null,null,null,null,null,null,0,null,"","","",""]
[null,null,null,null,null,null,null,null,0,null,"","","",""]
[null,null,null,null,null,null,null,null,0,null,"","","",""]
[null,null,null,null,null,null,null,null,0,null,"","","",""]
[null,null,null,null,null,null,null,null,0,null,"","","",""]
[null,null,null,null,null,null,null,null,0,null,"","","",""]
[null,null,null,null,null,null,null,null,{"$f":"IFERROR(G138+H138,\"\")","v":0},null,{"$f":"IFERROR(IF(J138<>\"\",F138*J138,\"\"),\"\")","v":""},{"$f":"IFERROR(IF(J138<>\"\",G138*J138,\"\"),\"\")","v":""},{"$f":"IFERROR(IF(J138<>\"\",H138*J138,\"\"),\"\")","v":""},{"$f":"IFERROR(L138+M138,\"\")","v":""}]
[null,null,null,null,null,null,null,null,0,null,"","","",""]
[null,null,null,null,null,null,null,null,0,null,"","","",""]
[null,null,null,null,null,null,null,null,0,null,"","","",""]
[null,null,null,null,null,null,null,null,0,null,"","","",""]
[null,null,null,null,null,null,null,null,0,null,"","","",""]
[null,null,null,null,null,null,null,null,0,null,"","","",""]
[null,null,null,null,null,null,null,null,0,null,"","","",""]
[null,null,null,null,null,null,null,null,0,null,"","","",""]
[null,null,null,null,null,null,null,null,0,null,"","","",""]
[null,null,null,null,null,null,null,null,0,null,"","","",""]
[null,null,null,null,null,null,null,null,0,null,"","","",""]
[null,null,null,null,null,null,null,null,0,null,"","","",""]
[null,null,null,null,null,null,null,null,0,null,"","","",""]
[null,null,null,null,null,null,null,null,0,null,"","","",""]
[null,null,null,null,null,null,null,null,0,null,"","","",""]
[null,null,null,null,null,null,null,null,0,null,"","","",""]
[null,null,null,null,null,null,null,null,0,null,"","","",""]
[null,null,null,null,null,null,null,null,0,null,"","","",""]
[null,null,null,null,null,null,null,null,0,null,"","","",""]
[null,null,null,null,null,null,null,null,0,null,"","","",""]
[null,null,null,null,null,null,null,null,0,null,"","","",""]
[null,null,null,null,null,null,null,null,0,null,"","","",""]
[null,null,null,null,null,null,null,null,0,null,"","","",""]
[null,null,null,null,null,null,null,null,0,null,"","","",""]
[null,null,null,null,null,null,null,null,0,null,"","","",""]
[null,null,null,null,null,null,null,null,0,null,"","","",""]
[null,null,null,null,null,null,null,null,0,null,"","","",""]
[null,null,null,null,null,null,null,null,0,null,"","","",""]
[null,null,null,null,null,null,null,null,0,null,"","","",""]
[null,null,null,null,null,null,null,null,0,null,"","","",""]
[null,null,null,null,null,null,null,null,0,null,"","","",""]
[null,null,null,null,null,null,null,null,0,null,"","","",""]
[null,null,null,null,null,null,null,null,0,null,"","","",""]
[null,null,null,null,null,null,null,null,0,null,"","","",""]
[null,null,null,null,null,null,null,null,0,null,"","","",""]
[null,null,null,null,null,null,null,null,0,null,"","","",""]
[null,null,null,null,null,null,null,null,0,null,"","","",""]
[null,null,null,null,null,null,null,null,0,null,"","","",""]
[null,null,null,null,null,null,null,null,0,null,"","","",""]
[null,null,null,null,null,null,null,null,0,null,"","","",""]
[null,null,null,null,null,null,null,null,0,null,"","","",""]
[null,null,null,null,null,null,null,null,0,null,"","","",""]
[null,null,null,null,null,null,null,null,0,null,"","","",""]
[null,null,null,null,null,null,null,null,0,null,"","","",""]
[null,null,null,null,null,null,null,null,0,null,"","","",""]
[null,null,null,null,null,null,null,null,0,null,"","","",""]
[null,null,null,null,null,null,null,null,0,null,"","","",""]
[null,null,null,null,null,null,null,null,0,null,"","","",""]
[null,null,null,null,null,null,null,null,0,null,"","","",""]
[null,null,null,null,null,null,null,null,0,null,"","","",""]
[null,null,null,null,null,null,null,null,0,null,"","","",""]
[null,null,null,null,null,null,null,null,0,null,"","","",""]
[null,null,null,null,null,null,null,null,0,null,"","","",""]
[null,null,null,null,null,null,null,null,0,null,"","","",""]
[null,null,null,null,null,null,null,null,0,null,"","","",""]
[null,null,null,null,null,null,null,null,0,null,"","","",""]
[null,null,null,null,null,null,null,null,0,null,"","","",""]
[null,null,null,null,null,null,null,null,0,null,"","","",""]
[null,null,null,null,null,null,null,null,0,null,"","","",""]
[null,null,null,null,null,null,null,null,0,null,"","","",""]
[null,null,null,null,null,null,null,null,0,null,"","","",""]
[null,null,null,null,null,null,null,null,0,null,"","","",""]
[null,null,null,null,null,null,null,null,0,null,"","","",""]
[null,null,null,null,null,null,null,null,{"$f":"IFERROR(G202+H202,\"\")","v":0},null,{"$f":"IFERROR(IF(J202<>\"\",F202*J202,\"\"),\"\")","v":""},{"$f":"IFERROR(IF(J202<>\"\",G202*J202,\"\"),\"\")","v":""},{"$f":"IFERROR(IF(J202<>\"\",H202*J202,\"\"),\"\")","v":""},{"$f":"IFERROR(L202+M202,\"\")","v":""}]
[null,null,null,null,null,null,null,null,0,null,"","","",""]
[null,null,null,null,null,null,null,null,0,null,"","","",""]
[null,null,null,null,null,null,null,null,0,null,"","","",""]
[null,null,null,null,null,null,null,null,0,null,"","","",""]
[null,null,null,null,null,null,null,null,0,null,"","","",""]
[null,null,null,null,null,null,null,null,0,null,"","","",""]
[null,null,null,null,null,null,null,null,0,null,"","","",""]
[null,null,null,null,null,null,null,null,0,null,"","","",""]
[null,null,null,null,null,null,null,null,0,null,"","","",""]
[null,null,null,null,null,null,null,null,0,null,"","","",""]
[null,null,null,null,null,null,null,null,0,null,"","","",""]
[null,null,null,null,null,null,null,null,0,null,"","","",""]
[null,null,null,null,null,null,null,null,0,null,"","","",""]
[null,null,null,null,null,null,null,null,0,null,"","","",""]
[null,null,null,null,null,null,null,null,0,null,"","","",""]
[null,null,null,null,null,null,null,null,0,null,"","","",""]
[null,null,null,null,null,null,null,null,0,null,"","","",""]
[null,null,null,null,null,null,null,null,0,null,"","","",""]
[null,null,null,null,null,null,null,null,0,null,"","","",""]
[null,null,null,null,null,null,null,null,0,null,"","","",""]
[null,null,null,null,null,null,null,null,0,null,"","","",""]
[null,null,null,null,null,null,null,null,0,null,"","","",""]
[null,null,null,null,null,null,null,null,0,null,"","","",""]
[null,null,null,null,null,null,null,null,0,null,"","","",""]
[null,null,null,null,null,null,null,null,0,null,"","","",""]
[null,null,null,null,null,null,null,null,0,null,"","","",""]
[null,null,null,null,null,null,null,null,0,null,"","","",""]
[null,null,null,null,null,null,null,null,0,null,"","","",""]
[null,null,null,null,null,null,null,null,0,null,"","","",""]
[null,null,null,null,null,null,null,null,0,null,"","","",""]
[null,null,null,null,null,null,null,null,0,null,"","","",""]
[null,null,null,null,null,null,null,null,0,null,"","","",""]
[null,null,null,null,null,null,null,null,0,null,"","","",""]
[null,null,null,null,null,null,null,null,0,null,"","","",""]
[null,null,null,null,null,null,null,null,0,null,"","","",""]
[null,null,null,null,null,null,null,null,0,null,"","","",""]
[null,null,null,null,null,null,null,null,0,null,"","","",""]
[null,null,null,null,null,null,null,null,0,null,"","","",""]
[null,null,null,null,null,null,null,null,0,null,"","","",""]
[null,null,null,null,null,null,null,null,0,null,"","","",""]
[null,null,null,null,null,null,null,null,0,null,"","","",""]
[null,null,null,null,null,null,null,null,0,null,"","","",""]
[null,null,null,null,null,null,null,null,0,null,"","","",""]
[null,null,null,null,null,null,null,null,0,null,"","","",""]
[null,null,null,null,null,null,null,null,0,null,"","","",""]
[null,null,null,null,null,null,null,null,0,null,"","","",""]
[null,null,null,null,null,null,null,null,0,null,"","","",""]
[null,null,null,null,null,null,null,null,0,null,"","","",""]
[null,null,null,null,null,null,null,null,0,null,"","","",""]
[null,null,null,null,null,null,null,null,0,null,"","","",""]
[null,null,null,null,null,null,null,null,0,null,"","","",""]
[null,null,null,null,null,null,null,null,0,null,"","","",""]
[null,null,null,null,null,null,null,null,0,null,"","","",""]
[null,null,null,null,null,null,null,null,0,null,"","","",""]
[null,null,null,null,null,null,null,null,0,null,"","","",""]
[null,null,null,null,null,null,null,null,0,null,"","","",""]
[null,null,null,null,null,null,null,null,0,null,"","","",""]
[null,null,null,null,null,null,null,null,0,null,"","","",""]
[null,null,null,null,null,null,null,null,0,null,"","","",""]
[null,null,null,null,null,null,null,null,0,null,"","","",""]
[null,null,null,null,null,null,null,null,0,null,"","","",""]
[null,null,null,null,null,null,null,null,0,null,"","","",""]
[null,null,null,null,null,null,null,null,0,null,"","","",""]
[null,null,null,null,null,null,null,null,{"$f":"IFERROR(G266+H266,\"\")","v":0},null,{"$f":"IFERROR(IF(J266<>\"\",F266*J266,\"\"),\"\")","v":""},{"$f":"IFERROR(IF(J266<>\"\",G266*J266,\"\"),\"\")","v":""},{"$f":"IFERROR(IF(J266<>\"\",H266*J266,\"\"),\"\")","v":""},{"$f":"IFERROR(L266+M266,\"\")","v":""}]
[null,null,null,null,null,null,null,null,0,null,"","","",""]
[null,null,null,null,null,null,null,null,0,null,"","","",""]
[null,null,null,null,null,null,null,null,0,null,"","","",""]
[null,null,null,null,null,null,null,null,0,null,"","","",""]
[null,null,null,null,null,null,null,null,0,null,"","","",""]
[null,null,null,null,null,null,null,null,0,null,"","","",""]
[null,null,null,null,null,null,null,null,0,null,"","","",""]
[null,null,null,null,null,null,null,null,0,null,"","","",""]
[null,null,null,null,null,null,null,null,0,null,"","","",""]
[null,null,null,null,null,null,null,null,0,null,"","","",""]
[null,null,null,null,null,null,null,null,0,null,"","","",""]
[null,null,null,null,null,null,null,null,0,null,"","","",""]
[null,null,null,null,null,null,null,null,0,null,"","","",""]
[null,null,null,null,null,null,null,null,0,null,"","","",""]
[null,null,null,null,null,null,null,null,0,null,"","","",""]
[null,null,null,null,null,null,null,null,0,null,"","","",""]
[null,null,null,null,null,null,null,null,0,null,"","","",""]
[null,null,null,null,null,null,null,null,0,null,"","","",""]
[null,null,null,null,null,null,null,null,0,null,"","","",""]
[null,null,null,null,null,null,null,null,0,null,"","","",""]
[null,null,null,null,null,null,null,null,0,null,"","","",""]
[null,null,null,null,null,null,null,null,0,null,"","","",""]
[null,null,null,null,null,null,null,null,0,null,"","","",""]
[null,null,null,null,null,null,null,null,0,null,"","","",""]
[null,null,null,null,null,null,null,null,0,null,"","","",""]
[null,null,null,null,null,null,null,null,0,null,"","","",""]
[null,null,null,null,null,null,null,null,0,null,"","","",""]
[null,null,null,null,null,null,null,null,0,null,"","","",""]
[null,null,null,null,null,null,null,null,0,null,"","","",""]
[null,null,null,null,null,null,null,null,0,null,"","","",""]
[null,null,null,null,null,null,null,null,0,null,"","","",""]
[null,null,null,null,null,null,null,null,0,null,"","","",""]
[null,null,null,null,null,null,null,null,0,null,"","","",""]
[null,null,null,null,null,null,null,null,0,null,"","","",""]
[null,null,null,null,null,null,null,null,0,null,"","","",""]
[null,null,null,null,null,null,null,null,0,null,"","","",""]
[null,null,null,null,null,null,null,null,0,null,"","","",""]
[null,null,null,null,null,null,null,null,0,null,"","","",""]
[null,null,null,null,null,null,null,null,0,null,"","","",""]
[null,null,null,null,null,null,null,null,0,null,"","","",""]
[null,null,null,null,null,null,null,null,0,null,"","","",""]
[null,null,null,null,null,null,null,null,0,null,"","","",""]
[null,null,null,null,null,null,null,null,0,null,"","","",""]
[null,null,null,null,null,null,null,null,0,null,"","","",""]
[null,null,null,null,null,null,null,null,0,null,"","","",""]
[null,null,null,null,null,null,null,null,0,null,"","","",""]
[null,null,null,null,null,null,null,null,0,null,"","","",""]
[null,null,null,null,null,null,null,null,0,null,"","","",""]
[null,null,null,null,null,null,null,null,0,null,"","","",""]
[null,null,null,null,null,null,null,null,0,null,"","","",""]
[null,null,null,null,null,null,null,null,0,null,"","","",""]
[null,null,null,null,null,null,null,null,0,null,"","","",""]
[null,null,null,null,null,null,null,null,0,null,"","","",""]
[null,null,null,null,null,null,null,null,0,null,"","","",""]
[null,null,null,null,null,null,null,null,0,null,"","","",""]
[null,null,null,null,null,null,null,null,0,null,"","","",""]
[null,null,null,null,null,null,null,null,0,null,"","","",""]
[null,null,null,null,null,null,null,null,0,null,"","","",""]
[null,null,null,null,null,null,null,null,0,null,"","","",""]
[null,null,null,null,null,null,null,null,0,null,"","","",""]
[null,null,null,null,null,null,null,null,0,null,"","","",""]
[null,null,null,null,null,null,null,null,0,null,"","","",""]
[null,null,null,null,null,null,null,null,0,null,"","","",""]
[null,null,null,null,null,null,null,null,{"$f":"IFERROR(G330+H330,\"\")","v":0},null,{"$f":"IFERROR(IF(J330<>\"\",F330*J330,\"\"),\"\")","v":""},{"$f":"IFERROR(IF(J330<>\"\",G330*J330,\"\"),\"\")","v":""},{"$f":"IFERROR(IF(J330<>\"\",H330*J330,\"\"),\"\")","v":""},{"$f":"IFERROR(L330+M330,\"\")","v":""}]
[null,null,null,null,null,null,null,null,0,null,"","","",""]
[null,null,null,null,null,null,null,null,0,null,"","","",""]
[null,null,null,null,null,null,null,null,0,null,"","","",""]
[null,null,null,null,null,null,null,null,0,null,"","","",""]
[null,null,null,null,null,null,null,null,0,null,"","","",""]
[null,null,null,null,null,null,null,null,0,null,"","","",""]
[null,null,null,null,null,null,null,null,0,null,"","","",""]
[null,null,null,null,null,null,null,null,0,null,"","","",""]
[null,null,null,null,null,null,null,null,0,null,"","","",""]
[null,null,null,null,null,null,null,null,0,null,"","","",""]
[null,null,null,null,null,null,null,null,0,null,"","","",""]
[null,null,null,null,null,null,null,null,0,null,"","","",""]
[null,null,null,null,null,null,null,null,0,null,"","","",""]
[null,null,null,null,null,null,null,null,0,null,"","","",""]
[null,null,null,null,null,null,null,null,0,null,"","","",""]
[null,null,null,null,null,null,null,null,0,null,"","","",""]
[null,null,null,null,null,null,null,null,0,null,"","","",""]
[null,null,null,null,null,null,null,null,0,null,"","","",""]
[null,null,null,null,null,null,null,null,0,null,"","","",""]
[null,null,null,null,null,null,null,null,0,null,"","","",""]
[null,null,null,null,null,null,null,null,0,null,"","","",""]
[null,null,null,null,null,null,null,null,0,null,"","","",""]
[null,null,null,null,null,null,null,null,0,null,"","","",""]
[null,null,null,null,null,null,null,null,0,null,"","","",""]
[null,null,null,null,null,null,null,null,0,null,"","","",""]
[null,null,null,null,null,null,null,null,0,null,"","","",""]
[null,null,null,null,null,null,null,null,0,null,"","","",""]
[null,null,null,null,null,null,null,null,0,null,"","","",""]
[null,null,null,null,null,null,null,null,0,null,"","","",""]
[null,null,null,null,null,null,null,null,0,null,"","","",""]
[null,null,null,null,null,null,null,null,0,null,"","","",""]
[null,null,null,null,null,null,null,null,0,null,"","","",""]
[null,null,null,null,null,null,null,null,0,null,"","","",""]
[null,null,null,null,null,null,null,null,0,null,"","","",""]
[null,null,null,null,null,null,null,null,0,null,"","","",""]
[null,null,null,null,null,null,null,null,0,null,"","","",""]
[null,null,null,null,null,null,null,null,0,null,"","","",""]
[null,null,null,null,null,null,null,null,0,null,"","","",""]
[null,null,null,null,null,null,null,null,0,null,"","","",""]
[null,null,null,null,null,null,null,null,0,null,"","","",""]
[null,null,null,null,null,null,null,null,0,null,"","","",""]
[null,null,null,null,null,null,null,null,0,null,"","","",""]
[null,null,null,null,null,null,null,null,0,null,"","","",""]
[null,null,null,null,null,null,null,null,0,null,"","","",""]
[null,null,null,null,null,null,null,null,0,null,"","","",""]
[null,null,null,null,null,null,null,null,0,null,"","","",""]
[null,null,null,null,null,null,null,null,0,null,"","","",""]
[null,null,null,null,null,null,null,null,0,null,"","","",""]
[null,null,null,null,null,null,null,null,0,null,"","","",""]
[null,null,null,null,null,null,null,null,0,null,"","","",""]
[null,null,null,null,null,null,null,null,0,null,"","","",""]
[null,null,null,null,null,null,null,null,0,null,"","","",""]
[null,null,null,null,null,null,null,null,0,null,"","","",""]
[null,null,null,null,null,null,null,null,0,null,"","","",""]
[null,null,null,null,null,null,null,null,0,null,"","","",""]
[null,null,null,null,null,null,null,null,0,null,"","","",""]
[null,null,null,null,null,null,null,null,0,null,"","","",""]
[null,null,null,null,null,null,null,null,0,null,"","","",""]
[null,null,null,null,null,null,null,null,0,null,"","","",""]
[null,null,null,null,null,null,null,null,0,null,"","","",""]
[null,null,null,null,null,null,null,null,0,null,"","","",""]
[null,null,null,null,null,null,null,null,0,null,"","","",""]
[null,null,null,null,null,null,null,null,0,null,"","","",""]
[null,null,null,null,null,null,null,null,{"$f":"IFERROR(G394+H394,\"\")","v":0},null,{"$f":"IFERROR(IF(J394<>\"\",F394*J394,\"\"),\"\")","v":""},{"$f":"IFERROR(IF(J394<>\"\",G394*J394,\"\"),\"\")","v":""},{"$f":"IFERROR(IF(J394<>\"\",H394*J394,\"\"),\"\")","v":""},{"$f":"IFERROR(L394+M394,\"\")","v":""}]
[null,null,null,null,null,null,null,null,0,null,"","","",""]
[null,null,null,null,null,null,null,null,0,null,"","","",""]
[null,null,null,null,null,null,null,null,0,null,"","","",""]
[null,null,null,null,null,null,null,null,0,null,"","","",""]
[null,null,null,null,null,null,null,null,0,null,"","","",""]
[null,null,null,null,null,null,null,null,0,null,"","","",""]
[null,null,null,null,null,null,null,null,0,null,"","","",""]
[null,null,null,null,null,null,null,null,0,null,"","","",""]
[null,null,null,null,null,null,null,null,0,null,"","","",""]
[null,null,null,null,null,null,null,null,0,null,"","","",""]
[null,null,null,null,null,null,null,null,0,null,"","","",""]
[null,null,null,null,null,null,null,null,0,null,"","","",""]
[null,null,null,null,null,null,null,null,0,null,"","","",""]
[null,null,null,null,null,null,null,null,0,null,"","","",""]
[null,null,null,null,null,null,null,null,0,null,"","","",""]
[null,null,null,null,null,null,null,null,0,null,"","","",""]
[null,null,null,null,null,null,null,null,0,null,"","","",""]
[null,null,null,null,null,null,null,null,0,null,"","","",""]
[null,null,null,null,null,null,null,null,0,null,"","","",""]
[null,null,null,null,null,null,null,null,0,null,"","","",""]
[null,null,null,null,null,null,null,null,0,null,"","","",""]
[null,null,null,null,null,null,null,null,0,null,"","","",""]
[null,null,null,null,null,null,null,null,0,null,"","","",""]
[null,null,null,null,null,null,null,null,0,null,"","","",""]
[null,null,null,null,null,null,null,null,0,null,"","","",""]
[null,null,null,null,null,null,null,null,0,null,"","","",""]
[null,null,null,null,null,null,null,null,0,null,"","","",""]
[null,null,null,null,null,null,null,null,0,null,"","","",""]
[null,null,null,null,null,null,null,null,0,null,"","","",""]
[null,null,null,null,null,null,null,null,0,null,"","","",""]
[null,null,null,null,null,null,null,null,0,null,"","","",""]
[null,null,null,null,null,null,null,null,0,null,"","","",""]
[null,null,null,null,null,null,null,null,0,null,"","","",""]
[null,null,null,null,null,null,null,null,0,null,"","","",""]
[null,null,null,null,null,null,null,null,0,null,"","","",""]
[null,null,null,null,null,null,null,null,0,null,"","","",""]
[null,null,null,null,null,null,null,null,0,null,"","","",""]
[null,null,null,null,null,null,null,null,0,null,"","","",""]
[null,null,null,null,null,null,null,null,0,null,"","","",""]
[null,null,null,null,null,null,null,null,0,null,"","","",""]
[null,null,null,null,null,null,null,null,0,null,"","","",""]
[null,null,null,null,null,null,null,null,0,null,"","","",""]
[null,null,null,null,null,null,null,null,0,null,"","","",""]
[null,null,null,null,null,null,null,null,0,null,"","","",""]
[null,null,null,null,null,null,null,null,0,null,"","","",""]
[null,null,null,null,null,null,null,null,0,null,"","","",""]
[null,null,null,null,null,null,null,null,0,null,"","","",""]
[null,null,null,null,null,null,null,null,0,null,"","","",""]
[null,null,null,null,null,null,null,null,0,null,"","","",""]
[null,null,null,null,null,null,null,null,0,null,"","","",""]
[null,null,null,null,null,null,null,null,0,null,"","","",""]
[null,null,null,null,null,null,null,null,0,null,"","","",""]
[null,null,null,null,null,null,null,null,0,null,"","","",""]
[null,null,null,null,null,null,null,null,0,null,"","","",""]
[null,null,null,null,null,null,null,null,0,null,"","","",""]
[null,null,null,null,null,null,null,null,0,null,"","","",""]
[null,null,null,null,null,null,null,null,0,null,"","","",""]
[null,null,null,null,null,null,null,null,0,null,"","","",""]
[null,null,null,null,null,null,null,null,0,null,"","","",""]
[null,null,null,null,null,null,null,null,0,null,"","","",""]
[null,null,null,null,null,null,null,null,0,null,"","","",""]
[null,null,null,null,null,null,null,null,0,null,"","","",""]
[null,null,null,null,null,null,null,null,0,null,"","","",""]
[null,null,null,null,null,null,null,null,{"$f":"IFERROR(G458+H458,\"\")","v":0},null,{"$f":"IFERROR(IF(J458<>\"\",F458*J458,\"\"),\"\")","v":""},{"$f":"IFERROR(IF(J458<>\"\",G458*J458,\"\"),\"\")","v":""},{"$f":"IFERROR(IF(J458<>\"\",H458*J458,\"\"),\"\")","v":""},{"$f":"IFERROR(L458+M458,\"\")","v":""}]
[null,null,null,null,null,null,null,null,0,null,"","","",""]
[null,null,null,null,null,null,null,null,0,null,"","","",""]
[null,null,null,null,null,null,null,null,0,null,"","","",""]
[null,null,null,null,null,null,null,null,0,null,"","","",""]
[null,null,null,null,null,null,null,null,0,null,"","","",""]
[null,null,null,null,null,null,null,null,0,null,"","","",""]
[null,null,null,null,null,null,null,null,0,null,"","","",""]
[null,null,null,null,null,null,null,null,0,null,"","","",""]
[null,null,null,null,null,null,null,null,0,null,"","","",""]
[null,null,null,null,null,null,null,null,0,null,"","","",""]
[null,null,null,null,null,null,null,null,0,null,"","","",""]
[null,null,null,null,null,null,null,null,0,null,"","","",""]
[null,null,null,null,null,null,null,null,0,null,"","","",""]
[null,null,null,null,null,null,null,null,0,null,"","","",""]
[null,null,null,null,null,null,null,null,0,null,"","","",""]
[null,null,null,null,null,null,null,null,0,null,"","","",""]
[null,null,null,null,null,null,null,null,0,null,"","","",""]
[null,null,null,null,null,null,null,null,0,null,"","","",""]
[null,null,null,null,null,null,null,null,0,null,"","","",""]
[null,null,null,null,null,null,null,null,0,null,"","","",""]
[null,null,null,null,null,null,null,null,0,null,"","","",""]
[null,null,null,null,null,null,null,null,0,null,"","","",""]
[null,null,null,null,null,null,null,null,0,null,"","","",""]
[null,null,null,null,null,null,null,null,0,null,"","","",""]
[null,null,null,null,null,null,null,null,0,null,"","","",""]
[null,null,null,null,null,null,null,null,0,null,"","","",""]
[null,null,null,null,null,null,null,null,0,null,"","","",""]
[null,null,null,null,null,null,null,null,0,null,"","","",""]
[null,null,null,null,null,null,null,null,0,null,"","","",""]
[null,null,null,null,null,null,null,null,0,null,"","","",""]
[null,null,null,null,null,null,null,null,0,null,"","","",""]
[null,null,null,null,null,null,null,null,0,null,"","","",""]
[null,null,null,null,null,null,null,null,0,null,"","","",""]
[null,null,null,null,null,null,null,null,0,null,"","","",""]
[null,null,null,null,null,null,null,null,0,null,"","","",""]
[null,null,null,null,null,null,null,null,0,null,"","","",""]
[null,null,null,null,null,null,null,null,0,null,"","","",""]
[null,null,null,null,null,null,null,null,0,null,"","","",""]
[null,null,null,null,null,null,null,null,0,null,"","","",""]
[null,null,null,null,null,null,null,null,0,null,"","","",""]
[null,null,null,null,null,null,null,null,0,null,"","","",""]
[null,null,null,null,null,null,null,null,0,null,"","","",""]
[null,null,null,null,null,null,null,null,0,null,"","","",""]
[null,null,null,null,null,null,null,null,0,null,"","","",""]
[null,null,null,null,null,null,null,null,0,null,"","","",""]
[null,null,null,null,null,null,null,null,0,null,"","","",""]
[null,null,null,null,null,null,null,null,0,null,"","","",""]
[null,null,null,null,null,null,null,null,0,null,"","","",""]
[null,null,null,null,null,null,null,null,0,null,"","","",""]
[null,null,null,null,null,null,null,null,0,null,"","","",""]
[null,null,null,null,null,null,null,null,0,null,"","","",""]
[null,null,null,null,null,null,null,null,0,null,"","","",""]
[null,null,null,null,null,null,null,null,0,null,"","","",""]
[null,null,null,null,null,null,null,null,0,null,"","","",""]
[null,null,null,null,null,null,null,null,0,null,"","","",""]
[null,null,null,null,null,null,null,null,0,null,"","","",""]
[null,null,null,null,null,null,null,null,0,null,"","","",""]
[null,null,null,null,null,null,null,null,0,null,"","","",""]
[null,null,null,null,null,null,null,null,0,null,"","","",""]
[null,null,null,null,null,null,null,null,0,null,"","","",""]
[null,null,null,null,null,null,null,null,0,null,"","","",""]
[null,null,null,null,null,null,null,null,0,null,"","","",""]
[null,null,null,null,null,null,null,null,0,null,"","","",""]
[null,null,null,null,null,null,null,null,{"$f":"IFERROR(G522+H522,\"\")","v":0},null,{"$f":"IFERROR(IF(J522<>\"\",F522*J522,\"\"),\"\")","v":""},{"$f":"IFERROR(IF(J522<>\"\",G522*J522,\"\"),\"\")","v":""},{"$f":"IFERROR(IF(J522<>\"\",H522*J522,\"\"),\"\")","v":""},{"$f":"IFERROR(L522+M522,\"\")","v":""}]
[null,null,null,null,null,null,null,null,0,null,"","","",""]
[null,null,null,null,null,null,null,null,0,null,"","","",""]
[null,null,null,null,null,null,null,null,0,null,"","","",""]
[null,null,null,null,null,null,null,null,0,null,"","","",""]
[null,null,null,null,null,null,null,null,0,null,"","","",""]
[null,null,null,null,null,null,null,null,0,null,"","","",""]
[null,null,null,null,null,null,null,null,0,null,"","","",""]
[null,null,null,null,null,null,null,null,0,null,"","","",""]
[null,null,null,null,null,null,null,null,0,null,"","","",""]
[null,null,null,null,null,null,null,null,0,null,"","","",""]
[null,null,null,null,null,null,null,null,0,null,"","","",""]
[null,null,null,null,null,null,null,null,0,null,"","","",""]
[null,null,null,null,null,null,null,null,0,null,"","","",""]
[null,null,null,null,null,null,null,null,0,null,"","","",""]
[null,null,null,null,null,null,null,null,0,null,"","","",""]
[null,null,null,null,null,null,null,null,0,null,"","","",""]
[null,null,null,null,null,null,null,null,0,null,"","","",""]
[null,null,null,null,null,null,null,null,0,null,"","","",""]
[null,null,null,null,null,null,null,null,0,null,"","","",""]
[null,null,null,null,null,null,null,null,0,null,"","","",""]
[null,null,null,null,null,null,null,null,0,null,"","","",""]
[null,null,null,null,null,null,null,null,0,null,"","","",""]
[null,null,null,null,null,null,null,null,0,null,"","","",""]
[null,null,null,null,null,null,null,null,0,null,"","","",""]
[null,null,null,null,null,null,null,null,0,null,"","","",""]
[null,null,null,null,null,null,null,null,0,null,"","","",""]
[null,null,null,null,null,null,null,null,0,null,"","","",""]
[null,null,null,null,null,null,null,null,0,null,"","","",""]
[null,null,null,null,null,null,null,null,0,null,"","","",""]
[null,null,null,null,null,null,null,null,0,null,"","","",""]
[null,null,null,null,null,null,null,null,0,null,"","","",""]
[null,null,null,null,null,null,null,null,0,null,"","","",""]
[null,null,null,null,null,null,null,null,0,null,"","","",""]
[null,null,null,null,null,null,null,null,0,null,"","","",""]
[null,null,null,null,null,null,null,null,0,null,"","","",""]
[null,null,null,null,null,null,null,null,0,null,"","","",""]
[null,null,null,null,null,null,null,null,0,null,"","","",""]
[null,null,null,null,null,null,null,null,0,null,"","","",""]
[null,null,null,null,null,null,null,null,0,null,"","","",""]
[null,null,null,null,null,null,null,null,0,null,"","","",""]
[null,null,null,null,null,null,null,null,0,null,"","","",""]
[null,null,null,null,null,null,null,null,0,null,"","","",""]
[null,null,null,null,null,null,null,null,0,null,"","","",""]
[null,null,null,null,null,null,null,null,0,null,"","","",""]
[null,null,null,null,null,null,null,null,0,null,"","","",""]
[null,null,null,null,null,null,null,null,0,null,"","","",""]
[null,null,null,null,null,null,null,null,0,null,"","","",""]
[null,null,null,null,null,null,null,null,0,null,"","","",""]
[null,null,null,null,null,null,null,null,0,null,"","","",""]
[null,null,null,null,null,null,null,null,0,null,"","","",""]
[null,null,null,null,null,null,null,null,0,null,"","","",""]
[null,null,null,null,null,null,null,null,0,null,"","","",""]
[null,null,null,null,null,null,null,null,0,null,"","","",""]
[null,null,null,null,null,null,null,null,0,null,"","","",""]
[null,null,null,null,null,null,null,null,0,null,"","","",""]
[null,null,null,null,null,null,null,null,0,null,"","","",""]
[null,null,null,null,null,null,null,null,0,null,"","","",""]
[null,null,null,null,null,null,null,null,0,null,"","","",""]
[null,null,null,null,null,null,null,null,0,null,"","","",""]
[null,null,null,null,null,null,null,null,0,null,"","","",""]
[null,null,null,null,null,null,null,null,0,null,"","","",""]
[null,null,null,null,null,null,null,null,0,null,"","","",""]
[null,null,null,null,null,null,null,null,0,null,"","","",""]
[null,null,null,null,null,null,null,null,{"$f":"IFERROR(G586+H586,\"\")","v":0},null,{"$f":"IFERROR(IF(J586<>\"\",F586*J586,\"\"),\"\")","v":""},{"$f":"IFERROR(IF(J586<>\"\",G586*J586,\"\"),\"\")","v":""},{"$f":"IFERROR(IF(J586<>\"\",H586*J586,\"\"),\"\")","v":""},{"$f":"IFERROR(L586+M586,\"\")","v":""}]
[null,null,null,null,null,null,null,null,0,null,"","","",""]
[null,null,null,null,null,null,null,null,0,null,"","","",""]
[null,null,null,null,null,null,null,null,0,null,"","","",""]
[null,null,null,null,null,null,null,null,0,null,"","","",""]
[null,null,null,null,null,null,null,null,0,null,"","","",""]
[null,null,null,null,null,null,null,null,0,null,"","","",""]
[null,null,null,null,null,null,null,null,0,null,"","","",""]
[null,null,null,null,null,null,null,null,0,null,"","","",""]
[null,null,null,null,null,null,null,null,0,null,"","","",""]
[null,null,null,null,null,null,null,null,0,null,"","","",""]
[null,null,null,null,null,null,null,null,0,null,"","","",""]
[null,null,null,null,null,null,null,null,0,null,"","","",""]
[null,null,null,null,null,null,null,null,0,null,"","","",""]
[null,null,null,null,null,null,null,null,0,null,"","","",""]
[null,null,null,null,null,null,null,null,0,null,"","","",""]
[null,null,null,null,null,null,null,null,0,null,"","","",""]
[null,null,null,null,null,null,null,null,0,null,"","","",""]
[null,null,null,null,null,null,null,null,0,null,"","","",""]
[null,null,null,null,null,null,null,null,0,null,"","","",""]
[null,null,null,null,null,null,null,null,0,null,"","","",""]
[null,null,null,null,null,null,null,null,0,null,"","","",""]
[null,null,null,null,null,null,null,null,0,null,"","","",""]
[null,null,null,null,null,null,null,null,0,null,"","","",""]
[null,null,null,null,null,null,null,null,0,null,"","","",""]
[null,null,null,null,null,null,null,null,0,null,"","","",""]
[null,null,null,null,null,null,null,null,0,null,"","","",""]
[null,null,null,null,null,null,null,null,0,null,"","","",""]
[null,null,null,null,null,null,null,null,0,null,"","","",""]
[null,null,null,null,null,null,null,null,0,null,"","","",""]
[null,null,null,null,null,null,null,null,0,null,"","","",""]
[null,null,null,null,null,null,null,null,0,null,"","","",""]
[null,null,null,null,null,null,null,null,0,null,"","","",""]
[null,null,null,null,null,null,null,null,0,null,"","","",""]
[null,null,null,null,null,null,null,null,0,null,"","","",""]
[null,null,null,null,null,null,null,null,0,null,"","","",""]
[null,null,null,null,null,null,null,null,0,null,"","","",""]
[null,null,null,null,null,null,null,null,0,null,"","","",""]
[null,null,null,null,null,null,null,null,0,null,"","","",""]
[null,null,null,null,null,null,null,null,0,null,"","","",""]
[null,null,null,null,null,null,null,null,0,null,"","","",""]
[null,null,null,null,null,null,null,null,0,null,"","","",""]
[null,null,null,null,null,null,null,null,0,null,"","","",""]
[null,null,null,null,null,null,null,null,0,null,"","","",""]
[null,null,null,null,null,null,null,null,0,null,"","","",""]
[null,null,null,null,null,null,null,null,0,null,"","","",""]
[null,null,null,null,null,null,null,null,0,null,"","","",""]
[null,null,null,null,null,null,null,null,0,null,"","","",""]
[null,null,null,null,null,null,null,null,0,null,"","","",""]
[null,null,null,null,null,null,null,null,0,null,"","","",""]
[null,null,null,null,null,null,null,null,0,null,"","","",""]
[null,null,null,null,null,null,null,null,0,null,"","","",""]
[null,null,null,null,null,null,null,null,0,null,"","","",""]
[null,null,null,null,null,null,null,null,0,null,"","","",""]
[null,null,null,null,null,null,null,null,0,null,"","","",""]
[null,null,null,null,null,null,null,null,0,null,"","","",""]
[null,null,null,null,null,null,null,null,0,null,"","","",""]
[null,null,null,null,null,null,null,null,0,null,"","","",""]
[null,null,null,null,null,null,null,null,0,null,"","","",""]
[null,null,null,null,null,null,null,null,0,null,"","","",""]
[null,null,null,null,null,null,null,null,0,null,"","","",""]
[null,null,null,null,null,null,null,null,0,null,"","","",""]
[null,null,null,null,null,null,null,null,0,null,"","","",""]
[null,null,null,null,null,null,null,null,0,null,"","","",""]
[null,null,null,null,null,null,null,null,{"$f":"IFERROR(G650+H650,\"\")","v":0},null,{"$f":"IFERROR(IF(J650<>\"\",F650*J650,\"\"),\"\")","v":""},{"$f":"IFERROR(IF(J650<>\"\",G650*J650,\"\"),\"\")","v":""},{"$f":"IFERROR(IF(J650<>\"\",H650*J650,\"\"),\"\")","v":""},{"$f":"IFERROR(L650+M650,\"\")","v":""}]
[null,null,null,null,null,null,null,null,0,null,"","","",""]
[null,null,null,null,null,null,null,null,0,null,"","","",""]
[null,null,null,null,null,null,null,null,0,null,"","","",""]
[null,null,null,null,null,null,null,null,0,null,"","","",""]
[null,null,null,null,null,null,null,null,0,null,"","","",""]
[null,null,null,null,null,null,null,null,0,null,"","","",""]
[null,null,null,null,null,null,null,null,0,null,"","","",""]
[null,null,null,null,null,null,null,null,0,null,"","","",""]
[null,null,null,null,null,null,null,null,0,null,"","","",""]
[null,null,null,null,null,null,null,null,0,null,"","","",""]
[null,null,null,null,null,null,null,null,0,null,"","","",""]
[null,null,null,null,null,null,null,null,0,null,"","","",""]
[null,null,null,null,null,null,null,null,0,null,"","","",""]
[null,null,null,null,null,null,null,null,0,null,"","","",""]
[null,null,null,null,null,null,null,null,0,null,"","","",""]
[null,null,null,null,null,null,null,null,0,null,"","","",""]
[null,null,null,null,null,null,null,null,0,null,"","","",""]
[null,null,null,null,null,null,null,null,0,null,"","","",""]
[null,null,null,null,null,null,null,null,0,null,"","","",""]
[null,null,null,null,null,null,null,null,0,null,"","","",""]
[null,null,null,null,null,null,null,null,0,null,"","","",""]
[null,null,null,null,null,null,null,null,0,null,"","","",""]
[null,null,null,null,null,null,null,null,0,null,"","","",""]
[null,null,null,null,null,null,null,null,0,null,"","","",""]
[null,null,null,null,null,null,null,null,0,null,"","","",""]
[null,null,null,null,null,null,null,null,0,null,"","","",""]
[null,null,null,null,null,null,null,null,0,null,"","","",""]
[null,null,null,null,null,null,null,null,0,null,"","","",""]
[null,null,null,null,null,null,null,null,0,null,"","","",""]
[null,null,null,null,null,null,null,null,0,null,"","","",""]
[null,null,null,null,null,null,null,null,0,null,"","","",""]
[null,null,null,null,null,null,null,null,0,null,"","","",""]
[null,null,null,null,null,null,null,null,0,null,"","","",""]
[null,null,null,null,null,null,null,null,0,null,"","","",""]
[null,null,null,null,null,null,null,null,0,null,"","","",""]
[null,null,null,null,null,null,null,null,0,null,"","","",""]
[null,null,null,null,null,null,null,null,0,null,"","","",""]
[null,null,null,null,null,null,null,null,0,null,"","","",""]
[null,null,null,null,null,null,null,null,0,null,"","","",""]
[null,null,null,null,null,null,null,null,0,null,"","","",""]
[null,null,null,null,null,null,null,null,0,null,"","","",""]
[null,null,null,null,null,null,null,null,0,null,"","","",""]
[null,null,null,null,null,null,null,null,0,null,"","","",""]
[null,null,null,null,null,null,null,null,0,null,"","","",""]
[null,null,null,null,null,null,null,null,0,null,"","","",""]
[null,null,null,null,null,null,null,null,0,null,"","","",""]
[null,null,null,null,null,null,null,null,0,null,"","","",""]
[null,null,null,null,null,null,null,null,0,null,"","","",""]
[null,null,null,null,null,null,null,null,0,null,"","","",""]
[null,null,null,null,null,null,null,null,0,null,"","","",""]
[null,null,null,null,null,null,null,null,0,null,"","","",""]
[null,null,null,null,null,null,null,null,0,null,"","","",""]
[null,null,null,null,null,null,null,null,0,null,"","","",""]
[null,null,null,null,null,null,null,null,0,null,"","","",""]
[null,null,null,null,null,null,null,null,0,null,"","","",""]
[null,null,null,null,null,null,null,null,0,null,"","","",""]
[null,null,null,null,null,null,null,null,0,null,"","","",""]
[null,null,null,null,null,null,null,null,0,null,"","","",""]
[null,null,null,null,null,null,null,null,0,null,"","","",""]
[null,null,null,null,null,null,null,null,0,null,"","","",""]
[null,null,null,null,null,null,null,null,0,null,"","","",""]
[null,null,null,null,null,null,null,null,0,null,"","","",""]
[null,null,null,null,null,null,null,null,0,null,"","","",""]
[null,null,null,null,null,null,null,null,{"$f":"IFERROR(G714+H714,\"\")","v":0},null,{"$f":"IFERROR(IF(J714<>\"\",F714*J714,\"\"),\"\")","v":""},{"$f":"IFERROR(IF(J714<>\"\",G714*J714,\"\"),\"\")","v":""},{"$f":"IFERROR(IF(J714<>\"\",H714*J714,\"\"),\"\")","v":""},{"$f":"IFERROR(L714+M714,\"\")","v":""}]
[null,null,null,null,null,null,null,null,0,null,"","","",""]
[null,null,null,null,null,null,null,null,0,null,"","","",""]
[null,null,null,null,null,null,null,null,0,null,"","","",""]
[null,null,null,null,null,null,null,null,0,null,"","","",""]
[null,null,null,null,null,null,null,null,0,null,"","","",""]
[null,null,null,null,null,null,null,null,0,null,"","","",""]
[null,null,null,null,null,null,null,null,0,null,"","","",""]
[null,null,null,null,null,null,null,null,0,null,"","","",""]
[null,null,null,null,null,null,null,null,0,null,"","","",""]
[null,null,null,null,null,null,null,null,0,null,"","","",""]
[null,null,null,null,null,null,null,null,0,null,"","","",""]
[null,null,null,null,null,null,null,null,0,null,"","","",""]
[null,null,null,null,null,null,null,null,0,null,"","","",""]
[null,null,null,null,null,null,null,null,0,null,"","","",""]
[null,null,null,null,null,null,null,null,0,null,"","","",""]
[null,null,null,null,null,null,null,null,0,null,"","","",""]
[null,null,null,null,null,null,null,null,0,null,"","","",""]
[null,null,null,null,null,null,null,null,0,null,"","","",""]
[null,null,null,null,null,null,null,null,0,null,"","","",""]
[null,null,null,null,null,null,null,null,0,null,"","","",""]
[null,null,null,null,null,null,null,null,0,null,"","","",""]
[null,null,null,null,null,null,null,null,0,null,"","","",""]
[null,null,null,null,null,null,null,null,0,null,"","","",""]
[null,null,null,null,null,null,null,null,0,null,"","","",""]
[null,null,null,null,null,null,null,null,0,null,"","","",""]
[null,null,null,null,null,null,null,null,0,null,"","","",""]
[null,null,null,null,null,null,null,null,0,null,"","","",""]
[null,null,null,null,null,null,null,null,0,null,"","","",""]
[null,null,null,null,null,null,null,null,0,null,"","","",""]
[null,null,null,null,null,null,null,null,0,null,"","","",""]
[null,null,null,null,null,null,null,null,0,null,"","","",""]
[null,null,null,null,null,null,null,null,0,null,"","","",""]
[null,null,null,null,null,null,null,null,0,null,"","","",""]
[null,null,null,null,null,null,null,null,0,null,"","","",""]
[null,null,null,null,null,null,null,null,0,null,"","","",""]
[null,null,null,null,null,null,null,null,0,null,"","","",""]
[null,null,null,null,null,null,null,null,0,null,"","","",""]
[null,null,null,null,null,null,null,null,0,null,"","","",""]
[null,null,null,null,null,null,null,null,0,null,"","","",""]
[null,null,null,null,null,null,null,null,0,null,"","","",""]
[null,null,null,null,null,null,null,null,0,null,"","","",""]
[null,null,null,null,null,null,null,null,0,null,"","","",""]
[null,null,null,null,null,null,null,null,0,null,"","","",""]
[null,null,null,null,null,null,null,null,0,null,"","","",""]
[null,null,null,null,null,null,null,null,0,null,"","","",""]
[null,null,null,null,null,null,null,null,0,null,"","","",""]
[null,null,null,null,null,null,null,null,0,null,"","","",""]
[null,null,null,null,null,null,null,null,0,null,"","","",""]
[null,null,null,null,null,null,null,null,0,null,"","","",""]
[null,null,null,null,null,null,null,null,0,null,"","","",""]
[null,null,null,null,null,null,null,null,0,null,"","","",""]
[null,null,null,null,null,null,null,null,0,null,"","","",""]
[null,null,null,null,null,null,null,null,0,null,"","","",""]
[null,null,null,null,null,null,null,null,0,null,"","","",""]
[null,null,null,null,null,null,null,null,0,null,"","","",""]
[null,null,null,null,null,null,null,null,0,null,"","","",""]
[null,null,null,null,null,null,null,null,0,null,"","","",""]
[null,null,null,null,null,null,null,null,0,null,"","","",""]
[null,null,null,null,null,null,null,null,0,null,"","","",""]
[null,null,null,null,null,null,null,null,0,null,"","","",""]
[null,null,null,null,null,null,null,null,0,null,"","","",""]
[null,null,null,null,null,null,null,null,0,null,"","","",""]
[null,null,null,null,null,null,null,null,0,null,"","","",""]
[null,null,null,null,null,null,null,null,{"$f":"IFERROR(G778+H778,\"\")","v":0},null,{"$f":"IFERROR(IF(J778<>\"\",F778*J778,\"\"),\"\")","v":""},{"$f":"IFERROR(IF(J778<>\"\",G778*J778,\"\"),\"\")","v":""},{"$f":"IFERROR(IF(J778<>\"\",H778*J778,\"\"),\"\")","v":""},{"$f":"IFERROR(L778+M778,\"\")","v":""}]
[null,null,null,null,null,null,null,null,0,null,"","","",""]
[null,null,null,null,null,null,null,null,0,null,"","","",""]
[null,null,null,null,null,null,null,null,0,null,"","","",""]
[null,null,null,null,null,null,null,null,0,null,"","","",""]
[null,null,null,null,null,null,null,null,0,null,"","","",""]
[null,null,null,null,null,null,null,null,0,null,"","","",""]
[null,null,null,null,null,null,null,null,0,null,"","","",""]
[null,null,null,null,null,null,null,null,0,null,"","","",""]
[null,null,null,null,null,null,null,null,0,null,"","","",""]
[null,null,null,null,null,null,null,null,0,null,"","","",""]
[null,null,null,null,null,null,null,null,0,null,"","","",""]
[null,null,null,null,null,null,null,null,0,null,"","","",""]
[null,null,null,null,null,null,null,null,0,null,"","","",""]
[null,null,null,null,null,null,null,null,0,null,"","","",""]
[null,null,null,null,null,null,null,null,0,null,"","","",""]
[null,null,null,null,null,null,null,null,0,null,"","","",""]
[null,null,null,null,null,null,null,null,0,null,"","","",""]
[null,null,null,null,null,null,null,null,0,null,"","","",""]
[null,null,null,null,null,null,null,null,0,null,"","","",""]
[null,null,null,null,null,null,null,null,0,null,"","","",""]
[null,null,null,null,null,null,null,null,0,null,"","","",""]
[null,null,null,null,null,null,null,null,0,null,"","","",""]
[null,null,null,null,null,null,null,null,0,null,"","","",""]
[null,null,null,null,null,null,null,null,0,null,"","","",""]
[null,null,null,null,null,null,null,null,0,null,"","","",""]
[null,null,null,null,null,null,null,null,0,null,"","","",""]
[null,null,null,null,null,null,null,null,0,null,"","","",""]
[null,null,null,null,null,null,null,null,0,null,"","","",""]
[null,null,null,null,null,null,null,null,0,null,"","","",""]
[null,null,null,null,null,null,null,null,0,null,"","","",""]
[null,null,null,null,null,null,null,null,0,null,"","","",""]
[null,null,null,null,null,null,null,null,0,null,"","","",""]
[null,null,null,null,null,null,null,null,0,null,"","","",""]
[null,null,null,null,null,null,null,null,0,null,"","","",""]
[null,null,null,null,null,null,null,null,0,null,"","","",""]
[null,null,null,null,null,null,null,null,0,null,"","","",""]
[null,null,null,null,null,null,null,null,0,null,"","","",""]
[null,null,null,null,null,null,null,null,0,null,"","","",""]
[null,null,null,null,null,null,null,null,0,null,"","","",""]
[null,null,null,null,null,null,null,null,0,null,"","","",""]
[null,null,null,null,null,null,null,null,0,null,"","","",""]
[null,null,null,null,null,null,null,null,0,null,"","","",""]
[null,null,null,null,null,null,null,null,0,null,"","","",""]
[null,null,null,null,null,null,null,null,0,null,"","","",""]
[null,null,null,null,null,null,null,null,0,null,"","","",""]
[null,null,null,null,null,null,null,null,0,null,"","","",""]
[null,null,null,null,null,null,null,null,0,null,"","","",""]
[null,null,null,null,null,null,null,null,0,null,"","","",""]
[null,null,null,null,null,null,null,null,0,null,"","","",""]
[null,null,null,null,null,null,null,null,0,null,"","","",""]
[null,null,null,null,null,null,null,null,0,null,"","","",""]
[null,null,null,null,null,null,null,null,0,null,"","","",""]
[null,null,null,null,null,null,null,null,0,null,"","","",""]
[null,null,null,null,null,null,null,null,0,null,"","","",""]
[null,null,null,null,null,null,null,null,0,null,"","","",""]
[null,null,null,null,null,null,null,null,0,null,"","","",""]
[null,null,null,null,null,null,null,null,0,null,"","","",""]
[null,null,null,null,null,null,null,null,0,null,"","","",""]
[null,null,null,null,null,null,null,null,0,null,"","","",""]
[null,null,null,null,null,null,null,null,0,null,"","","",""]
[null,null,null,null,null,null,null,null,0,null,"","","",""]
[null,null,null,null,null,null,null,null,0,null,"","","",""]
[null,null,null,null,null,null,null,null,0,null,"","","",""]
[null,null,null,null,null,null,null,null,{"$f":"IFERROR(G842+H842,\"\")","v":0},null,{"$f":"IFERROR(IF(J842<>\"\",F842*J842,\"\"),\"\")","v":""},{"$f":"IFERROR(IF(J842<>\"\",G842*J842,\"\"),\"\")","v":""},{"$f":"IFERROR(IF(J842<>\"\",H842*J842,\"\"),\"\")","v":""},{"$f":"IFERROR(L842+M842,\"\")","v":""}]
[null,null,null,null,null,null,null,null,0,null,"","","",""]
[null,null,null,null,null,null,null,null,0,null,"","","",""]
[null,null,null,null,null,null,null,null,0,null,"","","",""]
[null,null,null,null,null,null,null,null,0,null,"","","",""]
[null,null,null,null,null,null,null,null,0,null,"","","",""]
[null,null,null,null,null,null,null,null,0,null,"","","",""]
[null,null,null,null,null,null,null,null,0,null,"","","",""]
[null,null,null,null,null,null,null,null,0,null,"","","",""]
[null,null,null,null,null,null,null,null,0,null,"","","",""]
[null,null,null,null,null,null,null,null,0,null,"","","",""]
[null,null,null,null,null,null,null,null,0,null,"","","",""]
[null,null,null,null,null,null,null,null,0,null,"","","",""]
[null,null,null,null,null,null,null,null,0,null,"","","",""]
[null,null,null,null,null,null,null,null,0,null,"","","",""]
[null,null,null,null,null,null,null,null,0,null,"","","",""]
[null,null,null,null,null,null,null,null,0,null,"","","",""]
[null,null,null,null,null,null,null,null,0,null,"","","",""]
[null,null,null,null,null,null,null,null,0,null,"","","",""]
[null,null,null,null,null,null,null,null,0,null,"","","",""]
[null,null,null,null,null,null,null,null,0,null,"","","",""]
[null,null,null,null,null,null,null,null,0,null,"","","",""]
[null,null,null,null,null,null,null,null,0,null,"","","",""]
[null,null,null,null,null,null,null,null,0,null,"","","",""]
[null,null,null,null,null,null,null,null,0,null,"","","",""]
[null,null,null,null,null,null,null,null,0,null,"","","",""]
[null,null,null,null,null,null,null,null,0,null,"","","",""]
[null,null,null,null,null,null,null,null,0,null,"","","",""]
[null,null,null,null,null,null,null,null,0,null,"","","",""]
[null,null,null,null,null,null,null,null,0,null,"","","",""]
[null,null,null,null,null,null,null,null,0,null,"","","",""]
[null,null,null,null,null,null,null,null,0,null,"","","",""]
[null,null,null,null,null,null,null,null,0,null,"","","",""]
[null,null,null,null,null,null,null,null,0,null,"","","",""]
[null,null,null,null,null,null,null,null,0,null,"","","",""]
[null,null,null,null,null,null,null,null,0,null,"","","",""]
[null,null,null,null,null,null,null,null,0,null,"","","",""]
[null,null,null,null,null,null,null,null,0,null,"","","",""]
[null,null,null,null,null,null,null,null,0,null,"","","",""]
[null,null,null,null,null,null,null,null,0,null,"","","",""]
[null,null,null,null,null,null,null,null,0,null,"","","",""]
[null,null,null,null,null,null,null,null,0,null,"","","",""]
[null,null,null,null,null,null,null,null,0,null,"","","",""]
[null,null,null,null,null,null,null,null,0,null,"","","",""]
[null,null,null,null,null,null,null,null,0,null,"","","",""]
[null,null,null,null,null,null,null,null,0,null,"","","",""]
[null,null,null,null,null,null,null,null,0,null,"","","",""]
[null,null,null,null,null,null,null,null,0,null,"","","",""]
[null,null,null,null,null,null,null,null,0,null,"","","",""]
[null,null,null,null,null,null,null,null,0,null,"","","",""]
[null,null,null,null,null,null,null,null,0,null,"","","",""]
[null,null,null,null,null,null,null,null,0,null,"","","",""]
[null,null,null,null,null,null,null,null,0,null,"","","",""]
[null,null,null,null,null,null,null,null,0,null,"","","",""]
[null,null,null,null,null,null,null,null,0,null,"","","",""]
[null,null,null,null,null,null,null,null,0,null,"","","",""]
[null,null,null,null,null,null,null,null,0,null,"","","",""]
[null,null,null,null,null,null,null,null,0,null,"","","",""]
[null,null,null,null,null,null,null,null,0,null,"","","",""]
[null,null,null,null,null,null,null,null,0,null,"","","",""]
[null,null,null,null,null,null,null,null,0,null,"","","",""]
[null,null,null,null,null,null,null,null,0,null,"","","",""]
[null,null,null,null,null,null,null,null,0,null,"","","",""]
[null,null,null,null,null,null,null,null,0,null,"","","",""]
[null,null,null,null,null,null,null,null,{"$f":"IFERROR(G906+H906,\"\")","v":0},null,{"$f":"IFERROR(IF(J906<>\"\",F906*J906,\"\"),\"\")","v":""},{"$f":"IFERROR(IF(J906<>\"\",G906*J906,\"\"),\"\")","v":""},{"$f":"IFERROR(IF(J906<>\"\",H906*J906,\"\"),\"\")","v":""},{"$f":"IFERROR(L906+M906,\"\")","v":""}]
[null,null,null,null,null,null,null,null,0,null,"","","",""]
[null,null,null,null,null,null,null,null,0,null,"","","",""]
[null,null,null,null,null,null,null,null,0,null,"","","",""]
[null,null,null,null,null,null,null,null,0,null,"","","",""]
[null,null,null,null,null,null,null,null,0,null,"","","",""]
[null,null,null,null,null,null,null,null,0,null,"","","",""]
[null,null,null,null,null,null,null,null,0,null,"","","",""]
[null,null,null,null,null,null,null,null,0,null,"","","",""]
[null,null,null,null,null,null,null,null,0,null,"","","",""]
[null,null,null,null,null,null,null,null,0,null,"","","",""]
[null,null,null,null,null,null,null,null,0,null,"","","",""]
[null,null,null,null,null,null,null,null,0,null,"","","",""]
[null,null,null,null,null,null,null,null,0,null,"","","",""]
[null,null,null,null,null,null,null,null,0,null,"","","",""]
[null,null,null,null,null,null,null,null,0,null,"","","",""]
[null,null,null,null,null,null,null,null,0,null,"","","",""]
[null,null,null,null,null,null,null,null,0,null,"","","",""]
[null,null,null,null,null,null,null,null,0,null,"","","",""]
[null,null,null,null,null,null,null,null,0,null,"","","",""]
[null,null,null,null,null,null,null,null,0,null,"","","",""]
[null,null,null,null,null,null,null,null,0,null,"","","",""]
[null,null,null,null,null,null,null,null,0,null,"","","",""]
[null,null,null,null,null,null,null,null,0,null,"","","",""]
[null,null,null,null,null,null,null,null,0,null,"","","",""]
[null,null,null,null,null,null,null,null,0,null,"","","",""]
[null,null,null,null,null,null,null,null,0,null,"","","",""]
[null,null,null,null,null,null,null,null,0,null,"","","",""]
[null,null,null,null,null,null,null,null,0,null,"","","",""]
[null,null,null,null,null,null,null,null,0,null,"","","",""]
[null,null,null,null,null,null,null,null,0,null,"","","",""]
[null,null,null,null,null,null,null,null,0,null,"","","",""]
[null,null,null,null,null,null,null,null,0,null,"","","",""]
[null,null,null,null,null,null,null,null,0,null,"","","",""]
[null,null,null,null,null,null,null,null,0,null,"","","",""]
[null,null,null,null,null,null,null,null,0,null,"","","",""]
[null,null,null,null,null,null,null,null,0,null,"","","",""]
[null,null,null,null,null,null,null,null,0,null,"","","",""]
[null,null,null,null,null,null,null,null,0,null,"","","",""]
[null,null,null,null,null,null,null,null,0,null,"","","",""]
[null,null,null,null,null,null,null,null,0,null,"","","",""]
[null,null,null,null,null,null,null,null,0,null,"","","",""]
[null,null,null,null,null,null,null,null,0,null,"","","",""]
[null,null,null,null,null,null,null,null,0,null,"","","",""]
[null,null,null,null,null,null,null,null,0,null,"","","",""]
[null,null,null,null,null,null,null,null,0,null,"","","",""]
[null,null,null,null,null,null,null,null,0,null,"","","",""]
[null,null,null,null,null,null,null,null,0,null,"","","",""]
[null,null,null,null,null,null,null,null,0,null,"","","",""]
[null,null,null,null,null,null,null,null,0,null,"","","",""]
[null,null,null,null,null,null,null,null,0,null,"","","",""]
[null,null,null,null,null,null,null,null,0,null,"","","",""]
[null,null,null,null,null,null,null,null,0,null,"","","",""]
[null,null,null,null,null,null,null,null,0,null,"","","",""]
[null,null,null,null,null,null,null,null,0,null,"","","",""]
[null,null,null,null,null,null,null,null,0,null,"","","",""]
[null,null,null,null,null,null,null,null,0,null,"","","",""]
[null,null,null,null,null,null,null,null,0,null,"","","",""]
[null,null,null,null,null,null,null,null,0,null,"","","",""]
[null,null,null,null,null,null,null,null,0,null,"","","",""]
[null,null,null,null,null,null,null,null,0,null,"","","",""]
[null,null,null,null,null,null,null,null,0,null,"","","",""]
[null,null,null,null,null,null,null,null,0,null,"","","",""]
[null,null,null,null,null,null,null,null,0,null,"","","",""]
[null,null,null,null,null,null,null,null,{"$f":"IFERROR(G970+H970,\"\")","v":0},null,{"$f":"IFERROR(IF(J970<>\"\",F970*J970,\"\"),\"\")","v":""},{"$f":"IFERROR(IF(J970<>\"\",G970*J970,\"\"),\"\")","v":""},{"$f":"IFERROR(IF(J970<>\"\",H970*J970,\"\"),\"\")","v":""},{"$f":"IFERROR(L970+M970,\"\")","v":""}]
[null,null,null,null,null,null,null,null,0,null,"","",""]
[null,null,null,null,null,null,null,null,0,null,"","","",""]
[null,null,null,null,null,null,null,null,0,null,"","","",""]
[null,null,null,null,null,null,null,null,0,null,"","","",""]
[null,null,null,null,null,null,null,null,0,null,"","","",""]
[null,null,null,null,null,null,null,null,0,null,"","","",""]
[null,null,null,null,null,null,null,null,0,null,"","","",""]
[null,null,null,null,null,null,null,null,0,null,"","","",""]
[null,null,null,null,null,null,null,null,0,null,"","","",""]
[null,null,null,null,null,null,null,null,0,null,"","","",""]
[null,null,null,null,null,null,null,null,0,null,"","","",""]
[null,null,null,null,null,null,null,null,0,null,"","","",""]
[null,null,null,null,null,null,null,null,0,null,"","","",""]
[null,null,null,null,null,null,null,null,0,null,"","","",""]
[null,null,null,null,null,null,null,null,0,null,"","","",""]
[null,null,null,null,null,null,null,null,0,null,"","","",""]
[null,null,null,null,null,null,null,null,0,null,"","","",""]
[null,null,null,null,null,null,null,null,0,null,"","","",""]
[null,null,null,null,null,null,null,null,0,null,"","","",""]
[null,null,null,null,null,null,null,null,0,null,"","","",""]
[null,null,null,null,null,null,null,null,0,null,"","","",""]
[null,null,null,null,null,null,null,null,0,null,"","","",""]
[null,null,null,null,null,null,null,null,0,null,"","","",""]
[null,null,null,null,null,null,null,null,0,null,"","","",""]
[null,null,null,null,null,null,null,null,0,null,"","","",""]
[null,null,null,null,null,null,null,null,0,null,"","","",""]
[null,null,null,null,null,null,null,null,0,null,"","","",""]
[null,null,null,null,null,null,null,null,0,null,"","","",""]
[null,null,null,null,null,null,null,null,0,null,"","","",""]

{"sheet":"LOA","index":7,"n_rows":14,"n_cols":10,"rows_kept":14,"cut":false,"hidden":false,"merged":[[12,5,13,5],[12,6,12,9],[8,2,8,4],[9,2,9,4],[10,1,10,2],[10,3,10,4],[12,1,13,1],[12,2,13,2],[12,3,13,3],[12,4,13,4],[7,2,7,4],[0,7,0,8],[1,3,3,4],[4,2,4,4],[5,2,5,4],[6,2,6,4]]}
[null,null,null,null,null,null,null,"STD-AL-910-MD20993",null,"Rev 07"]
[null,null,null,"Lijst onderaannemer(s)"]
[]
[]
[null,"TE nummer",{"$f":"'0.basisgegevens'!B2","v":0}]
[null,"Project naam",{"$f":"'0.basisgegevens'!B3","v":0}]
[null,"Perceel nummer",{"$f":"'0.basisgegevens'!B4","v":0}]
[null,"Werf meldingsnummer"]
[null,"Hoofdaannemer"]
[null,"Ondernemings nummer"]
[null,"Zijn er onderaannemers aangesteld?",null,"Ja/Nee?"]
[]
[null,"Onderaannemer(s)","Ondernemings nummer","In opdracht van","Graad van onder aanneming","Aard v/d werken","Contact gegevens"]
[null,null,null,null,null,null,"Contact persoon","E-mail","Telefoon1","Telefoon2"]

{"sheet":"Toelichting Lijst OA","index":8,"n_rows":3,"n_cols":2,"rows_kept":3,"cut":false,"hidden":false,"merged":[[1,1,1,14],[2,1,2,14]]}
[]
[null,"Volgens de bepalingen in artikel 12/1 en 12/2 van de wetgeving op overheidsopdrachten is de opdrachtnemer tijdens de volledige looptijd van de opdrachten gehouden de aanbesteder onverwijld in kennis te stellen van alle gegevens van onderaanneming, alsmede van de vereiste gegevens betreffende eventuele nieuwe onderaannemers die hij nadien bij de uitvoering van deze werken of verlening van deze diensten zal betrekken"]
[null,"Onderstaand stroom diagramma geeft de verwachting van UZ Leuven aan, al naargelang of u met onderaannemer(s), VS of facturen werkt."]

{"sheet":"Sjabloon revisies","index":9,"n_rows":14,"n_cols":4,"rows_kept":14,"cut":false,"hidden":false,"merged":[[11,1,12,1]]}
[]
[null,"Revisie","Datum","Omschrijving"]
[null,2,"2019-10-07","\n• mogelijkheid aangeven BTW verlegd\n"]
[null,3,"2019-11-22","• stroomdiagramme informatie plicht onderaannemer\n• mogelijkheid aangeven BTW verlegd\n• % overzicht\n• rapportering OA"]
[null,4,"2020-06-09","• opdeling mogelijk om te werken met derden\n• oplijning invul velden\n• ontdubbeling van sommige velden"]
[null,5,"2020-09-29","• Bestelbon nr toegevoegd\n• Default weergave aangepast. Deel derden en gemeenschappelijk zijn default verborgen\n• Correctie formule BTW deel gemeenschappelijk\n• Ondertekenings velden voorzien voor PCO & LA\n• Onderteken veld 'derden' enkel zichtbaar indien derden betrokken zijn\n• Tabblad 'hoe gebruiken' toegevoegd met toelichting rond gebruik werkbladen '3.VS1-A' en '4.VS1-B'"]
[null,6,"2020-12-14","• overzetten basis gegevens \"functie omschrijvingen \" naar tabblad 1. Overzicht Vorderingsstaat gecorrigeerd."]
[null,7,"2021-06-07","• beperking op VS nr veld (enkel nummeriek) om te voorkomen dat men tekst ingeeft in VS nr veld en dit de werking van de formules beïnvloed. Bijkomend toevoeging veld omschrijving, index om omschrijving mogelijk te maken\n• toevoeging alle contacten in werkblad 1.overzicht VS\n• in werkblad 2.vorderingsstaat \"Bedrag goedgekeurde wijzigingen\" aangepast zodat deelB exclusief herziening wordt getoond.\n• Datum niet langer automatisch als datum van vandaag ingesteld. Door gebruiker zelf in te vullen. Voorkomt verwarring indien VS als excel bestand wordt ingediend en nadien afgedrukt."]
[null,8,"2021-08-24","aanpassing configuratie om VS Nr 0 toe te laten"]
[null,9,"2021-10-20","• Formule correctie"]
[null,10,"2022-08-17","• Datum veld formule in Ws 3.VS1-A en 4.VS1-B gecorrigeerd\n• Werkblad LOA toegevoegd en 'toelichting Lijst OA' aangepast"]
[null,11,"2023-08-17","• formatting 3.VS1-A, 4.VS1-B geoptimaliseerd\n• Bestelbon referenties verplaatst naar werkblad met overzicht details zodat voor elke bestelbon bedrag kan opgegeven worden\n• 3.VS en 4.VS hernoemt (nr 1 uit naamgeving gehaald)\n• titels in 3.VS-A en 3.VS-B gekoppeld aan nr van VS zodat dit altijd mee geupdate is met huidig VS nr\n• functionaliteit voorzien om PDF te genereren met de juiste werkbladen. Deze stelt ook de afdrukbereiken juist in aan de hand van de kolom rechts i/d relevante werkbladen(lijnt op met laatste rij die omschrijving bevat in meetstaat werkbladen.\n• Veld BTW deel gemeenschappelijk vormgeving/vermelding aangepast\n• optimalisatie werkblad '2.Vorderingsstaat' voor afdrukbereik voor verschillende weergaves/\n• In te vullen informatie van werkblad '2.Vorderingsstaat' verplaatst naar '1.Overzicht vorderingsstaat' als vereenvoudiging.\n• Maandelijkse index ingave en berekening adhv formules voor DeelA, DeelB blijft manueel in te geven daar herziening niet steeds van toepassing is."]
[null,null,"2024-01-15","• Draft verwijderd in document referentie op voorblad"]
[null,12,"2024-08-08","• Formule in werkblad 1.Overzicht Vorderingsstaat toegevoegd om TE nr van basis gegeven over te zetten"]